{"text_format":"2","workbook":"xlsx","n_sheets":9,"sheets":["Alaplista","Kontrasztanyagok","onkológia","EGYÉB","INFÚZIÓ","Parenterális tápláló infúziók","PER OS,NG TÁPSZER","FERTŐTLENÍTŐ","OLTÁS"],"not_rendered":{"charts":0,"images":0,"macros":0,"external_links":1,"defined_names":6,"comments":0,"pivot_tables":0},"unopened":[],"bounds":{"document_bytes":16777216,"sheet_cells":100000,"run_cost":"one","rows_first":2000,"rows_last":500,"rows_between":2000,"halvings":0,"cell_chars":16384,"cell_head_chars":4096},"cells_cut":0,"cells_raw":0,"read":"whole","date_system":"1900"}

{"sheet":"Alaplista","index":0,"n_rows":1160,"n_cols":4,"rows_kept":1160,"cut":false,"hidden":false,"merged":[]}
["ATC","Cikknév","Hatóanyag név","Kiszerelés"]
["J02AA01","ABELCET 5 MG/ML SZUSZPENZIÓS INFÚZIÓ","AMPHOTERICIN-B","   10X20ML"]
["N05AX12","ABILIFY 15 MG TABLETTA","ARIPIPRAZOLUM","       56X"]
["N05AX12","ABILIFY 30 MG TABLETTA","ARIPIPRAZOLUM","       28X"]
["N05AX12","ABILIFY MAINTENA 400 MG POR ÉS OLDÓSZER RETARD SZUSZPENZIÓS INJEKCIÓHOZ","ARIPIPRAZOLUM","        1X"]
["B02AA01","ACEPRAMIN GRANULÁTUM","ACIDUM AMINOCAPRONICUM","      1X240G"]
["B01AD02","ACTILYSE  POR ÉS OLDÓSZER OLDATOS INJEKCIÓHOZ VAGY INFÚZIÓHOZ","ALTEPLASE","        1X 20 MG/ML"]
["B01AD02","ACTILYSE  POR ÉS OLDÓSZER OLDATOS INJEKCIÓHOZ VAGY INFÚZIÓHOZ","ALTEPLASE","1X 50 MG/ML"]
["A10AB01","Actrapid Penfill 100 nemzetközi egység/ml oldatos injekció patronban","INSULINUM HUMAN","     5X3ML"]
["C08CA05","ADALAT 0,1 MG/ML OLDATOS INFÚZIÓ","NIFEDIPINUM","    1X50ML"]
["C08CA05","ADALAT GITS 30 MG RETARD FILMTABLETTA","NIFEDIPINUM","       28X"]
["B05XA69","ADDAMEL N KONCENTRÁTUM OLDATOS INFÚZIÓHOZ","NYOMELEMKONCENTRÁTUM","   20X10ML"]
["C01EB10","ADENOCOR 3 MG/ML OLDATOS INJEKCOÓ","ADENOSINUM","     6X2ML"]
["L04AD02","ADVAGRAF 0,5 MG RETARD KEMÉNY KAPSZULA","TACROLIMUSUM","       50X"]
["L04AD02","ADVAGRAF 3 MG RETARD KEMÉNY KAPSZULA","TACROLIMUSUM","       50X"]
["L04AD02","ADVAGRAF 5 MG RETARD KEMÉNY KAPSZULA","TACROLIMUSUM","       50X"]
["D07AC14","ADVANTAN 1 MG/G KRÉM","PREDNISOLONUM","     1X15G"]
["D07AC14","ADVANTAN ZSÍROS 1 MG/G KENŐCS","METHYLPREDNISOLONUM","     1X15G"]
["N01AB06","AERRANE FOLYADÉK INHALÁCIÓS GŐZ KÉPZÉSÉHEZ","ISOFLURANUM","   6X100ML"]
["C05BB02","AETHOXYSKLEROL 10 MG/ML OLDATOS INJEKCIÓ","POLIDOCANOLUM","     5X2ML"]
["C05BB02","AETHOXYSKLEROL 20 MG/ML OLDATOS INJEKCIÓ","POLIDOCANOLUM","     5X2ML"]
["C05BB02","AETHOXYSKLEROL 5 MG/ML OLDATOS INJEKCIÓ","POLIDOCANOLUM","     5X2ML"]
["C05BB02","AETHOXYSKLEROL OESO OLDATOS INJEKCIÓ","POLIDOCANOLUM","      30ML (10 MG/ML)"]
["M01AB16","AFLAMIN 100 MG FILMTABLETTA","ACECLOFENACUM","       60X"]
["R03AK06","AIRFLUSOL SPRAYHALER 25 MIKROGRAMM/125 MIKROGRAMM/ADAG TÚLNYOMÁSOS INHALÁCIÓS SZUSZPENZIÓ","SALMETEROLUM,FLUTICASONE PROPIONATE"]
["R03AK06","AIRFLUSOL SPRAYHALER 25 MIKROGRAMM/250 MIKROGRAMM/ADAG TÚLNYOMÁSOS INHALÁCIÓS SZUSZPENZIÓ","SALMETEROLUM,FLUTICASONE PROPIONATE"]
["N04AA02","AKINETON 2 MG TABLETTA","BIPERIDENIUM","       50X"]
["N04AA02","AKINETON 5 MG/ML OLDATOS INJEKCIÓ","BIPERIDENIUM","     5X1ML"]
["B03AA07","AKTIFERRIN BELSŐLEGED OLDATOS CSEPPEK","FERROSUM SULFURICUM","      30ML"]
["B03AA07","AKTIFERRIN LÁGY KAPSZULA","FERROSUM SULFURICUM","30X"]
["P02CA03","ALBENDAZOL PHARMA VIM 200 MG TABLETTA","ALBENDAZOLUM","   1X2 BUB"]
["C03DA02","ALDACTONE 200MG INJ         ","KALIUM CANRENOICUM","   10X10ML"]
["C01CA02","ALEUDRINA 0,2MG/ML INJ","ISOPRENALIN","     6X1ML"]
["N02BB02","ALGOPYRIN 1 G/2 ML OLDATOS INJEKCIÓ","METAMIZOLUM NATRICUM","    25X2ML"]
["N02BB02","ALGOPYRIN 500 MG TABLETTA","METAMIZOLUM NATRICUM","       20X"]
["L01AA03","ALKERAN 2 MG TABLETTA","MELPHALANUM","       25X"]
["V03AB16","ALKOHOL PHARMAMAGIST 80% OLDATOS INJEKCÓ","ALCOHOLUM 96%","    5X10ML"]
["A04AA05","ALOXI 250 MIKROGRAMM OLDATOS INJEKCIÓ","PALONOZETRONUM","        1X"]
["R05CB06","AMBROBENE LIQUID 7,5 MG/ML OLDATOS INJEKCIÓ","AMBROXOLIUM","     5X2ML"]
["R05CB06","AMBROXOL-TEVA 3 MG/ML SZIRUP","AMBROXOLIUM","     100ML"]
["R05CB06","AMBROXOL-TEVA 30 MG TABLETTA","AMBROXOLIUM","       20X"]
["J01GB06","AMIKACIN B. BRAUN 5 MG/ML OLDATOS INFÚZIÓ","AMIKACINUM","        1X"]
["C03EA01","AMILOZID-TEVA 50 MG/5 MG TABLETTA","HYDROCHLOROTHIAZIDUM,AMILORID","       30X"]
["N05AL05","AMISULPRID-RATIOPHARM 200 MG TABLETTA","AMISULPRIDUM","       60X"]
["N06AA04","ANAFRANIL 10 MG BEVONT TABLETTA","CLOMIPRAMINIUM","       30X"]
["N06AA04","ANAFRANIL 25 MG BEVONT TABLETTA","CLOMIPRAMINIUM","       30X"]
["N06AA04","ANAFRANIL 25 MG/2 ML OLDATOS INJEKCIÓ","CLOMIPRAMINIUM","    10X2ML"]
["N06AA04","ANAFRANIL SR 75 MG RETARD TABLETTA","CLOMIPRAMINIUM","       20X"]
["N07BB01","ANTAETHYL 500 MG TABLETTA","DISULFIRAMUM","       20X"]
[null,"ANTYTOKSYNA 500 /ANTI VIPER","VIPERA","        1X"]
["A10AB06","APIDRA 100 EGYSÉG/ML OLDATOS INJEKCIÓ ELŐRETÖLTÖTT INJEKCIÓS TOLLBAN","GLULIZIN INZULIN","     5X3ML"]
["M01AE02","APRANAX 275 MG FILMTABLETTA","NAPROXENUM","       30X"]
["M01AE02","APRANAX 550 MG FILMTABLETTA","NAPROXENUM","       30X"]
["M03AC06","ARDUAN 4 MG  POR ÉS OLDÓSZER OLDATOS INJEKCIÓHOZ","PIPECURONIUM BROMATUM","    25X2ML"]
["N07CA52","ARLEVERT TABLETTA","CINNARIZINUM","       50X"]
["C01CA03","ARTERENOL INJ.","NOREPINEPHRINUM","    6X1 ML"]
["B01AC30","ASASANTIN RETARD KAPSZULA","DIPYRIDAMOLUM","       30X"]
["L01XX02","ASPARAGINASE 5000 NE INJ. vagy SPECTRILA 10000 E","ASPARAGINASUM","        5X"]
["N02BA01","ASPIRIN 500 MG INJ. 5X5ML (Aspirin i.v. 500mg, Pulver und Lösungsmittel zur Herstellung einer Injektions- oder Infusionslösung)","ACIDUM ACETYLSALICYLICUM","        5X"]
["B01AC06","ASPIRIN PROTECT 100 MG GYOMORNEDV-ELLENÁLLÓ BEVONT TABLETTA","ACIDUM ACETYLSALICYLICUM","       98X"]
["B01AC06","ASPIRIN PROTECT 300 MG GYOMORNEDV-ELLENÁLLÓ BEVONT TABLETTA","ACIDUM ACETYLSALICYLICUM","       50X"]
["N02BA01","ASPIRIN ULTRA 500 MG BEVONT TABLETTA","ACIDUM ACETYLSALICYLICUM","       20X"]
["H02AA02","ASTONIN 0,1 MG TABLETTA","FLUDROCORTISONUM","      100X"]
["N05BB01","ATARAX  25 MG FILMTABLETTA","HYDROXYZINIUM","       25X"]
["B01AB02","ATENATIV 50 NE/ML POR ÉS OLDÓSZER OLDATOS INFÚZIÓHOZ VAGY INJEKCIÓHOZ","ANTITHROMBIN-III.","   1X500NE"]
["C07AB03","ATENOBENE  50 MG FILMTABLETTA","ATENOLOLUM","       50X"]
["C10AA05","ATORVOX 10 MG FILMTABLETTA","ATORVASTATINUM","       30X"]
["C10AA05","ATORVOX 20 MG FILMTABLETTA","ATORVASTATINUM","       30X"]
["C10AA05","ATORVOX 40 MG FILMTABLETTA","ATORVASTATINUM","       30X"]
["C10AA05","ATORVOX 80 MG FILMTABLETTA","ATORVASTATINUM","   30X BUB"]
["C01CA24","ATROPINIUM SULF. 1/3 TABLETTA","ATROPINUM","      100X"]
["A03BA01","ATROPINUM SULFURICUM-EGIS 1 MG/ML OLDATOS INJEKCIÓ","ATROPINUM","    10X1ML"]
["R03BB01","ATROVENT N 21 MIKROGRAMM/ADAG TÚLNYOMÁSOS INHALÁCIÓS OLDAT","IPRATROPIUM BROMATUM","        1X"]
["J01CR02","AUGMENTIN 1000 MG/200 MG POR OLDATOS INJEKCIÓHOZ VAGY INFÚZIÓHOZ","AMOXICILLINUM,CLAVULONIC ACID","       10X"]
["J01CR02","AUGMENTIN 125 MG/31,25 MG/5 ML POR BELSŐLEGES SZUSZPENZIÓHOZ","AMOXICILLINUM,CLAVULONIC ACID"," 100ML-HEZ"]
["J01CR02","AUGMENTIN 250 MG/125 MG FILMTABLETTA","AMOXICILLINUM,CLAVULONIC ACID","       21X"]
["J01CR02","AUGMENTIN 250 MG/62,5 MG/5 ML POR BELSŐLEGES SZUSZPENZIÓHOZ","AMOXICILLINUM,CLAVULONIC ACID"," 100ML-HEZ"]
["J01CR02","AUGMENTIN 500 MG/100 MG POR OLDATOS INJEKCIÓHOZ VAGY INFÚZIÓHO","AMOXICILLINUM,CLAVULONIC ACID","       10X"]
["J01CR02","AUGMENTIN 500 MG/125 MG FILMTABLETTA","AMOXICILLINUM,CLAVULONIC ACID","       21X"]
["J01CR02","AUGMENTIN DUO 400 MG/57 MG/5 ML POR BELSŐLEGES SZUSZPENZIÓHOZ","AMOXICILLINUM,CLAVULONIC ACID","      70ML"]
["J01CR02","AUGMENTIN DUO 875 MG/125 MG FILMTABLETTA","AMOXICILLINUM,CLAVULONIC ACID","       14X"]
["N06AG02","AURORIX 150 MG FILMTABLETTA","MOCLOBEMIDUM","      100X"]
["N06AG02","AURORIX 300 MG FILMTABLETTA","MOCLOBEMIDUM","       60X"]
["S01ED51","AZARGA 10MG/ML+5MG/ML  SZUSZPENZIÓS SZEMCSEPP","TIMOLOLUM,BRINZOLAMID","     1X5ML"]
["N04BD02","AZILECT 1 MG TABLETTA","RASAGILINUM","       30X"]
["J01FA10","AZIWILL 250 MG FILMTABLETTA","AZITHROMYCINUM","    6X BUB"]
["J01FA10","AZIWILL 500 MG FILMTABLETTA","AZITHROMYCINUM","    3X BUB"]
["S01EC04","AZOPT 10 MG/ML SZUSZPENZIÓS SZEMCSEPP","BRINZOLAMIDUM","     1X5ML"]
["M03BX01","BACLOFEN-POL 10 MG TABLETTA","BACLOFENUM","       50X"]
["M03BX01","BACLOFEN-POL 25 MG TABLETTA","BACLOFENUM","       50X"]
["D06AX09","BACTROBAN 20 MG/G KENŐCS","MUPIROCINUM","       15G"]
["R01AX06","BACTROBAN 20 MG/G ORRKENŐCS","MUPIROCINUM","        3G"]
["D06AX20","BANEOCIN KENOCS","BACITRACINUM","       20G"]
["A11DA03","BENFOGAMMA 300 MG FILMTABLETTA","BENFOTHIAMINUM","   30X BUB"]
["A11DA03","BENFOGAMMA 50 MG BEVONT TABLETTA","BENFOTHIAMINUM","      100X"]
["S01HA02","BENOXI 0,4% SZEMCSEPP","OXIBUPROCAINE",0]
["J01CE01","BENZETACIL 2 400 400 INJ.","BENZILPENICILLIN","        1X"]
["B02BD01","BERIPLEX P/N  500 POR ÉS OLDÓSZER OLDATOS INJEKCIÓHOZ","PCC"," 1PAMP+OSZ"]
["R03AL01","BERODUAL INHALÁCIÓS OLDAT","FENOTEROLUM,IPRATROPIUM","    1X20ML"]
["R03AL01","BERODUAL N INHALÁCIÓS AEROSZOL","FENOTEROLUM,IPRATROPIUM","        1X"]
["N07CA01","BETAGEN  8 MG TABLETTA","BETAHISTINIUM","      100X"]
["N07CA01","BETAGEN 16 MG TABLETTA","BETAHISTINIUM","       60X"]
["N07CA01","BETAGEN 24 MG TABLETTA","BETAHISTINIUM","       50X"]
["C07AB02","BETALOC  10 MG TABLETTA","METOPROLOLUM","       30X"]
["C07AB02","BETALOC  50 MG TABLETTA","METOPROLOLUM","      100X"]
["C07AB02","BETALOC 1 MG/ML OLDATOS INJEKCIÓ","METOPROLOLUM","     5X5ML"]
["C07AB02","BETALOC ZOK  25 MG RETARD TABLETTA","METOPROLOLUM","       28X"]
["C07AB02","BETALOC ZOK  50 MG RETARD TABLETTA","METOPROLOLUM","       30X"]
["C07AB02","BETALOC ZOK 100 MG RETARD TABLETTA","METOPROLOLUM","       30X"]
["S01ED02","BETOPTIC 2,5 MG/ML SZUSZPENZIÓS SZEMCSEPP VAGY 5 MG/ML OLDATOS SZEMCSEPP ???","BETAXOLOLUM","       5ML"]
["A11HA05","BIOTIN-RATIOPHARM  5 MG TABL","BIOTIN","       90X"]
["B05AA02","BISEKO OLDATOS INFÚZIÓ","HUMAN SERUMPROTEIN","     250ML"]
["C08DB01","BLOCALCIN 60 MG RETARD TABLETTA","DILTIAZEMUM","       50X"]
["C08DB01","BLOCALCIN 90 MG RETARD TABLETTA","DILTIAZEMUM","       30X"]
["A06AB56","BOLUS LAXANS TABLETTA","EXTRACTUM RHEI SICCUM","       40X"]
["D08AG02","BRAUNOVIDON KENŐCS","POVIDONUM IODINATUM","       20G"]
["V03AB35","BRIDION 100 MG/ML OLDATOS INJEKCIÓ","SUGAMMADEXUM","    10X2ML"]
["C03BA03","BRINALDIX 10 MG TABLETTA","CLOPAMIDUM","       20X"]
["C03BA03","BRINALDIX 20 MG TABLETTA","CLOPAMIDUM","       20X"]
["N06AX26","BRINTELLIX 10 MG FILMTABLETTA","VORTIOXETINUM","   28X BUB"]
[null,"BROLENE EYE DROPS 10 ML","PROPAMIDINE","        1X"]
["G02CB01","BROMOCRIPTIN-RICHTER 2,5 MG TABLETTA","BROMOCRIPTINUM","       30X"]
["J01GB01","BRULAMYCIN 40 MG/ML OLDATOS INJEKCIÓ","TOBRAMYCINUM","    10X2ML"]
["N01BB01","BUCAIN ACTAVIS 5 MG/ML HYPERBAR OLDATOS INJEKCIÓ","BUPIVACAINUM","    10X4ML"]
["N01BB01","BUCAIN ACTAVIS 5 MG/ML OLDATOS INJEKCIÓ","BUPIVACAINUM","    10X5ML"]
["N01BB01","BUCAIN ACTAVIS 5 MG/ML OLDATOS INJEKCIÓ","BUPIVACAINUM","   10X20ML"]
["A07EA06","BUDENOFALK 2 MG VÉGBÉLHAB","BUDESONIDUM","        1X14"]
["A03BB01","BUSCOPAN FLUID 20 MG/ML OLDATOS INJEKCIÓ","BUTYLSCOPOLAMINUM","     5X1ML"]
["A12AA04","CALCICARB 700 MG TABLETTA","CALCIUM CARBONICUM","       10X"]
["A12AA03","CALCIMUSC 100 MG/ML OLDATOS INJEKCIÓ","CALCIUM GLUCONICUM","    10X5ML"]
["A12AA04","CALCIUM-SANDOZ PEZSGŐTABLETTA","CALCIUM CARBONICUM","       20X"]
["N01AX03","CALYPSOL 50 MG/ML OLDATOS INJEKCIÓ","KETAMINUM","    5X10ML"]
["J02AX04","CANCIDAS 50 MG POR OLDATOS INFÚZIÓHOZ VALÓ KONCENTRÁTUMHOZ","CASPOFUNGINUM","        1X"]
["J02AX04","CANCIDAS 70 MG POR OLDATOS INFÚZIÓHOZ VALÓ KONCENTRÁTUMHOZ","CASPOFUNGINUM","        1X"]
["D01AC01","CANESTEN 10 MG/G KRÉM","CLOTRIMAZOLUM","       20G"]
["G01AF02","CANESTEN GYNO 100 MG HÜVELYTABLETTA","CLOTRIMAZOLUM","        6X"]
["L01BC06","CAPECITABINE ACCORD 150 MG FILMTABLETTA","CAPECITABINUM","   60X BUB"]
["L01BC06","CAPECITABINE ACCORD 500 MG FILMTABLETTA","CAPECITABINUM","  120X BUB"]
["C08GA02","CARDILOPIN KOMB 1,5 MG/10 MG MÓDOSÍTOTT HATÓANYAGLEADÁSÚ TABLETTA","AMLODIPINUM,INDAPAMID","   30X BUB"]
["C08GA02","CARDILOPIN KOMB 1,5 MG/5 MG MÓDOSÍTOTT HATÓANYAGLEADÁSÚ TABLETTA","AMLODIPINUM,INDAPAMID","   30X BUB"]
["C02CA04","CARDURA 2 MG TABLETTA","DOXAZOSINUM","       30X"]
["C02CA04","CARDURA 4 MG TABLETTA","DOXAZOSINUM","       30X"]
["C02CA04","CARDURA XL 4 MG MÓDOSÍTOTT HATÓANYAGLEADÁSÚ FILMTABLETTA","DOXAZOSINUM","       30X"]
["C07AG02","CARVEDILOL HEXAL 6,25 MG TABLETTA ","CARVEDILOLUM","30X"]
["M01AB05","CATAFLAM 15 MG/ML BELSŐLEGES SZUSZPENZIÓS CSEPP","DICLOFENACUM","      15ML"]
["M01AB05","CATAFLAM-V 50 MG TABLETTA","DICLOFENACUM","       20X"]
["N06BX18","CAVINTON 10 MG/2 ML OLDATOS INJEKCIÓ","VINPOCETINUM","    10X2ML"]
["N06BX18","CAVINTON 5 MG TABLETTA","VINPOCETINUM","       50X"]
["N06BX18","CAVINTON FORTE TABLETTA","VINPOCETINUM","       90X"]
["J01DB04","CEFAZOLIN SANDOZ 1G POR OLDATOS INJEKCIÓHOZ VAGY INFÚZIÓHOZ","CEFAZOLINUM","       50X"]
["J01DD02","CEFTAZIDIM KABI 1G POR OLDATOS INJEKCIÓHOZ","CEFTAZIDIMUM","   10X10ML"]
["J01DD02","CEFTAZIDIM KABI 2G POR OLDATOS INJEKCIÓHOZ VAGY INFÚZIÓHOZ","CEFTAZIDIMUM","   10X50ML"]
["J01DD04","CEFTRIAXON KABI 1G POR POR OLDATOS INJEKCIÓHOZ VAGY INFÚZIÓHOZ","CEFTRIAXONUM","       10X"]
["J01DD04","CEFTRIAXON KABI 2G POR OLD INFÚZIÓHOZ","CEFTRIAXONUM","       10X"]
["J01DC02","CEFUROXIM KABI  750 MG POR OLDATOS INJEKCIÓHOZ VAGY INFÚZIÓHOZ","CEFUROXINUM","       10X"]
["J01DC02","CEFUROXIM KABI 1500 MG POR OLDATOS INJEKCIÓHOZ VAGY INFÚZIÓHOZ","CEFUROXINUM","       10X"]
["J01DC10","CEFZIL 500 MG FILMTABLETTA","CEFPROZILIUM","       10X"]
["A03FA01","CERUCAL 10 MG TABLETTA","METOCLOPRAMIDUM","       50X"]
["A03FA01","CERUCAL 5 MG/ML OLDATOS INJEKCIÓ","METOCLOPRAMIDUM","    10X2ML"]
["R06AE07","CETIRIZIN HEXAL 10 MG/ML BELSŐLEGES OLDATOS CSEPP","CETIRIZINUM","    1X20ML"]
["R06AE07","CETIRIZIN-EP 10 MG FILMTABLETTA","CETIRIZINUM","       30X"]
["C08DA01","CHINOPAMIL 120 MG RETARD KEMÉNY KAPSZULA","VERAPAMILUM","       30X"]
["C08DA01","CHINOPAMIL 180 MG RETARD KEMÉNY KAPSZULA","VERAPAMILUM","       30X"]
["J01MA02","CIFLOXIN 250 MG FILMTABLETTA","CIPROFLOXACINUM","       10X"]
["J01MA02","CIFLOXIN 500 MG FILMTABLETTA","CIPROFLOXACINUM","       10X"]
["S03AA07","CILOXAN 3 MG/ML OLDATOS SZEM- ÉS FÜLCSEPP","CIPROFLOXACINUM","       5ML"]
["J01MA02","CIPROFLOXACIN KABI 200 MG/100 ML OLDATOS INFÚZIÓ","CIPROFLOXACINUM","  10X100ML"]
["J01MA02","CIPROFLOXACIN KABI 400 MG/200 ML  OLDATOS INFÚZIÓ","CIPROFLOXACINUM","  10X200ML"]
["N05AF05","CISORDINOL 10 MG FILMTABLETTA","ZUCLOPENTHIXOLUM","       50X"]
["N05AF05","CISORDINOL 25 MG FILMTABLETTA","ZUCLOPENTHIXOLUM","       50X"]
["N05AF05","CISORDINOL-ACUTARD 50 MG/ML OLDATOS INJEKCIÓ","ZUCLOPENTHIXOLUM","    10X1ML"]
["N05AF05","CISORDINOL-DEPOT 200 MG/ML OLDATOS INJEKCIÓ","ZUCLOPENTHIXOLUM","    10X1ML"]
["N06AB04","CITALOPRAM ORION 10 MG FILMTABLETTA","CITALOPRAMUM","       28X"]
["N06AB04","CITALOPRAM ORION 20 MG FILMTABLETTA","CITALOPRAMUM","       28X"]
["N06AB04","CITALOPRAM ORION 40 MG FILMTABLETTA","CITALOPRAMUM","       28X"]
["N06BC01","CITRATE DE CAFEINE COOPER 25 MG/ML","COFFEINUM CITRICUM","       50X"]
["A12AA13","CITROKALCIUM 200 TABL","CALCIUM CITRICUM","       50X"]
["J01DD01","CLAFORAN 1G POR OLDATOS INJEKCIÓHOZ VAGY INFÚZIÓHOZ","CEFOTAXINUM","      1X1G"]
["B01AB05","CLEXANE  2000 NE (20 MG)/0,2 ML OLDATOS INJEKCIÓ ELŐRETÖLTÖTT FECSKENDŐBEN","ENOXAPARINUM"," 10X FECSK"]
["B01AB05","CLEXANE  4000 NE (40 MG)/0,4 ML  OLDATOS INJEKCIÓ ELŐRETÖLTÖTT FECSKENDŐBEN","ENOXAPARINUM"," 10X FECSK"]
["B01AB05","CLEXANE  6000 NE (60 MG)/0,6 ML OLDATOS INJEKCIÓ ELŐRETÖLTÖTT FECSKENDŐBEN","ENOXAPARINUM"," 10X FECSK"]
["B01AB05","CLEXANE  8000 NE (80 MG)/0,8 ML OLDATOS INJEKCIÓ ELŐRETÖLTÖTT FECSKENDŐBEN","ENOXAPARINUM"," 10X FECSK"]
["B01AB05","CLEXANE 10000 NE (100 MG)/1,0 ML OLDATOS INJEKCIÓ ELŐRETÖLTÖTT FECSKENDŐBEN","ENOXAPARINUM"," 10X FECSK"]
["J01FF01","CLINDAMYCIN KABI 150 MG/ML  OLDATOS INJEKCIÓ","CLINDAMYCINUM","    10X2ML"]
["J01FF01","CLINDAMYCIN KABI 150MG/ML OLDATOS INJEKCIÓ","CLINDAMYCINUM","    10X4ML"]
["C02AC01","CLONIDIN RATIOPHARM 0,15 MG INJ. VAGY CATAPRESSAN INJ ","CLONIDINUM","       5 X"]
["C02AC01","CLONIDINE HCL ACTAVIS   0,150  MG TABL VAGY CATAPRESSAN 0,150MG TABLETTA","CLONIDINUM","       30X VAGY 100X"]
["D07AD01","CLOSANASOL KENŐCS","CLOBETASOLUM","     1X25G"]
["N06AX14","COAXIL 12,5 MG BEVONT TABLETTA","TIANEPTINUM","       90X"]
["M04AC01","COLCHICUM DISPERT DRG","COLCHICINUM","       20X"]
["R01AX30","COLDASTOP 15000 NE/ML+20 MG/ML OLDATOS ORRCSEPP","RETINOLUM","      20ML"]
["J01XB01","COLOMYCIN 1000000 NE POR OLDATOS INJEKCIÓHOZ, INFÚZIÓHOZ VAGY INHALÁCIÓS OLDATHOZ","COLISTINUM","     10XPA"]
["L01BC06","COLOXET 150 MG FILMTABLETTA","CAPECITABINUM","   60X BUB"]
["L01BC06","COLOXET 500 MG FILMTABLETTA","CAPECITABINUM","  120X BUB"]
["S01ED51","COMBIGAN 2 MG/ML+5 MG/ML OLDATOS SZEMCSEPP","TIMOLOLUM,BRIMONIDIN","     1X5ML"]
["C07AB07","CONCOR  5 FILMTABLETTA","BISOPROLOLUM","       30X"]
["C07AB07","CONCOR 10 MG FILMTABLETTA","BISOPROLOLUM","       60X"]
["C07AB07","CONCOR COR  1,25 MG FILMTABLETTA","BISOPROLOLUM","       20X"]
["C07AB07","CONCOR COR  2,5 MG FILMTABLETTA","BISOPROLOLUM","       30X"]
["N02AX02","CONTRAMAL 100 MG RETARD FILMTABLETTA","TRAMADOLUM","       30X"]
["N02AX02","CONTRAMAL 200 MG RETARD FILMTABLETTA","TRAMADOLUM","       30X"]
["A02BC02","CONTROLOC 40 MG POR OLDATOS INJEKCIÓHOZ","PANTOPRAZOLUM","        1X"]
["N03AG01","CONVULEX 150 MG GYOMORNEDV-ELLENÁLLÓ LÁGY KAPSZULA","ACIDUM VALPROICUM","      100X"]
["N03AG01","CONVULEX 300 MG GYOMORNEDV-ELLENÁLLÓ LÁGY KAPSZULA","ACIDUM VALPROICUM","      100X"]
["N03AG01","CONVULEX 300 MG RETARD FILMTABLETTA","ACIDUM VALPROICUM","       50X"]
["N03AG01","CONVULEX 50 MG/ML SZIRUP GYERMEKEKNEK","ACIDUM VALPROICUM","     100ML"]
["N03AG01","CONVULEX 500 MG  GYOMORNEDV-ELLENÁLLÓ LÁGY KAPSZULA","ACIDUM VALPROICUM","      100X"]
["C08CA05","CORDAFLEX 10 MG FILMTABLETTA","NIFEDIPINUM","      100X"]
["C08CA05","CORDAFLEX 20 MG RETARD FILMTABLETTA","NIFEDIPINUM","       60X"]
["C08CA05","CORDAFLEX 5 MG/DÓZIS SZÁJNYÁLKAHÁRTYÁN ALKALMAZOTT SPRAY","NIFEDIPINUM","       22G"]
["C01BD01","CORDARONE 200 MG TABLETTA","AMIODARONUM","       60X"]
["C01BD01","CORDARONE 50 MG/ML OLDATOS INJEKCIÓ","AMIODARONUM","     6X3ML"]
["C08CA05","CORINFAR 10 MG RETARD FILMTABLETTA","NIFEDIPINUM","      100X"]
["C08CA05","CORINFAR 20 MG RETARD FILMTABLETTA","NIFEDIPINUM","      100X"]
["S01XA12","CORNEREGEL SZEMGÉL","DEXPANTHENOLUM","     1X10G"]
["C01CE02","COROTROPE 1 MG/ML OLDATOS INJEKCIÓ","MILRINONUM","   10X10ML"]
["H02AB09","CORTEF 10 MG TABLETTA","HYDROCORTISONUM","      100X"]
["C01DX12","CORVATON  2 MG TABLETTA","MOLSIDOMINUM","       30X"]
["C01DX12","CORVATON 8 MG RETARD TABLETTA","MOLSIDOMINUM","       30X"]
["C01DX12","CORVATON FORTE 4 MG TABLETTA","MOLSIDOMINUM","       30X"]
["S01ED51","COSOPT OCUMETER PLUS 20 MG/ML + 5 MG/ML OLDATOS SZEMCSEPP","TIMOLOLUM,DORZOLAMID","     1X5ML"]
["J01EE01","COTRIM RATIOPH. INJ 480 MG/5 ML VAGY BACTRIMEL INJ. VAGY BACTRIM INJ.","SULFAMETHOXAZOLUM","       5 X"]
["C09BB04","COVERCARD  3,5 MG/2,5 MG TABLETTA","AMLODIPINUM,PERINDOPRIL","       30X"]
["C09BB04","COVERCARD  5 MG/10 MG TABLETTA","AMLODIPINUM,PERINDOPRIL","       30X"]
["C09BB04","COVERCARD  5 MG/5 MG TABLETTA","AMLODIPINUM,PERINDOPRIL","       30X"]
["C09BB04","COVERCARD 10 MG/10 MG TABLETTA","AMLODIPINUM,PERINDOPRIL","       30X"]
["C09BB04","COVERCARD 10 MG/5 MG TABLETTA","AMLODIPINUM,PERINDOPRIL","       30X"]
["C09BX01","COVERCARD PLUS  5 MG/1,25 MG/5 MG FILMTABLETTA","AMLODIPINUM,PERINDOPRIL,INDAPAMID","       30X"]
["C09BX01","COVERCARD PLUS 10 MG/2,5 MG/10 MG FILMTABLETTA","AMLODIPINUM,PERINDOPRIL,INDAPAMID","       30X"]
["C09BX01","COVERCARD PLUS 10 MG/2,5 MG/5 MG FILMTABLETTA","AMLODIPINUM,PERINDOPRIL,INDAPAMID","       30X"]
["C09AA04","COVEREX-AS  5 MG FILMTABLETTA","PERINDOPRILUM","       30X"]
["C09AA04","COVEREX-AS 10 MG FILMTABLETTA","PERINDOPRILUM","       30X"]
["C09BA04","COVEREX-AS KOMB 5 MG/1,25 MG FILMTABLETTA","PERINDOPRILUM,INDAPAMIDUM","       30X"]
["C09BA04","COVEREX-AS KOMB FORTE FILMTABLETTA","PERINDOPRILUM,INDAPAMIDUM","       30X"]
["A07BA01","CRALEX 125 MG TABLETTA","CARBO ACTIVATUS","       40X"]
["A07BA01","CRALEX KEMENY KAPSZULA","CARBO ACTIVATUS","       25X"]
["R07AA02","CUROSURF 120 MG INJ","FOSZFOLIPID","   2X1,5ML"]
["R07AA02","CUROSURF 80 MG/ML ENDOTRACHEOPULMONÁLIS CSEPEGTETŐ SZUSZPENZÓ","FOSZFOLIPID","     1X3ML"]
["S01ED01","CUSIMOLOL 5 MG/ML OLDATOS SZEMCSEPP","TIMOLOLUM","       5ML"]
["J05AB06","CYMEVENE 500 MG POR OLDATOS INFÚZIÓHOZ VALÓ KONCENTRÁTUMHOZ","GANCYCLOVIRUM","  1 PORAMP"]
["R06AA02","DAEDALON 50 MG TABLETTA","DIPHENHYDRAMINIUM","       10X"]
["R06AA02","DAEDALONETTA VÉGBÉLKÚP GYERMEKEKNEK","DIPHENHYDRAMINIUM","       10X"]
["J01FF01","DALACIN 150 MG KEMÉNY KAPSZULA","CLINDAMYCINUM","       16X"]
["M03CA01","DANTROLEN POR OLDATOS INFÚZIÓHOZ","DANTROLENUM"," 12PORUVEG"]
["P01BA01","DELAGIL 250 MG TABLETTA","CHLOROQUINUM","       30X"]
["N03AG01","DEPAKINE 100 MG/ML POR ÉS OLDÓSZER OLDATOS INJEKCIÓHOZ","NATRIUM VALPROICUM","  1X+1X4ML"]
["N03AG01","DEPAKINE CHRONO 300 MG FILMTABLETTA","ACIDUM VALPROICUM","      100X"]
["N03AG01","DEPAKINE CHRONO 500 MG FILMTABLETTA","ACIDUM VALPROICUM","       30X"]
["H02AB04","DEPO-MEDROL 40 MG/ML SZUSZPENZIÓS INJEKCIÓ","METHYLPREDNISOLONUM","     1X1ML"]
["G03AC06","DEPO-PROVERA 150 MG/ML SZUSZPENZIÓS INJEKCIÓ","MEDROXYPROGESTERONUM","     1X1ML"]
["C02DB01","DEPRESSAN 25 MG TABLETTA","DIHYDRALAZINIUM"," 50XBLISZT"]
["V03AC01","DESFERAL 0,5 G POR OLDATOS INFÚZIÓHOZ","DEFEROXAMINUM","       10X"]
["D11AC08","DETERGENS SULFURATUM FoNo VII. NATURLAND","SULFUR PRAECIPITATUM"," 100G   TK"]
["C05CA53","DETRALEX 500 MG FILMTABLETTA","DIOSMINUM","       60X"]
["H02AB02","DEXAMETHASON KRKA 0,5 MG TABLETTA","DEXAMETHASONUM","      100X"]
["H02AB02","DEXAMETHASON KRKA 8 MG TABLETTA","DEXAMETHASONUM","      100X"]
["H02AB02","DEXAMETHASON-RATIOPHARM 4 MG TABLETTA","DEXAMETHASONUM","      100X"]
["H02AB02","DEXA-RATIOPHARM 4MG INJ","DEXAMETHASONUM","       10X"]
["N05CM18","DEXDOR 100 MIKROGRAMM/ML KONCENTRÁTUM OLDATOS INJEKCIÓHOZ","DEXMEDETOMIDINUM","        5X"]
["N02AA08","DHC CONTINUS  60 MG RETARD TABLETTA","DIHYDROCODEINUM","       20X"]
["R03DA05","DIAPHYLLIN 150 MG TABLETTA","AMINOPHYLLINUM"," 100XBLISZ"]
["R03DA05","DIAPHYLLIN VENOSUM 48 MG/ML OLDATOS INJEKCIÓ","AMINOPHYLLINUM","     5X5ML"]
["A10BB09","DIAPREL MR 60 MG MÓDOSÍTOTT HATÓANYAGLEADÁSÚ TABLETTA","GLICLAZIDUM","       30X"]
["N05BA01","DIAZEPAM DESITIN  5 MG VÉGBÉLOLDAT","DIAZEPAMUM","        5X"]
["N05BA01","DIAZEPAM DESITIN 10 MG VÉGBÉLOLDAT","DIAZEPAMUM","        5X"]
["M01AB05","DICLAC 150 MG RETARD TABLETTA","DICLOFENACUM","       20X"]
["M01AB05","DICLAC 75 MG RETARD TABLETTA","DICLOFENACUM","       50X"]
["S01BC03","DICLOFENAC-PP 1 MG/ML OLDATOS SZEMCSEPP","DICLOFENACUM","       5ML"]
["B02BX01","DICYNONE 125 MG/ML OLDATOS INJEKCIÓ","ETAMSYLATUM","     4X2ML"]
["B02BX01","DICYNONE 250 MG TABLETTA","ETAMSYLATUM","20X BLISZT"]
["A07AA12","DIFICLIR 200 MG FILMTABLETTA","FIDAXOMICINUM","      2X10"]
["M01AB05","DIFLAM 50 MG FILMTABLETTA","DICLOFENACUM","   20X BUB"]
["J02AC01","DIFLUCAN  10 MG/ML POR BELSŐLEGES SZUSZPENZIÓHOZ","FLUCONAZOLUM","    1X35ML"]
["C01AA04","DIGIMERCK 0,1 MG TABLETTA","DIGITOXINUM","       50X"]
["C01AA04","DIGIMERCK MINOR 0,07 MG TABLETTA","DIGITOXINUM","       50X"]
["C01AA05","DIGOXINA KERN PHARMA 0,25 MG/ML VAGY LANICOR INJ.","DIGOXINUM","    5X2 ML"]
["C01AA05","DIGOXIN-RICHTER 250 MG TABLETTA","DIGOXINUM","       50X"]
["B05XB02","DIPEPTIVEN KONCENTRÁTUM OLDATOS INFÚZIÓHOZ","ALANYL-L-GLUTAMINE","  10X100ML"]
["B05XB02","DIPEPTIVEN KONCENTRÁTUM OLDATOS INFÚZIÓHOZ","ALANYL-L-GLUTAMINE","   10X50ML"]
["N03AB02","DIPHEDAN TABLETTA","PHENYTOINUM","       25X"]
["H02AB01","DIPROPHOS INJEKCIÓ","BETAMETHASONUM","     5X1ML"]
["G04BD04","DITROPAN TABLETTA","OXYBUTYNIUM","       30X"]
["N02CX03","DIVASCAN 2,5 MG TABLETTA","IPRAZOCHROMUM","       60X"]
["C01CA07","DOBUTAMIN HEXAL 250 MG POR OLDATOS INFÚZIÓHOZ","DOBUTAMINUM","        1X"]
["A03FA03","DOMPERIDON-EP 10 MG TABLETTA","DOMPERIDONUM","       30X"]
["M01AX02","DONALGIN 250 MG KEMÉNY KAPSZULA","ACIDUM NIFLUMICUM","       30X"]
["C01CA04","DOPAMIN ADMEDA 50 MG KONCENTRÁTUM OLDATOS INFÚZIÓHOZ","DOPAMINIUM","     5X5ML"]
["C02AB01","DOPEGYT 250 MG TABLETTA","METHYLDOPA","       50X"]
["N05CD08","DORMICUM  7,5 MG FILMTABLETTA","MIDAZOLAMUM","       10X"]
["N05CD08","DORMICUM 15 MG FILMTABLETTA","MIDAZOLAMUM","       10X"]
["S01EC03","DORZOLEP 20 MG/ML OLDATOS SZEMCSEPP","DORZOLAMIDUM","     1X5ML"]
["S01ED51","DORZOLEP KOMB OLDATOS SZEMCSEPP","TIMOLOLUM,DORZOLAMID","     1X5ML"]
["G02CB03","DOSTINEX 0,5MG TABL","KABERGOLIN","        8X"]
["C05BX01","DOXIUM 250 MG TABLETTA","CALCIUM DOBESYLICUM","       60X"]
["C05BX01","DOXIUM 500 MG KEMÉNY KAPSZULA","CALCIUM DOBESYLICUM","       60X"]
["J01AA02","DOXYCYCLIN AL 100 MG KEMÉNY KAPSZULA","DOXYCYCLINUM","       20X"]
["J01AA02","DOXYCYCLIN AL 200 MG KEMÉNY KAPSZULA","DOXYCYCLINUM","       10X"]
["J01CA04","DUOMOX  500 MG TABLETTA","AMOXICILLINUM","       20X"]
["J01CA04","DUOMOX 1000 MG TABLETTA","AMOXICILLINUM","       20X"]
["C09BA09","DUOPRIL 20 MG/12,5 MG TABLETTA","FOSINOPRILUM","       28X"]
["S01ED51","DUOTRAV 40 MIKROGRAMM/ML+5 MG/ML OLDATOS SZEMCSEPP","TRAVOPROSTUM,TIMOLOL","   1X2,5ML"]
["C02CA06","EBRANTIL 25 MG OLDATOS INJEKCIÓ","URAPIDILUM","     5X5ML"]
["C02CA06","EBRANTIL 30 MG RETARD KAPSZULA","URAPIDILUM","    50XMUA"]
["C02CA06","EBRANTIL 50 MG OLDATOS INJEKCIÓ","URAPIDILUM","    5X10ML"]
["C02CA06","EBRANTIL 60 MG RETARD KAPSZULA","URAPIDILUM","    50XMUA"]
["C02CA06","EBRANTIL 90 MG RETARD KAPSZULA","URAPIDILUM","    50XMUA"]
["J02AX06","ECALTA 100 MG POR OLDATOS INJEKCIÓHOZ VALÓ KONCENTRÁTUMHOZ","ANIDULAFUNGIN","1X30 ML"]
["C09AA02","EDNYT  2,5 MG TABLETTA","ENALAPRILIUM","       30X"]
["C09AA02","EDNYT  5 MG TABLETTA","ENALAPRILIUM","       30X"]
["C09AA02","EDNYT 10 MG TABLETTA","ENALAPRILIUM","       30X"]
["C09AA02","EDNYT 20 MG TABLETTA","ENALAPRILIUM","       30X"]
["C09BA02","EDNYT HCT 20 MG/12,5 MG TABLETTA","ENALAPRILIUM,HCT","       30X"]
["S01BA07","EFFLUMIDEX LIQUIFILM 1 MG/ML SZUSZPENZIÓS SZEMCSEPP","FLUOROMETHOLONUM","       5ML"]
["B01AC22","EFIENT 10 MG FILMTABLETTA","PRASUGRELUM","       28X"]
["N05BA02","ELENIUM 5 MG BEVONT TABLETTA","CHLORDIAZEPOXIDUM","      500X"]
["B01AF02","ELIQUIS 2,5 MG FILMTABLETTA","APIXABANUM","       60X"]
["B01AF02","ELIQUIS 5 MG FILMTABLETTA","APIXABANUM","       60X"]
["D07AC13","ELOCOM 0,1% KENŐCS","MOMETAZONUM","       20G"]
["D07AC13","ELOCOM 0,1% KRÉM","MOMETAZONUM","       20G"]
["N06AX12","ELONTRIL 150 MG MÓDOSÍTOTT HATÓANYAGLEADÁSÚ TABLETTA","BUPROPIONUM","       30X"]
["A04AD12","EMEND 125 MG KEMÉNY KAPSZULA EMEND 80 MG KEMÉNY KAPSZULA","APREPITANTUM","1X125+2X80"]
["A04AA01","EMETRON 2 MG/ML OLDATOS INJEKCIÓ","ONDANSETRONUM","     5X2ML"]
["A04AA01","EMETRON 4 MG FILMTABLETTA","ONDANSETRONUM","       30X"]
["A04AA01","EMETRON 8 MG FILMTABLETTA","ONDANSETRONUM","       30X"]
["A04AA01","EMETRON 8 MG FILMTABLETTA","ONDANSETRONUM","       10X"]
["N01BB20","EMLA KRÉM 5% 5G","LIDOCAINUM,PRILOCAIN","       5 X"]
["A02BC05","EMOZUL 20 MG GYOMORNEDV-ELLENÁLLÓ KEMÉNY KAPSZULA","ESOMEPRAZOLUM","       28X"]
["A02BC05","EMOZUL 40 MG GYOMORNEDV-ELLENÁLLÓ KEMÉNY KAPSZULA","ESOMEPRAZOLUM","       28X"]
["H01BA01","EMPRESSIN 40 I.E./2 ML","VASOPRESSIN","    5X2 ML"]
["C09AA02","ENAP 1,25 MG/ML OLDATOS INJEKCIÓ","ENALAPRILIUM","        5X"]
["L01AA01","ENDOXAN BEVONT TABLETTA","CYCLOPHOSPHAMIDUM","       50X"]
["A07EA06","ENTOCORT 3 MG RETARD KEMÉNY KAPSZULA","BUDESONIDUM","100X"]
["N03AB02","EPANUTIN 250 MG OLDATOS INJEKCIÓ","PHENYTOINUM","     5X5ML"]
["C01CA26","EPHEDRIN  SINTETICA 50 MG/ML VAGY EPHEDRIN BIOTIKA 50MG/ML","EPHEDRINIUM CHLORATUM","    10X1ML"]
["G02AB02","ERGAM 600 MIKROGRAMM/ML BELSŐLEGES OLDATOS CSEPPEK","ERGOTAMINUM","      10ML"]
["C04AE02","ERGOTOP 30 MG FILMTABLETTA","NICERGOLINUM","       28X"]
["J01FA01","ERYTHROMYCIN 1 G INJ.","ERYTROMYCINUM","       10X"]
["N06AB10","ESCITALOPRAM-TEVA 10 MG FILMTABLETTA","ESCITALOPRAMUM","   30X BUB"]
["N06AB10","ESCITALOPRAM-TEVA 20 MG FILMTABLETTA","ESCITALOPRAMUM","   30X BUB"]
["M03AC09","ESMERON  10 MG/ML OLDATOS INJEKCIÓ","ROCURONIUM BROMATUM","    10X5ML"]
["A03AX13","ESPUMISAN 100 MG/ML BELSŐLEGES EMULZIÓS CSEPPEK","SIMETHICONUM","    1X30ML"]
["A03AX13","ESPUMISAN 40 MG/ML BELSŐLEGES EMULZIÓS CSEPPEK","SIMETHICONUM","      30ML"]
["A03AX13","ESPUMISAN GYÖNGY 40 MG LÁGY KAPSZULA","SIMETHICONUM","       50X"]
["N01AX07","ETOMIDATE-LIPURO 2 MG/ML EMULZIÓS INJEKCIÓ","ETOMIDATUM","   10X10ML"]
["N05CD02","EUNOCTIN 10MG TABL","NITRAZEPAMUM","       10X"]
["R03DA04","EUPHYLONG 100 RETARD KAPSZULA","THEOPHYLLINUM","      100X"]
["R03DA04","EUPHYLONG 200 MG OLDATOS INJEKCIÓ","THEOPHYLLINUM","    5X10ML"]
["R03DA04","EUPHYLONG 250 MG RETARD KAPSZULA","THEOPHYLLINUM","      100X"]
["R03DA04","EUPHYLONG 375 MG RETARD KAPSZULA","THEOPHYLLINUM","      100X"]
["H03AA01","EUTHYROX  75MCG TABL","LEVOTHYROXINUM","       50X"]
["B02AA02","EXACYL FILMTABLETTA","ACIDUM TRANEXAMICUM","       20X"]
["B02AA02","EXACYL OLDATOS INJEKCIÓ","ACIDUM TRANEXAMICUM","     5X5ML"]
["N06DA03","EXELON 4,6 MG/24 ÓRA TRANSZDERMÁLIS TAPASZ","RIVASTIGMINUM","       30X"]
["N06DA03","EXELON 9,5 MG/24 ÓRA TRANSZDERMÁLIS TAPASZ","RIVASTIGMINUM","       30X"]
["N05AX12","EXPLEMED 15 MG TABLETTA","ARIPIPRAZOLUM","   56X BUB"]
["N05AX12","EXPLEMED 30 MG TABLETTA","ARIPIPRAZOLUM","   28X BUB"]
["C10AX09","EZETROL 10 MG TABLETTA","EZETIMIBUM","       30X"]
["V03AF07","FASTURTEC 1,5 MG/ML POR ÉS OLDÓSZER OLDATOS INFÚZIÓHOZ VALÓ KONCENTRÁTUMHOZ","RASBURICASUM"," 3PA+3OAMP"]
["D04AA13","FENISTIL 1MG/G GÉL","DIMETHINDENICUM","     1X50G"]
["R06AB03","FENISTIL JUNIOR 1 MG/ML BELSŐLEGES  OLDATOS CSEPPEK","DIMETHINDENICUM","      20ML"]
["N01AH01","FENTANYL-RICHTER 50 MIKROGRAMM/ML OLDATOS INJEKCIÓ","FENTANYLUM","       10X2 ML"]
["N01AH01","FENTANYL-RICHTER 50 MIKROGRAMM/ML OLDATOS INJEKCIÓ","FENTANYLUM","       50X5 ML"]
["B03AC01","FERINJECT 50 MG VAS/ML OLDATOS INJEKCIÓ VAGY INFÚZIÓ","FERRUM","L INJ ÜVEG"]
["B03AC19","FERRLECIT 12,5 MG/ML OLDATOS INJEKCIÓ","NATRIUM FERRIGLUCONICUM","     5X5ML"]
["B03AD03","FERROGRAD FOLIC FILMTABLETTA","FERROSUM SULFURICUM,ACIDUM FOLICUM","       30X"]
["N06AB08","FEVARIN  50 MG FILMTABLETTA","FLUVOXAMINUM","       60X"]
["N02BB02","FLAMBORIN 500 MG/ML BELSŐLEGES OLDATOS CSEPP","METAMIZOLUM NATRICUM","    1X20ML"]
["M02AA15","FLECTOR 10 MG/G GÉL","DICLOFENACUM","      100G"]
["M01AB05","FLECTOR RAPID 50 MG GRANULÁTUM","DICLOFENACUM","       20X"]
["R03BA05","FLIXOTIDE EVOHALER 125 MIKROGRAMM/ADAG TÚLNYOMÁSOS INHALÁCIÓS SZUSZPENZIÓ","FLUTICASONUM"," 1X120ADAG"]
["R03BA05","FLIXOTIDE EVOHALER 250 MIKROGRAMM/ADAG TÚLNYOMÁSOS INHALÁCIÓS SZUSZPENZIÓ","FLUTICASONUM"," 1X120ADAG"]
["S01AE01","FLOXAL 3 MG/G SZEMKENŐCS","OFLOXACINUM","      1X3G"]
["S01AE01","FLOXAL 3 MG/ML OLDATOS SZEMCSEPP","OFLOXACINUM","     1X5ML"]
["N06AB03","FLOXET 10 MG KEMÉNY KAPSZULA","FLUOXETINUM","       14X"]
["N06AB03","FLOXET 20 MG KEMÉNY KAPSZULA","FLUOXETINUM","       28X"]
["N05AF01","FLUANXOL DEPOT  20 MG/ML OLDATOS INJEKCIÓ","FLUPENTIXOLUM","    10X1ML"]
["J01CF05","FLUCLOXACILLIN 1 G INJ.","FLUCLOXACILLINUM","      10 X"]
["S01BA07","FLUCON 1 MG/ML SZUSZPENZIÓS SZEMCSEPP","FLUOROMETHOLONUM","       5ML"]
["J02AC01","FLUCONAZOLE KABI 2 MG/ML OLDATOS INFÚZIÓ","FLUCONAZOLUM","  10X100ML"]
["R05CB01","FLUIMUCIL 200 MG GRANULÁTUM","ACETYLCYSTEINUM","     30X1G"]
["V03AB23","FLUIMUCIL ANTIDOTE 20% KONCENTRÁTUM INFÚZIÓHOZ","ACETYLCYSTEINUM","    1X25ML"]
["R05CB01","FLUIMUCIL JUNIOR 100 MG GRANULÁTUM","ACETYLCYSTEINUM","     30X1G"]
["R05CB01","FLUIMUCIL MUCOLITICUM 100 MG/ML OLDATOS INJEKCIÓ","ACETYLCYSTEINUM","     5X3ML"]
["V03AB25","FLUMAZENIL-KABI 0,1 MG/ML OLDATOS INJEKCIÓ","FLUMAZENILUM","     5X5ML"]
["N05CD03","FLUNITRAZEPAM CF 1 MG TABL","FLUNITRAZEPAM","       30X"]
["S01JA01","FLUORESCEINE FAURE INJ","FLUORESCEINUM","    10X5ML"]
["B03BB01","FOLSAV 3 MG TABLETTA","ACIDUM FOLICUM","       50X"]
["S01ED51","FOTIL 5 MG/ML+20 MG/ML OLDATOS SZEMCSEPP","TIMOLOLUM,PILOCARPIN","     1X5ML"]
["S01ED51","FOTIL FORTE 5 MG/ML+40 MG/ML OLDATOS SZEMCSEPPp","TIMOLOLUM,PILOCARPIN","     1X5ML"]
["B01AB04","FRAGMIN  2500 NE/0,2 ML OLDATOS INJEKCIÓ ELŐRETÖLTÖTT FECSKENDŐBEN","DALTEPARINUM","  10X0,2ML"]
["B01AB04","FRAGMIN  5000 NE/0,2 ML OLDATOS INJEKCIÓ ELŐRETÖLTÖTT FECSKENDŐBEN","DALTEPARINUM","  10X0,2ML"]
["B01AB06","FRAXIPARINE  2850 NE/0,3 ML OLDATOS INJEKCIÓ","NADROPARINUM","  10X0,3ML"]
["B01AB06","FRAXIPARINE  3800 NE/0,4 ML OLDATOS INJEKCIÓ","NADROPARINUM","  10X0,4ML"]
["B01AB06","FRAXIPARINE  5700 NE/0,6 ML OLDATOS INJEKCIÓ","NADROPARINUM","  10X0,6ML"]
["B01AB06","FRAXIPARINE  7600 NE/0,8 ML OLDATOS INJEKCIÓ","NADROPARINUM","  10X0,8ML"]
["B01AB06","FRAXIPARINE  9500 NE/1,0 ML OLDATOS INJEKCIÓ","NADROPARINUM","    10X1ML"]
["N05BA09","FRISIUM 10 MG TABLETTA","CLOBAZAMUM","      100X"]
["J01FA09","FROMILID 125 MG/5 ML GRANULÁTUM BELSŐLEGES SZUSZPENZIÓHOZ","CLARITHROMYCINUM","  25G 60ML"]
["J01FA09","FROMILID 250 MG FILMTABLETTA","CLARITHROMYCINUM","       14X"]
["J01FA09","FROMILID 500 MG FILMTABLETTA","CLARITHROMYCINUM","       14X"]
["N05BA12","FRONTIN 0,25 MG TABLETTA","ALPRAZOLAMUM","      100X"]
["N05BA12","FRONTIN 0,5 MG TABLETTA","ALPRAZOLAMUM","      100X"]
["D07AB09","FTOROCORT 1 MG/G KENŐCS","TRIAMCINOLONUM","       15G"]
["D07CC01","FUCICORT KRÉM","BETAMETHASONUM","       15G"]
["D06AX01","FUCIDIN 20 MG/G KENŐCS","NATRIUM FUSIDICUM","       15G"]
["D07CA01","FUCIDIN H 20 MG/G+10 MG/G KRÉM","HYDROCORTISONUM, ACIDUM FUSIDICUM","       15G"]
["J02AA01","FUNGIZONE 50 MG POR OLDATOS INFÚZIÓHOZ","AMPHOTERICIN-B","        1X"]
["C03CA01","FURON 250 MG KONCENTRÁTUM OLDATOS INFÚZIÓHOZ","FUROSEMIDUM","        5X"]
["C03CA01","FUROSEMID 40 MG TABLETTA (CHINOIN V RATIOPHARM??)","FUROSEMIDUM","       20X"]
["C03CA01","FUROSEMID AL 500 MG TABLETTA","FUROSEMIDUM","       50X"]
["C03CA01","FUROSEMID-CHINOIN 10 MG/ML OLDATOS INJEKCIÓ","FUROSEMIDUM","    25X2ML"]
["A10BH02","GALVUS 50 MG TABLETTA","VILDAGLIPTINUM","    56XBUB"]
["J01GB03","GENTAMICIN SANDOZ 80 MG OLDATOS INJEKCIÓ","GENTAMYCINUM","    50X2ML"]
["N02BB03","GERMICID-C  VÉGBÉLKÚP","AMINOPHENAZONUM","        6X"]
["N05CD13","GERODORM TABLETTA","CINOLAZEPAMUM","       30X"]
["C01BA08","GILURYTMAL 50 MG/10 ML INJ.","AJMALINUM","        5X"]
["A10BB12","GLIMEPIRID-ZENTIVA 2 MG TABLETTA","GLIMEPIRIDUM","       30X"]
["A10BB12","GLIMEPIRID-ZENTIVA 4 MG TABLETTA","GLIMEPIRIDUM","       30X"]
["H04AA01","GLUCAGEN 1 MG HYPOKIT POR ÉS OLDÓSZER OLDATOS INJEKCIÓHOZ","GLUCAGONUM","  1 PORAMP"]
["A10BF01","GLUCOBAY  50 MG TABLETTA","ACARBOSUM","      120X"]
["A10BB08","GLURENORM 30 MG TABLETTA","GLIQUIDONUM","       50X"]
["B05CX10","GLUTARSIN E OLDATOS INFÚZIÓ","ARGININUM","     500ML"]
["B05XA29","GLÜKÓZ-1-FOSZFÁT FRESENIUS 1 MÓLOS KONCENTRÁTUM OLDATOS INFÚZIÓHOZ","GLUCOSE PHOSPHATE","5X10 ML"]
["H01BA04","GLYPRESSIN 0,85 MG OLDATOS INJEKCIÓ","TERLIPRESSINUM","   5X8,5ML"]
["N03AX12","GORDIUS 300 MG KEMÉNY KAPSZULA","GABAPENTINUM","      100X"]
["N03AX12","GORDIUS 400 MG KEMÉNY KAPSZULA","GABAPENTINUM","      100X"]
["A06AB08","GUTTALAX CSEPPEK","NATRIUM PICOSULFURICUM","      30ML"]
[null,"GYNIPRAL 10 UG/2ML","HEXOPRENALIN","        5X"]
["B02BB01","HAEMOCOMPLETTAN P 20 MG/ML POR OLDATOS INJEKCIÓHOZ VAGY INFÚZIÓHOZ","FIBRINOGENUM","  1X1PORUV"]
["N05AD01","HALOPERIDOL DECANOAT-RICHTER 50 MG/ML OLDATOS INJEKCIÓ","HALOPERIDOLUM","     5X1ML"]
["N05AD01","HALOPERIDOL-RICHTER 1,5 MG TABLETTA","HALOPERIDOLUM","       50X"]
["N05AD01","HALOPERIDOL-RICHTER 2 MG/ML BELSŐLEGES OLDATOS CSEPPEK","HALOPERIDOLUM","      10ML"]
["N05AD01","HALOPERIDOL-RICHTER 5 MG/ML OLDATOS INJEKCIÓ","HALOPERIDOLUM","     5X1ML"]
["A05BA","HEPA-MERZ GRANULÁTUM BELSŐLEGES OLDATHOZ","L-ORNITHINIUM-L-ASPARTICUM","     30X5G"]
["B01AB01","HEPARIBENE NA 25000 NE OLDATOS INJEKCIÓ","HEPARINUM","     5X5ML"]
["J05AB01","HERPESIN 25 MG/ML POR OLDATOS INFÚZIÓHOZ VALÓ KONCENTRÁTUMHOZ","ACYCLOVIRUM","       10X"]
["A07XA04","HIDRASEC 100 MG KEMÉNY KAPSZULA","RACECADOTRILUM","   10X BUB"]
["A07XA04","HIDRASEC BABY 10 MG GRANULÁTUM BELSŐLEGES SZUSZPENZIÓHOZ","RACECADOTRILUM","       16X"]
["A07XA04","HIDRASEC JUNIOR 30 MG GRANULÁTUM BELSŐLEGES SZUSZPENZIÓHOZ","RACECADOTRILUM","       16X"]
["M01AC01","HOTEMIN 20 MG/ML OLDATOS INJEKCIÓ","PIROXICAMUM","     5X1ML"]
["J06BA02","HUMAGLOBIN LIQUID 50 G/L OLDATOS INFÚZIÓ","HUMAN IGG","1X10G/200ML"]
["J06BA02","HUMAGLOBIN LIQUID 50 G/L OLDATOS INFÚZIÓ ","HUMAN IGG"," 1X1G/20ML"]
["J06BA02","HUMAGLOBIN LIQUID 50 G/L OLDATOS INFÚZIÓ  ","HUMAN IGG","1X5G/100ML"]
["A10AB04","HUMALOG 100 E/ML OLDATOS INJEKCIÓ PATRONBAN","LISPRO-INSULINUM","  2X5X3 ML"]
["A10AD04","HUMALOG MIX 25 100E/ML SZUSZPENZIÓS INJEKCIÓ PATRONBAN","LISPRO-INSULINUM, NPH LISPRO","  2X5X3 ML"]
["A10AD04","HUMALOG MIX 50 100E/ML SZUSZPENZIÓS INJEKCIÓ PATRONBAN","LISPRO-INSULINUM, NPH LISPRO","  2X5X3 ML"]
["S01FA04","HUMAPENT 5 MG/ML OLDATOS SZEMCSEPP","CYCLOPENTOLATIUM","      10ML"]
["C07AA05","HUMA-PRONOL 40 MG TABLETTA","PROPRANOLOLUM","       50X"]
["S01EC01","HUMA-ZOLAMIDE 250 MG TABLETTA","ACETAZOLAMIDUM","       20X"]
["A10AD01","HUMULIN M3 (30/70) 100 NE/ml szuszpenziós injekció patronban","INSULINUM, NPH","     5X3ML"]
["A10AC01","HUMULIN N 100 NE/ml szuszpenziós injekció patronban","INSULINUM NPH","     5X3ML"]
["A10AB01","HUMULIN R 100 NE/ml oldatos injekció patronban","INSULINUM HUMAN","     5X3ML"]
["N02AA08","HYDROCODIN 10 MG TABLETTA","DIHYDROCODEINUM","       20X"]
["H02AB09","HYDROCORTISON VUAB 100 MG POR OLD INJ.","HYDROCORTISONUM","        1X"]
["C03AA03","HYPOTHIAZID  25 MG TABLETTA","HYDROCHLOROTHIAZIDUM","       20X"]
["D03AX55","IALUGEN PLUS KRÉM","SULFADIAZINUM","       60G"]
["J01DH51","IMIPENEM/CILASTATIN KABI 500 MG/500 MG POR OLDATOS INFÚZIÓHOZ","IMIPENEMUM","       10X"]
["L04AX01","IMURAN 25 MG FILMTABLETTA","AZATHIOPRINUM","100X"]
["L04AX01","IMURAN 50 MG FILMTABLETTA","AZATHIOPRINUM","      100X"]
["M01AB01","INDOMETACINUM  25 MG KEMÉNY KAPSZULA","INDOMETACINUM","       30X"]
["A12AA07","INF. CALCII CHLORIDI 0,44 M 100 ML","CALCIUM CHLORIDUM","        1X"]
["C03DA04","INSPRA 25 MG FILMTABLETTA","EPLERENONUM","       30X"]
["C03DA04","INSPRA 50 MG FILMTABLETTA","EPLERENONUM","       30X"]
["A10AC01","Insulatard Penfill 100 NE/ml szuszpenziós injekció patronban","INSULINUM NPH","     5X3ML"]
["A10AC01","Insuman Basal SoloStar 100 NE/ml szuszpenziós injekció elõretöltött injekciós tollban","INSULINUM NPH","     5X3ML"]
["A10AD01","Insuman Comb 25 100 NE/ml szuszpenziós injekció patronban","INSULINUM,NPH","     5X3ML"]
["A10AD01","Insuman Comb 25 SoloStar 100 NE/ml szuszpenziós injekció elõretöltött injekciós tollban","INSULINUM,NPH","     5X3ML"]
["A10AB01","Insuman Rapid Solostar 100 NE/ml oldatos injekció elõretöltött injekciós tollban","INSULINUM HUMAN","     5X3ML"]
["B01AC16","INTEGRILIN 0,75 MG/ML OLDATOS INJEKCIÓ","EPTIFIBATIDUM","   1X100ML"]
["B01AC16","INTEGRILIN 2 MG/ML OLDATOS INJEKCIÓ","EPTIFIBATIDUM","    1X10ML"]
["J06BA02","INTRATECT 50 G/L OLDATOS INFÚZIÓ","HUMAN IGG","   1X100ML"]
["J06BA02","INTRATECT 50 G/L OLDATOS INFÚZIÓ","HUMAN IGG","   1X200ML"]
["J01DH03","INVANZ 1 G POR OLDATOS INFÚZIÓHOZ VALÓ KONCENTRÁTUMHOZ","ERTAPENEMUM","        1X"]
["N05AX13","INVEGA 6 MG RETARD TABLETTA","PALIPERIDONUM","       28X"]
["N05AX13","INVEGA 9 MG RETARD TABLETTA","PALIPERIDONUM","       28X"]
["C09DA04","IRBESARTAN HYDROCHLOROTHIAZIDE ZENTIVA 150 MG/12,5 MG FILMTABLETTA","IRBESARTANUM","       28X"]
["C09DA04","IRBESARTAN HYDROCHLOROTHIAZIDE ZENTIVA 300 MG/12,5 MG FILMTABLETTA","IRBESARTANUM","       28X"]
["C09DA04","IRBESARTAN HYDROCHLOROTHIAZIDE ZENTIVA 300 MG/25 MG FILMTABLETTA","IRBESARTANUM","       28X"]
["C09CA04","IRBESARTAN ZENTIVA 150 MG FILMTABLETTA","IRBESARTANUM","       28X"]
["C09CA04","IRBESARTAN ZENTIVA 300 MG FILMTABLETTA","IRBESARTANUM","       28X"]
["H03BC01","IRENAT 300 CSEPP 40 ML","NATRIUM PERCHLORAT","        1X"]
["J04AC01","ISONICID 100 MG TABLETTA","ISONIAZIDUM","      100X"]
["J05AX05","ISOPRINOSINE 50 MG/ML SZIRUP","INOSITOLUM","     150ML"]
["J05AX05","ISOPRINOSINE 500 MG TABLETTA","INOSITOLUM","       50X"]
["C08DA01","ISOPTIN 240 MG RETARD FILMTABLETTA","VERAPAMILUM","       30X"]
["A10BD07","JANUMET 50 MG/1000 MG FILMTABLETTA","METFORMINUM,SITAGLIPTIN","       56X"]
["A10BX12","JARDIANCE 10 MG FILMTABLETTA","EMPAGLIFLOSINUM","   30X BUB"]
["A10BX12","JARDIANCE 25 MG FILMTABLETTA","EMPAGLIFLOSINUM","   30X BUB"]
["A10BD11","JENTADUETO 2,5 MG/ 850 MG FILMTABLETTA","METFORMINUM,LINAGLIPTIN","  60X1 BUB"]
["A10BD11","JENTADUETO 2,5 MG/1000 MG FILMTABLETTA","METFORMINUM,LINAGLIPTIN","  60X1 BUB"]
["N04BD01","JUMEX  5 MG TABLETTA","SELEGILINUM","       50X"]
["N04BD01","JUMEX 10 MG TABLETTA","SELEGILINUM","       30X"]
["A12BA01","KALDYUM 600 MG RETARD KEMÉNY KAPSZULA","KALIUM CHLORATUM","      100X"]
["B05XA01","KALIUM CHLORATUM 10% PM KONCENTRÁTUM OLDATOS INFÚZIÓHOZ","KALIUM CHLORATUM"," 100X10 ML"]
["A12BA01","KÁLIUM-R TABLETTA","KALIUM CHLORATUM","       50X"]
["N04AA04","KEMADRIN 5 MG TABLETTA","PROCYCLINIDUM","      100X"]
["H02AB08","KENALOG 40 MG/ML SZUSZPENZIÓS INJEKCIÓ","TRIAMCINOLONUM","     5X1ML"]
["N03AX14","KEPPRA 100 MG/ML BELSŐLEGES OLDAT","LEVETIRACETAMUM","     300ML"]
["N03AX14","KEPPRA 100 MG/ML KONCENTRÁTUM OLDATOS INFÚZIÓHOZ","LEVETIRACETAMUM","       10X"]
["N05AH04","KETILEPT PROLONG  50 MG RETARD TABLETTA","QUETHIAPINUM","   60X BUB"]
["N05AH04","KETILEPT PROLONG 200 MG RETARD TABLETTA","QUETHIAPINUM","   60X BUB"]
["N05AH04","KETILEPT PROLONG 300 MG RETARD TABLETTA","QUETHIAPINUM","   60X BUB"]
["N05AH04","KETILEPT PROLONG 400 MG RETARD TABLETTA","QUETHIAPINUM","   60X BUB"]
["M01AE17","KETODEX 25 MG FILMTABLETTA","DEXKETOPROFENUM","   20X BUB"]
["V06DD","KETOSTERIL FILMTABLETTA","AMINOSAVKEVERÉK","      100X"]
["J01FA09","KLACID 50 MG/ML POR OLDATOS INFÚZIÓHOZ VALÓ KONCENTRÁTUMHOZ","CLARITHROMYCINUM","  1 PORAMP"]
["J01FF01","KLIMICIN 300 MG KEMÉNY KAPSZULA","CLINDAMYCINUM","       16X"]
["P01AB01","KLION 250 MG TABLETTA","METRONIDAZOLUM","       20X"]
["J01XD01","KLION 5 MG/ML OLDATOS INFÚZIÓ","METRONIDAZOLUM","  10X100ML"]
["B02BA01","KONAKION 10 MG/1 ML OLDATOS INJEKCIÓ","PHYTOMENADIONUM","     5X1ML"]
["B02BA01","KONAKION 2 MG/0,2 ML PEDIATRIC OLDATOS INJEKCIÓ","PHYTOMENADIONUM","   5X0,2ML"]
["A09AA02","KREON 10 000 EGYSÉG GYOMORNEDV-ELLENÁLLÓ KEMÉNY KAPSZUL","PANCREATINUM","       50X"]
["A09AA02","KREON 25 000 EGYSÉG GYOMORNEDV-ELLENÁLLÓ KEMÉNY KAPSZULA","PANCREATINUM","      100X"]
["A06AD11","LAEVOLAC-LAKTULOZ  134G SZIRUP","LACTULOSUM","     100ML"]
["A06AD11","LAEVOLAC-LAKTULÓZ  670 MG/ML SZIRUP","LACTULOSUM","     500ML"]
["N03AX09","LAMOLEP  25 MG TABLETTA","LAMOTRIGINUM","       30X"]
["N03AX09","LAMOLEP  50 MG TABLETTA","LAMOTRIGINUM","       30X"]
["N03AX09","LAMOLEP 100 MG TABLETTA","LAMOTRIGINUM","       30X"]
["A10AE04","LANTUS 100 EGYSÉG/ML OLDATOS INJEKCIÓ PATRONBAN","INSULIN GLARGINE","     5X3ML"]
["A10AE04","LANTUS SOLOSTAR 100 EGYSÉG/ML OLDATOS INJEKCIÓ ELŐRETÖLTÖTT INJEKCIÓS TOLLBAN","INSULIN GLARGINE","    5 X3ML"]
["L01BB03","LANVIS TABL. 40 MG","THIOGUANINUM","      25 X"]
["S01EE01","LAPROSEP 0,05 MG/ML OLDATOS SZEMCSEPP","LATANOPROSTUM","   1X2,5ML"]
["S01ED51","LAPROSEP KOMB 0,05MG/ML+5MG/ML OLD SZEMC","TIMOLOLUM,LATANOPROST","   1X2,5ML"]
[null,"L-CARN 1 G INJ. 5 ML","L-CARNITIN","       5 X"]
["J01MA12","LEFLOKIN 250 MG FILMTABLETTA","LEVOFLOXACINUM","        5X"]
["A05BA03","LEGALON  70 MG BEVONT TABLETTA","SILYMARINUM","      100X"]
["A05BA03","LEGALON 140 MG KEMÉNY KAPSZULA","SILYMARINUM","       60X"]
["R06AX29","LENDIN 20 MG TABLETTA","BILASTINUM","       20X"]
["N05AH02","LEPONEX  25 MG TABLETTA","CLOZAPINUM","       50X"]
["N05AH02","LEPONEX 100 MG TABLETTA","CLOZAPINUM","      100X"]
["C08CA13","LERCATON 10 MG FILMTABLETTA","LERCANIDIPINUM","   60X BUB"]
["C08CA13","LERCATON 20 MG FILMTABLETTA","LERCANIDIPINUM","   60X BUB"]
["C10AA04","LESCOL XL 80 MG RETARD TABLETTA","FLUVASTATINUM","       28X"]
["A10AE05","Levemir 100 E/ml oldatos injekció patronban","INSULINUM DETEMIRUM","    10X3ML"]
["N03AX14","LEVETIRACETAM TEVA 250 MG FILMTABLETTA","LEVETIRACETAMUM","      100X"]
["N03AX14","LEVIL 1000 MG FILMTABLETTA","LEVETIRACETAMUM","   60X BUB"]
["N03AX14","LEVIL 500 MG FILMTABLETTA","LEVETIRACETAMUM","      120X"]
["R06AE09","LEVOCEP 5 MG FILMTABLETTA","LEVOCETIRIZINUM","    30X AL"]
["J01MA12","LEVOFLOXACIN KABI 5 MG/ML OLDATOS INFÚZIÓ","LEVOFLOXACINUM","   1X100ML"]
["H01CA01","LH-RH FERRING INJ","GONADORELINUM","     1X1ML"]
["N01BB52","LIDOCAIN-ADRENALIN 20 MG/0,01 MG/ML OLDATOS INJEKCIÓ","LIDOCAINUM,EPINEPHRINE","   10X10ML"]
["N01BB02","LIDOCAIN-EGIS 10 MG/ML OLDATOS INJEKCIÓ","LIDOCAINUM","   10X10ML"]
["N01BB02","LIDOCAIN-EGIS 20 MG/ML OLDATOS INJEKCIÓ","LIDOCAINUM","   10X10ML"]
["N01BB02","LIDOCAIN-EGIS 20 MG/ML OLDATOS INJEKCIÓ","LIDOCAINUM","    10X2ML"]
["D04AB01","LIDOCAIN-EGIS KÜLSŐLEGES OLDATOS SPRAY","LIDOCAINUM","       38G"]
["J01GB06","LIKACIN 250 MG/ML OLDATOS INJEKCIÓ","AMIKACINUM","    50X2ML"]
["M03BX01","LIORESAL INTRATHECAL 10 MG/5 ML INJ. VAGY   BACLOFEN INJ:","BACLOFENUM","        1X"]
["C10AB05","LIPIDIL 267 MG KEMÉNY KAPSZULA","FENOFIBRATUM","       30X"]
["C10AB05","LIPIDIL SUPRA 160 MG FILMTBLETTA","FENOFIBRATUM","       30X"]
["C09BB03","LISONORM 10 MG/5 MG TABLETTA","LISINOPRILUM,AMLODIPIN","       30X"]
["C09BB03","LISONORM 20 MG/5 MG TABLETTA","LISINOPRILUM,AMLODIPIN","   30X BUB"]
["C09BB03","LISONORM FORTE 20 MG/10 MG TABLETTA","LISINOPRILUM,AMLODIPIN","       30X"]
["C09AA03","LISOPRESS  5 MG TABLETTA","LISINOPRILUM","       28X"]
["C09AA03","LISOPRESS 10 MG TABLETTA","LISINOPRILUM","       28X"]
["C09AA03","LISOPRESS 20 MG TABLETTA","LISINOPRILUM","       28X"]
["N05AN01","LITICARB 500 MG TABLETTA","LITHIUM","       20X"]
["C07AB05","LOKREN 20 MG FILMTABLETTA","BETAXOLOLUM","       28X"]
["R06AX27","LORDESTIN 0,5 MG/ML BELSŐLEGES OLDAT","DESLORATADINUM","???"]
["R06AX27","LORDESTIN 5 MG FILMTABLETTA","DESLORATADINUM","???"]
["C09AA07","LOTENSIN  5 MG FILMTABLETTA","BENAZEPRILIUM","       28X"]
["C09AA07","LOTENSIN 20 MG FILMTABLETTA","BENAZEPRILIUM","       14X"]
["H03AA01","L-THYROXIN 0,5 MG OLDATOS INJEKCIÓ","LEVOTHYROXINUM","        1X"]
["H03AA01","L-THYROXIN HENNING 100 MIKROGRAMM TABLETTA","LEVOTHYROXINUM","      100X"]
["H03AA01","L-THYROXIN HENNING 50 MIKROGRAMM TABLETTA","LEVOTHYROXINUM","      100X"]
["N06AA21","LUDIOMIL 25 MG FILMTABLETTA","MAPROTILINIUM","       30X"]
["N03AX16","LYRICA  75 MG KEMÉNY KAPSZULA","PREGABALINUM","       56X"]
["N03AX16","LYRICA 150 MG KEMÉNY KAPSZULA","PREGABALINUM","       56X"]
["M03AB01","LYSTHENON 100MG/5 ML INJ. VAGY MIDARINE INJ.","SUXAMETHONIUM","        5X"]
["A10BX10","LYXUMIA 10 MIKROGRAMM OLDATOS INJEKCIÓ","LIXISENATIDUM","    1X3 ML"]
["N04BA02","MADOPAR 100 MG/25 MG DISZPERGÁLÓDÓ TABLETTA","LEVODOPUM,BENSERAZIDUM","      100X"]
["N04BA02","MADOPAR 100 MG/25 MG RETARD KEMÉNY KAPSZULA","LEVODOPUM,BENSERAZIDUM","      100X"]
["N04BA02","MADOPAR 200 MG/50 MG TABLETTA","LEVODOPUM,BENSERAZIDUM","      100X"]
["A12CC02","MAGNESIUM SULFURICUM PHARMAMAGIST 1 G/10 ML OLDATOS INJEKCIÓ","MAGNESIUM SULFURICUM"," 100X10 ML"]
["B03AB05","MALTOFER 50 MG/ML BELSŐLEGES OLDATOS CSEPPEK","FERRUM HYDROXIDUM","      30ML"]
["B03AD19","MALTOFER FOL 100 MG/0,35 MG RÁGÓTABLETTA","FERRUM HYDROXIDUM, ACIDUM FOLICUM","       30X"]
["N01BB01","MARCAIN 2,5 MG/ML OLDATOS INJEKCIÓ","BUPIVACAINUM","    5X20ML"]
["B01AA03","MARFARIN 1 MG TABLETTA","WARFARINUM","       30X"]
["B01AA03","MARFARIN 3 MG TABLETTA","WARFARINUM","       30X"]
["B01AA03","MARFARIN 5 MG TABLETTA","WARFARINUM","       30X"]
["N02AB03","MATRIFEN  12 MIKROGRAMM/H TRANSZDERMÁLIS TAPASZ","FENTANYLUM","        5X"]
["N02AB03","MATRIFEN  25 MIKROGRAMM/H TRANSZDERMÁLIS TAPASZ","FENTANYLUM","        5X"]
["N02AB03","MATRIFEN  50 MIKROGRAMM/H TRANSZDERMÁLIS TAPASZ","FENTANYLUM","        5X"]
["N02AB03","MATRIFEN  75 MIKROGRAMM/H TRANSZDERMÁLIS TAPASZ","FENTANYLUM","        5X"]
["N02AB03","MATRIFEN 100 MIKROGRAMM/H TRANSZDERMÁLIS TAPASZ","FENTANYLUM","        5X"]
["S01BA01","MAXIDEX 1 MG/ML SZUSZPENZIÓS SZEMCSEPP","DEXAMETHASONUM","     1X5ML"]
["J01DE01","MAXIPIME 1G POR OLDATOS INJEKCIÓHOZ","CEFEPIMUM","      1X1G"]
["J01DE01","MAXIPIME 2G POR OLDATOS INJEKCIÓHOZ","CEFEPIMUM","      1X2G"]
["N05BA03","MEDAZEPAM-TEVA 10 MG TABLETTA","MEDAZEPAMUM","       50X"]
["H02AB04","MEDROL 100 MG TABLETTA","METHYLPREDNISOLONUM","       20X"]
["H02AB04","MEDROL 16 MG TABLETTA","METHYLPREDNISOLONUM","       50X"]
["H02AB04","MEDROL 32 MG TABLETTA","METHYLPREDNISOLONUM","       20X"]
["H02AB04","MEDROL 4 MG TABLETTA","METHYLPREDNISOLONUM","      100X"]
["A10BA02","MEFORAL  500 MG FILMTABLETTA","METFORMINUM","       60X"]
["A10BA02","MEFORAL  850 MG FILMTABLETTA","METFORMINUM","       60X"]
["A10BA02","MEFORAL 1000 MG FILMTABLETTA","METFORMINUM","       60X"]
["L02AB01","MEGESIN 160 MG TABLETTA","MEGESTROLUM","      100X"]
["M01AC06","MELOXEP 15 MG TABLETTA","MELOXICAMUM","       30X"]
["N06BX03","MEMORIL  800 MG FILMTABLETTA","PIRACETAMUM","       90X"]
["N06BX03","MEMORIL 1200 MG FILMTABLETTA","PIRACETAMUM","   60X BUB"]
["L01BB02","MERCAPTOPURINUM  50MG TBL. VAGY PURI-NETHOL TABLETTA","MERCAPTOPURIN","       30X"]
["J01DH02","MEROPENEM KABI  500 MG POR OLDATOS INJEKCIÓHOZ VAGY INFÚZIÓHOZ","MEROPENEMUM","   10X20ML"]
["J01DH02","MEROPENEM KABI 1G POR OLDATOS INJEKCIÓHOZ VAGY INFÚZIÓHOZ","MEROPENEMUM","   10X20ML"]
["N07AA02","MESTINON 60 MG DRAZSÉ","PYRIDOSTIGMINIUM","      150X"]
["N07AA02","MESTINON INJ. 5 ML","PYRIDOSTIGMINIUM","       5 X"]
["M01AX17","MESULID 100 MG TABLETTA","NIMESULID","       30X"]
[null,"METACOLINA LOFARMA 1% 30MG INJ","METACOLIN","       10X"]
["N07BC02","METADON-EP  5 MG TABLETTA","METHADONIUM","      200X"]
["N07BC02","METADON-EP  5 MG TABLETTA","METHADONIUM","      200X"]
["N07BC02","METADON-EP 20 MG TABLETTA","METHADONIUM","      180X"]
["N07BC02","METADON-EP 20 MG TABLETTA","METHADONIUM","      180X"]
["M01CC01","METALCAPTASE 150 MG TABL.","PENICILLAMINUM","      50 X"]
["G02AB01","METHERGI INJ. 0,2 MG","METHYLERGOMETRINUM","       5 X"]
["S01XA20","METHOCEL2% SZEMCSEPP 1X30G","HYPROMELLOSUM","        1X"]
["H02AB04","METILPREDNIZOLON-TEVA 40 MG POR OLDATOS INJEKCIÓHOZ","METHYLPREDNISOLONUM","        1X"]
["H03BB02","METOTHYRIN 10 MG TABLETTA","THIAMAZOLUM","       25X"]
["N02BE01","MEXALEN  125 MG VÉGBÉLKÚP CSECSEMŐKNEK","PARACETAMOLUM","        6X"]
["N02BE01","MEXALEN  250 MG VÉGBÉLKÚP KISGYERMEKEKNEK","PARACETAMOLUM","        6X"]
["N06AX03","MIAGEN 10 MG FILMTABLETTA","MIANSERINIUM","       90X"]
["N06AX03","MIAGEN 30 MG FILMTABLETTA","MIANSERINIUM","       30X"]
["N06AX03","MIAGEN 60 MG FILMTABLETTA / MIANSERIN-MERCK 6","MIANSERINIUM","       30X"]
["N05CD08","MIDAZOLAM ACCORD 5 MG/ML OLDATOS INJEKCIÓ VAGY INFÚZIÓ","MIDAZOLAMUM","   10X10ML"]
["N05CD08","MIDAZOLAM ACCORD 5 MG/ML OLDATOS INJEKCIÓ VAGY INFÚZIÓ","MIDAZOLAMUM","    10X1ML"]
["N05CD08","MIDAZOLAM ACCORD 5 MG/ML OLDATOS INJEKCIÓ VAGY INFÚZIÓ","MIDAZOLAMUM","    10X3ML"]
["M03BX04","MIDERIZONE  50 MG FILMTABLETTA","TOLPERISONUM","       30X"]
["M03BX04","MIDERIZONE 150 MG FILMTABLETTA","TOLPERISONUM","       30X"]
["A11DB01","MILGAMMA BEVONT TABLETTA","BENFOTHIAMIN,B12","      100X"]
["A11DB01","MILGAMMA N LÁGY KAPSZULA","BENFOTHIAMIN,B6,B12","      100X"]
["A11DB01","MILGAMMA N OLDATOS INJEKCIÓ","BENFOTHIAMIN,B6,B12","     5X2ML"]
["M04AA01","MILURIT 100 MG TABL","ALLOPURINOLUM","       50X"]
["M04AA01","MILURIT 300 MG TABL","ALLOPURINOLUM","       30X"]
["C02CA01","MINIPRESS 1 MG RETARD KEMÉNY KAPSZULA","PRAZOSINUM","       30X"]
["C02CA01","MINIPRESS 2 MG RETARD KEMÉNY KAPSZULA","PRAZOSINUM","       30X"]
["C02CA01","MINIPRESS 4 MG RETARD KEMÉNY KAPSZULA","PRAZOSINUM","       30X"]
["C02CA01","MINIPRESS 6 MG RETARD KEMÉNY KAPSZULA","PRAZOSINUM","       30X"]
["H01BA02","MINIRIN 0,1 MG TABLETTA","DESMOPRESSINUM","       30X"]
["H01BA02","MINIRIN 0,1 MG/ML OLDATOS ORRSPRAY ","DESMOPRESSINUM","        1X"]
["H01BA02","MINIRIN 4 MIKROGRAMMG/ML OLDATOS INJEKCIÓ","DESMOPRESSINUM","    10X1ML"]
["S01EB02","MIOSTAT 0,1 MG/ML INTRAOKULÁRIS CSEPEGTETŐ OLDAT","CARBACHOL"," 12X1,5 ML"]
["M03AC10","MIVACRON 2 MG/ML OLDATOS INJEKCIÓ","MIVACURIUM CHLORATUM","     5X5ML"]
["N06AX11","MIZAPIN 15 MG FILMTABLETTA","MIRTAZAPINUM","       30X"]
["N06AX11","MIZAPIN 30 MG FILMTABLETTA","MIRTAZAPINUM","       30X"]
["N06AX11","MIZAPIN 45 MG FILMTABLETTA","MIRTAZAPINUM","       30X"]
["C01EB15","MODUXIN MR 35 MG RETARD TABLETTA","TRIMETAZIDINUM","       60X"]
["R01AD09","MOMETASON SANDOZ 50 MIKROGRAMM/ADAG SZUSZPENZIÓS ORRSPRAY","MOMETAZONUM","1X18G/140A"]
["C01DA14","MONO MACK DEPOT 100 MG RETARD TABLETTA","ISOSORBIDUM MONONITRICUM","       28X"]
["C09AA09","MONOPRIL 10 MG TABLETTA","FOSINOPRILUM","       28X"]
["R03DC03","MONTELUKAST SANDOZ  4 MG GRANULÁTUM","MONTELUKAST","       28X"]
["R03DC03","MONTELUKAST SANDOZ  4 MG RÁGÓTABLETTA","MONTELUKAST","       28X"]
["R03DC03","MONTELUKAST SANDOZ  5 MG RÁGÓTABLETTA","MONTELUKAST","       28X"]
["J01XX01","MONURAL 3G GRANULÁTUM","FOSFOMYCINUM","        1X"]
["N02AA01","MORFINA CLORIDRATO MONICO 10 MG/1 ML","MORPHINIUM HYDROCHLORICUM","        5X"]
["N02AA01","MORFINA CLORIDRATO MONICO 20 MG/1ML","MORPHINIUM HYDROCHLORICUM","        5X"]
["M01AC06","MOVALIS 15 MG/1,5 ML OLDATOS INJEKCIÓ","MELOXICAMUM","   3X1,5ML"]
["J01MA14","MOXIBIOT 400 MG FILMTABLETTA","MOXIFLOXACINUM","   10X BUB"]
["J01MA14","MOXIFLOXAIN KABI 400 MG/250 ML OLDATOS INFÚZIÓ","MOXIFLOXACINUM","        1X"]
["C02AC05","MOXONIDIN -RATIOPHARM 0,2 MG FILMTABLETTA","MOXONIDINUM","       30X"]
["C02AC05","MOXONIDIN -RATIOPHARM 0,3 MG FILMTABLETTA","MOXONIDINUM","       30X"]
["C02AC05","MOXONIDIN -RATIOPHARM 0,4 MG FILMTABLETTA","MOXONIDINUM","       30X"]
["J02AX05","MYCAMINE  50 MG POR OLDATOS INFÚZIÓHOZ","MYCAFUNGINUM","    1X10ML"]
["J02AX05","MYCAMINE 100 MG POR OLDATOS INFÚZIÓHOZ","MYCAFUNGINUM","    1X10ML"]
["J02AC01","MYCOSYST  50 MG KEMÉNY KAPSZULA","FLUCONAZOLUM","        7X"]
["J02AC01","MYCOSYST 100 MG KEMÉNY KAPSZULA","FLUCONAZOLUM","       28X"]
["J02AC01","MYCOSYST 150 MG KEMÉNY KAPSZULA","FLUCONAZOLUM","        4X"]
["S01FA06","MYDRUM SZEMCSEPP","TROPICAMIDUM","      10ML"]
["L04AA06","MYFENAX 250 MG KEMÉNY KAPSZULA","MYCOPHENOLATUM MOFETIL","100X V 300X"]
["L04AA06","MYFENAX 500 MG FILMTABLETTA","MYCOPHENOLATUM MOFETIL","50X V 150X"]
["L04AA06","MYFORTIC 360 MG GYOMORNEDV-ELLENÁLLÓ TABLETTA","MYCOPHENOLATUM","      120X"]
["C04AX21","NAFTILONG 100 MG RETARD KEMÉNY KAPSZULA","NAFTIDROFURYLIUM","      100X"]
["C04AX21","NAFTILONG 200 MG RETARD KEMÉNY KAPSZULA","NAFTIDROFURYLIUM","      100X"]
["G02AD05","NALADOR 0,5 MG LIOFILIZÁTUM OLDATOS INJEKCIÓHOZ","SULPROSTONUM","  3 PORAMP"]
["N02AF02","NALPAIN 10 MG/ML OLDATOS INJEKCIÓ","NALBUPHINUM","       10X"]
["M01AE02","NAPROSYN 250 MG TABLETTA","NAPROXENUM","       30X"]
["N01BB09","NAROPIN 10 MG/ML OLDATOS INJEKCIÓ","ROPIVACAINUM","    5X10ML"]
["N01BB09","NAROPIN 2 MG/ML OLDATOS INJEKCIÓ","ROPIVACAINUM","    5X20ML"]
["N01BB09","NAROPIN 7,5 MG/ML OLDATOS INJEKCIÓ","ROPIVACAINUM","    5X20ML"]
["C03BA11","NARVA SR 1,5 MG RETARD TABLETTA","INDAPAMIDUM","       30X"]
["R01AA05","NASIVIN BABY 0,1 mg/ml tartósítószermentes oldatos orrcsepp","OXYMETAZOLINUM","       5ML"]
["R01AA05","NASIVIN CLASSIC 0,5 mg/ml oldatos orrcsepp","OXYMETAZOLINUM","      10ML"]
["R01AA05","NASIVIN CLASSIC 0,5 mg/ml oldatos orrspray","OXYMETAZOLINUM","      15ML"]
["R01AA05","NASIVIN CLASSIC 0,5 mg/ml tartósítószermentes oldatos orrspray","OXYMETAZOLINUM","      10ML"]
["R01AA05","NASIVIN KIDS 0,25 mg/ml oldatos orrcsepp","OXYMETAZOLINUM","      10ML"]
["R01AA05","NASIVIN KIDS 0,25 mg/ml tartósítószermentes oldatos orrspray","OXYMETAZOLINUM","      15ML"]
["B05XA02","NATRIUM HYDROGENCARD 8,4%ELEKT","NATRIUM HYDROGENOCARBONAS","   5X20 ML"]
["C07AB12","NEBIBETA 5 MG TABLETTA","NEBIVOLOLUM","       30X"]
["M01AB55","NEODOLPASSE OLDATOS INFÚZIÓ","DICLOFENACUM,ORPHENADRIN","  10X250ML"]
["B03AD03","NEO-FERRO FOLGAMMA 114 MG/0,8 MG GYOMORNEDV ELLENÁLLÓ TABLETTA","FERRUM SULFURICUM,ACIDUM FOLICUM","      100X"]
["D08AX19","NEOMAGNOL 1000 MG TABLETTA","CHLOROGENIUM","      150X"]
["N07AA01","NEOSTIGMINE KALCEKS 0,5 MG/ML OLDATOS INJEKCIÓ","NEOSTIGMINIUM","    10X1ML"]
["R01AA04","NEO-SYNEPHRIN SZEMCSEPP PDS 10 % 10 ML","PHENYLEPHRINIUM CHLORATUM","       1 X"]
["D05BB02","NEOTIGASON 10 MG KEMÉNY KAPSZULA","ACITRETINUM","       30X"]
["C02DB01","NEPRESOL 25 MG INJ.","DIHYDRALAZINIUM","       5 X"]
["N04BC09","NEUPRO 2 MG/24 H TRANSZDERMÁLIS TAPASZ","ROTIGOTINUM","       28X"]
["N04BC09","NEUPRO 4 MG/24 H TRANSZDERMÁLIS TAPASZ","ROTIGOTINUM","       28X"]
["N04BC09","NEUPRO 8 MG/24 H TRANSZDERMÁLIS TAPASZ","ROTIGOTINUM","       28X"]
["N03AF01","NEUROTOP 300 MG RETARD TABLETTA","CARBAMAZEPINUM","       50X"]
["N03AF01","NEUROTOP 600 MG RETARD TABLETTA","CARBAMAZEPINUM","       50X"]
["S01BC10","NEVANAC 1 MG/ML SZUSZPENZIÓS SZEMCSEPP","NEPAFENACUM","    1X5 ML"]
["V03AB15","NEXODAL 0,4 MG/ML OLDATOS INJEKCIÓ VAGY INFÚZIÓ","NALOXONIUM","    10X1ML"]
["M03AC11","NIMBEX 2 MG/ML OLDATOS INJEKCIÓ","CISATRACURIUM","     5X5ML"]
["C08CA06","NIMOTOP S FILMTABLETTA","NIMODIPINUM","      100X"]
["C01DA02","NITRO POHL 1 MG/1ML OLDATOS INFÚZIÓ","NITROGLYCERINUM","   10X10ML"]
["C01DA02","NITRO POHL 1 MG/1ML OLDATOS INFÚZIÓ","NITROGLYCERINUM","    1X50ML"]
["C01DA02","NITRODERM TTS  10 MG/24 ÓRA TRANSZDERMÁLIS TAPASZ","NITROGLYCERINUM","       30X"]
["C01DA02","NITRODERM TTS 5 MG/24 ÓRA TRANSZDERMÁLIS TAPASZ","NITROGLYCERINUM","       30X"]
["C01DA02","NITROMINT  0,5 MG TABLETTA","NITROGLYCERINUM","       50X"]
["C01DA02","NITROMINT  2,6 MG RETARD TABLETTA","NITROGLYCERINUM","       60X"]
["C01DA02","NITROMINT 8 MG/G SZÁJNYÁLKAHÁRTYÁN ALKALMAZOTT SPRAY","NITROGLYCERINUM","       10G"]
["D01AC08","NIZORAL 20 MG/G KRÉM","KETOCONAZOLUM","       15G"]
["A02BC02","NOACID 20 MG GYOMORNEDV-ELLENÁLLÓ TABLETTA","PANTOPRAZOLUM","       28X"]
["A02BC02","NOACID 40 MG GYOMORNEDV-ELLENÁLLÓ TABLETTA","PANTOPRAZOLUM","       28X"]
["B01AC23","NOCLAUD 100 MG TABLETTA","CILOSTAZOLUM","   56X BUB"]
["B01AC23","NOCLAUD 50 MG TABLETTA","CILOSTAZOLUM","   56X BUB"]
["J01MA06","NOLICIN 400 MG FILMTABLETTA","NORFLOXACINUM","       20X"]
["N06BX03","NOOTROPIL 200 MG/ML OLDATOS INJEKCIÓ","PIRACETAMUM","   12X15ML"]
["C01CA03","NORADRENALINE SINTETICA 4MG/4ML","NOREPINEPHRINUM","    10X4ML"]
["G03DC02","NORCOLUT 5 MG TABLETTA","NORETHISTERONUM","       20X"]
["A07AA11","NORMIX 200 MG FILMTABLETTA","RIFAXIMIN","       12X"]
["C08CA01","NORMODIPINE  5 MG TABLETTA","AMLODIPINUM","       30X"]
["C08CA01","NORMODIPINE 10 MG TABLETTA","AMLODIPINUM","       30X"]
["A07CA","NORMOLYT POR BELSŐLEGES OLDATHOZ","ELEKTROLIT","   10X5,4G"]
["C09CA03","NORTIVAN  80 MG FILMTABLETTA","VALSARTANUM","       30X"]
["C09CA03","NORTIVAN 160 MG FILMTABLETTA","VALSARTANUM","       30X"]
["C09DA03","NORTIVAN HCT  80 MG/12,5 MG FILMTABLETTA","VALSARTANUM,HCT","       30X"]
["C09DA03","NORTIVAN HCT 160 MG/12,5 MG FILMTABLETTA","VALSARTANUM,HCT","       30X"]
["C09DA03","NORTIVAN HCT 160 MG/25 MG FILMTABLETTA","VALSARTANUM,HCT","       30X"]
["A03AD02","NO-SPA 40 MG OLDATOS INJEKCIÓ","DROTAVERINUM","     5X2ML"]
["A03AD02","NO-SPA 40 MG TABLETTA","DROTAVERINUM","   24X BUB"]
["A03AD02","NO-SPA FORTE TABLETTA","DROTAVERINUM","   24X BUB"]
["P03AX51","NOVASCABIN KÜLSŐLEGES EMULZIÓ","BENZYLIUM BENZOICUM","       70G"]
["A10AD05","NOVOMIX 30 PENFILL 100 E/ML SZUSZPENZIÓS INJEKCIÓ PATRONBAN","INSULIN  ASPART,NPH ASPART","    10X3ML"]
["A10AB05","NOVORAPID PENFILL 100 E/ML OLDATOS INKEKCIÓ PATRON","INSULIN  ASPART","    10X3ML"]
["R01AA07","NOVORIN 0,05% OLDATOS ORRCSEPP","XYLOMETAZOLINUM","      10ML"]
["R01AA07","NOVORIN 0,1% OLDATOS ORRCSEPP","XYLOMETAZOLINUM","      10ML"]
["B02BD08","NOVOSEVEN 1 MG (50 KNE) POR ÉS OLDÓSZER OLDATOS INJEKCIÓHOZ","EPTACOG ALFA","        1X"]
["B02BD08","NOVOSEVEN 2 MG (100 KNE) POR ÉS OLDÓSZER OLDATOS INJEKCIÓHOZ","EPTACOG ALFA","        1X"]
["B02BD08","NOVOSEVEN 5 MG (250 KNE) POR ÉS OLDÓSZER OLDATOS INJEKCIÓHOZ","EPTACOG ALFA","        1X"]
["J02AC04","NOXAFIL 100 MG GYOMORNEDV-ELLENÁLLÓ TABLETTA","POSACONASOL","       24X"]
["M01AE01","NUROFEN 200 MG BEVONT TABLETTA","IBUPROFENUM","       24X"]
["M01AE01","NUROFEN EPERÍZŰ 20 MG/ML BELSŐLEGES SZUSZPENZIÓ GYERMEKEKNEK (VAGY 40 MG/ML)","IBUPROFENUM","   1X100ML"]
["M01AE01","NUROFEN FORTE 400 MG BEVONT TABLETTA","IBUPROFENUM","       24X"]
["A07AA02","NYSTATIN 500 000 NE FILMTABLETTA","NYSTATINUM","       20X"]
["H01BA02","OCTOSTIM 15 MIKROGRAMMG/ML OLDATOS INJEKCIÓ","DESMOPRESSINUM","      10 X"]
["S01AE05","OFTAQUIX 5 MG/ML OLDATOS SZEMCSEPP","LEVOFLOXACINUM","     1X5ML"]
["N05AH03","OLANZAPINE TEVA 10 MG SZÁJBAN DISZPERGÁLÓDÓ TABLETTA","OLANZAPINUM","       28X"]
["N05AH03","OLANZAPINE TEVA 15 MG SZÁJBAN DISZPERGÁLÓDÓ TABLETTA","OLANZAPINUM","       28X"]
["N05AH03","OLANZAPINE TEVA 20 MG SZÁJBAN DISZPERGÁLÓDÓ TABLETTA","OLANZAPINUM","       28X"]
["C01DA14","OLICARD 40 MG RETARD KEMÉNY KAPSZULA","ISOSORBIDUM MONONITRICUM","       50X"]
["C01DA14","OLICARD 60 MG RETARD KEMÉNY KAPSZULAZ","ISOSORBIDUM MONONITRICUM","       50X"]
["A02BC01","OMEPRAZOL-TEVA 10 MG GYOMORNEDV-ELLENÁLLÓ KEMÉNY KAPSZULA","OMEPRAZOLUM","       28X"]
["A02BC01","OMEPRAZOL-TEVA 20 MG GYOMORNEDV-ELLENÁLLÓ KEMÉNY KAPSZULA","OMEPRAZOLUM","       28X"]
["L01XX24","ONCASPAR 3,7502IU INJ.","PEGASPARGASE","       1 X"]
["A04AA01","ONDANSETRON KABI 2 MG/ML OLDATOS INJEKCIÓ","ONDANSETRONUM","     5X4ML"]
["J01CA04","OSPAMOX  50MG/ML GRANULÁTUM BELSŐLEGES SZUSZPENZIÓHOZ","AMOXICILLINUM","        1X"]
["J01CA04","OSPAMOX 25 MG/ML GRANULÁTUM BELSŐLEGES SZUSZPENZIÓHOZ","AMOXICILLINUM","        1X"]
["J01CE02","OSPEN  400 000 NE/5 ML BELSŐLEGES SZUSZPENZIÓ","PHENOXYMETHYLPENICILLINUM","      60ML"]
["J01CE02","OSPEN  500 000 NE FILMTABLETTA","PHENOXYMETHYLPENICILLINUM","       12X"]
["J01CE02","OSPEN 1 000 000 NE ILMTABLETTA","PHENOXYMETHYLPENICILLINUM","       12X"]
["N02AA05","OXYCONTIN 10 MG RETARD FILMTBLETTA","OXYCODONIUM","       30X"]
["N02AA05","OXYCONTIN 20 MG RETARD FILMTBLETTA","OXYCODONIUM","       30X"]
["D07CA01","OXYCORT (9,30 MG+3,10 MG) KÜLSŐLEGES SZUSZPENZIÓS SPRAY","HYDROCORTISONUM,OXYTETRACIKLIN","16,125 VAGY 32,25 G"]
["H01BB02","OXYTOCIN 5 NE/ML OLDATOS INJEKCIÓ","OXYTOCINUM","     5X1ML"]
["N06DA02","PALIXID  5 MG FILMTABLETTA","DONEPEZILIUM","       28X"]
["N06DA02","PALIXID 10 MG FILMTABLETTA","DONEPEZILIUM","       28X"]
["N02BE01","PANADOL BABY 24 MG/ML BELSŐLEGES SZUSZPENZIÓ","PARACETAMOLUM","     100ML"]
["A12CX","PANANGIN 158 MG/140 MG FILMTABLETTA","MAGNESIUM ASPARTICUM","       50X"]
["A12CC55","PANANGIN LIQUID 452 MG/400 MG KONCENTRÁTUM OLDATOS INFÚZIÓHOZ","MAGNESIUM ASPARTICUM","    5X10ML"]
["A03AD01","PAPAVERIN TAKEDA 40 MG/ML OLDATOS INJEKCIÓ","PAPAVERINUM","    10X1ML"]
["N02BE01","PARACETAMOL KABI 10 MG/ML OLDATOS INFÚZIÓ","PARACETAMOLUM","  10X100ML"]
["N05AH03","PARNASSAN  5 MG FILMTABLETTA","OLANZAPINUM","       30X"]
["N05AH03","PARNASSAN  7,5 MG FILMTABLETTA","OLANZAPINUM","       30X"]
["N05AH03","PARNASSAN 10 MG FILMTABLETTA","OLANZAPINUM","       30X"]
["N05AH03","PARNASSAN 15 MG FILMTABLETTA","OLANZAPINUM","       30X"]
["N05AH03","PARNASSAN 20 MG FILMTABLETTA","OLANZAPINUM","       30X"]
["R05CB02","PAXIRASOL 2 MG/ML OLDATOS INJEKCIÓ","BROMHEXINIUM","     5X2ML"]
["M01AE01","PEDEA 5 MG/ML OLDATOS INJEKCIÓ (2 ML)","IBUPROFENUM","        4X"]
["B05XA31","PEDITRACE KONCENTRÁTUM OLDATOS INFÚZIÓHOZ","NYOMELEMKONCENTRÁTUM","   10X10ML"]
["J01CE01","PENIBIOT 1 000 000 IU INJ.","PENICILLIN G","        1X"]
["J06BA02","PENTAGLOBIN 50 MG/ML OLDATOS INFÚZIÓ","HUMAN IGG","    1X10ML"]
["J06BA02","PENTAGLOBIN 50 MG/ML OLDATOS INFÚZIÓ","HUMAN IGG","    1X50ML"]
["J06BA02","PENTAGLOBIN 50 MG/ML OLDATOS INFÚZIÓ","HUMAN IGG","   1X100ML"]
["A07EC02","PENTASA 1 G RETARD TABLETTA","MESALAZINUM","       60X"]
["A07EC02","PENTASA 1G VÉGBÉLSZUSZPENZIÓ","MESALAZINUM","        7X"]
["A07EC02","PENTASA 2 G RETARD GRANULÁTUM","MESALAZINUM","       60X"]
["A07EC02","PENTASA 4 G RETARD GRANULÁTUM","MESALAZINUM","       30X"]
["A07EC02","PENTASA 500 MG RETARD TABL","MESALAZINUM","      100X"]
["B01AC30","PERSANTIN INJ.","DIPYRIDAMOLUM","       5 X"]
["D07CA01","PIMAFUCORT KENŐCS","HYDROCORTISONUM,NEOMYCIN","       15G"]
["D07CA01","PIMAFUCORT KRÉM","HYDROCORTISONUM,NEOMYCIN","       15G"]
["J01CR05","PIPERACILLIN/TAZOBACTAM KABI 4 G/0,5 G POR OLDATOS INFÚZIÓHOZ","PIPERACILLINUM"," 10X"]
["R06AD02","PIPOLPHEN 25 MG/ML OLDATOS INJEKCIÓ","PROMETHAZINUM","     5X2ML"]
["N04BB01","PK-MERZ 100 MG FILMTABL","AMANTADINIUM","       30X"]
["C08CA02","PLENDIL  5 MG RETARD FILMTABLETTA","FELODIPINUM","       30X"]
["C09CA01","PORTIRON  25 MG FILMTABLETTA","LOSARTANUM","       30X"]
["C09CA01","PORTIRON  50 MG FILMTABLETTA","LOSARTANUM","       30X"]
["C09CA01","PORTIRON 100 MG FILMTABLETTA","LOSARTANUM","       30X"]
["C09DA01","PORTIRON HCT  50 MG/12,5 MG FILMTABLETTA","LOSARTANUM,HCT","       30X"]
["C09DA01","PORTIRON HCT 100 MG/12,5 MG FILMTABLETTA","LOSARTANUM,HCT","       30X"]
["C09DA01","PORTIRON HCT 100 MG/25 MG FILMTABLETTA","LOSARTANUM,HCT","       30X"]
["C05AA01","POSTERISAN FORTE KENŐCS","HYDROCORTISONUM,E.COLI","       25G"]
["C05AA01","POSTERISAN FORTE VÉGBÉLKÚP","HYDROCORTISONUM,E.COLI","       10X"]
["B01AE07","PRADAXA 110 MG KEMÉNY KAPSZULA","DABIGATRANUM ETEXILATUM","   60X BUB"]
["B01AE07","PRADAXA 150 MG KEMÉNY KAPSZULA","DABIGATRANUM ETEXILATUM","       60X"]
["H02AB06","PREDNISOLON-RICHTER 5 MG TABLETTA","PREDNISOLONUM","      100X"]
["G02AD02","PREPIDIL 0,5 MG GÉL","DINOPROSTONUM","        3G"]
["C09BA04","PRETANIX KOMB 4 MG/1,25 MG TABLETTA","PERINDOPRILUM,INDAPAMIDUM","       30X"]
["C09BA04","PRETANIX KOMB FORTE 8 MG/2,5 MG TABLETTA","PERINDOPRILUM,INDAPAMIDUM","       30X"]
["J06BA02","PRIVIGEN 100 MG/ML OLDATOS INFÚZIÓ","HUMAN IGG","   1X100ML"]
["C01BA02","PROCAINAMIDE CHLORIDATO 500MG/5 ML","PROCAINAMIDIUM CHLORATUM","       5 X"]
["C01EB17","PROCORALAN  5 MG FILMTABLETTA","IVABRADINUM","       56X"]
["C01EB17","PROCORALAN  7,5 MG FILMTABLETTA","IVABRADINUM","       56X"]
["G03DA04","PROGESTERONE EXELTIS 200 MG LÁGY KAPSZULA","PROGESTERONUM","   15X BUB"]
["C02DA01","PROGLICEM 25 MG CAPS.","DIAZOXID","      100X"]
["N01BA02","PROKAIN-HIDROKLORID TEVA 10 MG/ML OLDATOS INJEKCIÓ","PROCAINUM","    1X50ML"]
["N01AX10","PROPOFOL 1% MCT/LCT FRESENIUS EMULZIÓ INJEKCIÓHOZ VAGY INFÚZIÓHOZ","PROPOFOLUM","   5X20 ML"]
["N01AX10","PROPOFOL 1% MCT/LCT FRESENIUS EMULZIÓ INJEKCIÓHOZ VAGY INFÚZIÓHOZ","PROPOFOLUM","  10X50 ML"]
["N01AX10","PROPOFOL 2% MCT/LCT FRESENIUS EMULZIÓ INJEKCIÓHOZ VAGY INFÚZIÓHOZ","PROPOFOLUM","  10X50 ML"]
["H03BA02","PROPYCIL 50 MG TABLETTA","PROPYLTHIOURACILUM","      100X"]
["G04CB01","PROSTERID 5 MG FILMTABLETTA","FINASTERIDUM","       28X"]
["G02AD02","PROSTIN E2 VAGINAL 3 MG HÜVELYTABLETTA","DINOPROSTONUM","        4X"]
["C01EA01","PROSTIN VR 0.5 MG/ML KONCENTRÁTUM OLDATOS INFÚZIÓHOZ","ALPROSTADILUM","     5X1ML"]
["V03AB14","PROTAMIN 1000 NE/ML OLDATOS INJEKCIÓ","PROTAMINIUM","     1X5ML"]
["N06AB03","PROZAC 20 MG/5 ML BELSŐLEGES OLDAT","FLUOXETINUM","      70ML"]
["A02BA03","QUAMATEL 20 MG FILMTABLETTA","FAMOTIDINUM","       28X"]
["A02BA03","QUAMATEL 20 MG POR ÉS OLDÓSZER OLDATOS INJEKCIÓHOZ","FAMOTIDINUM","        5X"]
["A02BA03","QUAMATEL 40 MG FILMTABLETTA","FAMOTIDINUM","       30X"]
["C10AC01","QUANTALAN POR SZUSZPENZIÓHOZ vagy CHOLESTIRAMYN POR SZUSZSP.","CHOLESTYRAMIN","      100X"]
["C10AC01","QUANTALAN POR SZUSZPENZIÓHOZ vagy CHOLESTIRAMYN POR SZUSZSP.","CHOLESTYRAMIN","       50X"]
[null,"RACEPINEPHRINE 2,25 % INH. 0,5 ML","RACEPINEPHRINE","      30 X"]
["N02AX02","RALGEN SR 100 MG RETARD TABLETTA","TRAMADOLUM","       50X"]
["N02AX02","RALGEN SR 150 MG RETARD TABLETTA","TRAMADOLUM","       50X"]
["N02AX02","RALGEN SR 200 MG RETARD TABLETTA","TRAMADOLUM","       50X"]
["A02BA02","RANITIDIN-TEVA 150 MG FILMTABLETTA","RANITIDINUM","       60X"]
["M01AB11","RANTUDIL FORTE KEMÉNY KAPSZULA","ACEMETACINUM","       20X"]
["A07DA01","REASEC 2,5 MG/0,025 MG TABLETTA","DIPHENOXYLATUM","       20X"]
["C04AB01","REGITINE 10MG/1ML INJ","PHENTOLAMINUM","     5X1ML"]
["M03BX19","RELAXIL-G 500 MG OLDATOS INJEKCIÓ","GUAIFENESINUM","   10X10ML"]
["N02CC06","RELPAX 20 MG FILMTABLETTA","ELETRIPTANUM","        4X"]
["C03CC01","REOMAX 50 MG/20 ML","ACIDUM ETACRYNICUM","        1X"]
["N04BC04","REQUIP 2 MG FILMTABLETTA","ROPINIROLUM","       21X"]
["N04BC04","REQUIP MODUTAB 2 MG RETARD FILMTABLETTA","ROPINIROLUM","       28X"]
["N04BC04","REQUIP-MODUTAB 8 MG RETARD FILMTABLETTA","ROPINIROLUM","       28X"]
["V03AE01","RESONIUM POR BELSŐLEGES SZUSZPENZIÓHOZ VAGY VÉGBÉLSZUSZPENZIÓHOZ","NATRIUM POLYSTYROLUM SULFONIC.","      454G"]
["R03DA04","RETAFYLLIN 200 MG RETARD TABLETTA","THEOPHYLLINUM","      100X"]
["R03DA04","RETAFYLLIN 300 MG RETARD TABLETTA","THEOPHYLLINUM","      100X"]
["G04BE03","REVATIO 20 MG FILMTABLETTA","SILDENAFILIUM","   90X BUB"]
["N06AB05","REXETIN 20 MG FILMTABLETTA","PAROXETINUM","       30X"]
["N06AB05","REXETIN 30 MG FILMTABLETTA","PAROXETINUM","       30X"]
["J06BB01","RHOPHYLAC 300 MIKROGRAMM/2 ML  OLD INJEKCIÓ ELŐRETŐLTÖTT FECSKENDŐBEN","IMMUNGLOBULIN ANTI D","        1X"]
["J04AB02","RIFADINE LIOPHIL 600 MG INJ.","RIFAMPICINUM","       1 X"]
["J04AB02","RIFAMED 150 MG FILMTABLETTA","RIFAMPICINUM","      100X"]
["J04AB02","RIFAMED 300 MG FILMTABLETTA","RIFAMPICINUM","      100X"]
["N05BA06","RILEX 2,5 MG TABLETTA","LORAZEPAM","   30X BUB"]
["N05AX08","RIPEDON 1 MG FILMTABLETTA","RISPERIDONUM","       60X"]
["N05AX08","RIPEDON 2 MG FILMTABLETTA","RISPERIDONUM","       60X"]
["N05AX08","RIPEDON 3 MG FILMTABLETTA","RISPERIDONUM","       60X"]
["N05AX08","RIPEDON 4 MG FILMTABLETTA","RISPERIDONUM","       60X"]
["N05AX08","RISPERDAL 1 MG/ML BELSŐLEGES OLDAT ","RISPERIDONUM","   1X100ML"]
["N05AX08","RISPERDAL CONSTA 50 MG POR ÉS OLDÓSZER RETARD SZUSZPENZIÓS INJEKCIÓHOZ","RISPERIDONUM","     1PAMP"]
["N06BA04","RITALIN 10 MG TABLETTA","METHYLPHENIDATUM","       30X"]
["N06BA04","RITALIN LA 20 MG MÓDOSÍTOTT HATÓANYAGLEADÁSÚ KEMÉNY KAPSZULA","METHYLPHENIDATUM","       30X"]
["N06BA04","RITALIN LA 30 MG MÓDOSÍTOTT HATÓANYAGLEADÁSÚ KEMÉNY KAPSZULA","METHYLPHENIDATUM","       30X"]
["N03AE01","RIVOTRIL 0,5 MG TABLETTA","CLONAZEPAMUM","       50X"]
["N03AE01","RIVOTRIL 1 MG/ML KONCENTRÁTUM ÉS OLDÓSZER OLDATOS INJEKCIÓHOZ","CLONAZEPAMUM","        5X"]
["N03AE01","RIVOTRIL 2 MG TABLETTA","CLONAZEPAMUM","      100X"]
["A03AB02","ROBINUL INJ. 1 ML","GLYCOPYRROLATE","       5 X"]
["A11CC04","ROCALTROL 0,25 MIKROGRAMM LÁGY KAPSZULA","CALCITRIOLUM","30X BLISZT"]
["C10AA07","ROZUVA-TEVA 15 MG FILMTABLETTA","ROSUVASTATINUM","   30X BUB"]
["C10AA07","ROZUVA-TEVA 30 MG FILMTABLETTA","ROSUVASTATINUM","   30X BUB"]
["C05CA51","RUTASCORBIN 20 MG/50 MG TABLETTA","RUTOSIDUM","       50X"]
["C01BA03","RYTHMODAN 100 MG","DIZOPIRAMID","       84X"]
["C01BC03","RYTMONORM 150 MG FILMTABLETTA","PROPAFENONIUM","      100X"]
["C01BC03","RYTMONORM 3,5 MG/ML OLDATOS INJEKCIÓ","PROPAFENONIUM","    5X20ML"]
["C01BC03","RYTMONORM 300 MG FILMTABLETTA","PROPAFENONIUM","      100X"]
["N03AG04","SABRIL 500 MG FILMTABLETTA","VIGABATRINUM","      100X"]
["A07EC01","SALAZOPYRIN EN 500 MG GYOMORNEDV-ELLENÁLLÓ TABLETTA","SULFASALAZINUM","      100X"]
["A07EC02","SALOFALK  2 G/30 ML VÉGBÉLSZUSZPENZIÓ","MESALAZINUM","    7X30ML"]
["A07EC02","SALOFALK 250 MG BÉLBEN OLDÓDÓ TABLETTA","MESALAZINUM","      100X"]
["A07EC02","SALOFALK 250 MG VÉGBÉLKÚP","MESALAZINUM","       30X"]
["A07EC02","SALOFALK 3 G GYOMORNEDV-ELLENÁLLÓ RETARD GRANULÁTUM","MESALAZINUM","       30X"]
["A07EC02","SALOFALK 500 MG BÉLBEN OLDÓDÓ TABLETTA","MESALAZINUM","      100X"]
["A07EC02","SALOFALK 500 MG VÉGBÉLKÚP","MESALAZINUM","       30X"]
["L04AD01","SANDIMMUN 50 MG/ML KONCENTRÁTUM OLDATOS INFÚZIÓHOZ","CYCLOSPORINUM","    10X1ML"]
["L04AD01","SANDIMMUN NEORAL  25 MG LÁGY KAPSZULA","CYCLOSPORINUM","       50X"]
["L04AD01","SANDIMMUN NEORAL  50 MG  LÁGY KAPSZULA","CYCLOSPORINUM","       50X"]
["L04AD01","SANDIMMUN NEORAL 100 MG  LÁGY KAPSZULA","CYCLOSPORINUM","       50X"]
["L04AD01","SANDIMMUN NEORAL 100 MG/ML BELSŐLEGES OLDAT","CYCLOSPORINUM","      50ML"]
["H01CB02","SANDOSTATIN 100 MIKROGRAMM/1 ML OLDATOS INJEKCIÓ/INFÚZIÓ","OCTREOTIDUM","     5X1ML"]
["J01MA12","SAVULIN 500 MG FILMTABLETTA","LEVOFLOXACINUM","        7X"]
["N05BA01","SEDUXEN 5 MG TABLETTA","DIAZEPAMUM","       20X"]
["N05BA01","SEDUXEN 5 MG/ML OLDATOS INJEKCIÓ","DIAZEPAMUM","     5X2ML"]
["J01CA01","SEMICILLIN 500 MG KEMÉNY KAPSZULA","AMPICILLINUM","       40X"]
["N01BB08","SEPTANEST OLDATOS INJEKCIÓ","ARTICAINE, EPINEPHRINE","      50 X"]
["R03AK06","SERETIDE EVOHALER 25/125 MIKROGRAMM/ADAG TÚLNYOMÁSOS INHALÁCIÓS SZUSZPENZIÓ","SALMETEROLUM,FLUTICASONE","   120ADAG"]
["R03AK06","SERETIDE EVOHALER 25/50 MIKROGRAMM/ADAG TÚLNYOMÁSOS INHALÁCIÓS SZUSZPENZIÓ","SALMETEROLUM,FLUTICASONE","   120ADAG"]
["N06AB06","SERTRALIN-ZENTIVA  50 MG FILTABLETTA","SERTRALINUM","       28X"]
["N06AB06","SERTRALIN-ZENTIVA 100 MG FILMTABLETTA","SERTRALINUM","       28X"]
["N03AA02","SEVENALETTA 15 MG TABLETTA","PHENOBARBITALUM","       30X"]
["N01AB08","SEVOFLURANE BAXTER folyadék inhalációs gõz képzéséhez","SEVOFLURAN","   6X250ML"]
["N01AB08","SEVORANE folyadék inhalációs gõz képzéséhez","SEVOFLURAN","     250ML"]
["N07CA03","SIBELIUM 10 MG TABLETTA","FLUNARIZINUM","       28X"]
["A05BA","SILEGON PLUS KEMÉNY KAPSZULA","EXTRACTUM FUMARIAE OFFICINALIS","  100X BUB"]
["S01EC54","SIMBRINZA 10 MG/ML + 2MG/ML SZUSZPENZIÓS SZEMCSEPP","BRINZOLAMIDUM","     1X5ML"]
["C01CX08","SIMDAX 2,5 MG/ML KONCENTRÁTUM OLDATOS INFÚZIÓHOZ","LEVOSIMENDANUM","       5ML"]
["L04AC02","SIMULECT 20 MG POR ÉS OLDÓSZER OLDATOS INJEKCIÓHOZ VAGY INFÚZIÓHOZ","BASILIXIMAB","  1PA+1OSZ"]
["C10AA01","SIMVEP 10 MG FILMTABLETTA","SIMVASTATINUM","       30X"]
["C10AA01","SIMVEP 20 MG FILMTABLETTA","SIMVASTATINUM","       30X"]
["R05DB13","SINECOD 50 MG RETARD TABLETTA","BUTAMIRATIUM","       10X"]
["R05DB13","SINECOD BELSŐLEGES OLDATOS CSEPPEK","BUTAMIRATIUM","      20ML"]
["R05DB13","SINECOD SZIRUP","BUTAMIRATIUM","     200ML"]
["M03BX02","SIRDALUD 4 MG TABLETTA","TIZANIDINUM","       30X"]
["M03BX02","SIRDALUD MR 6MG RETARD KAPSZ","TIZANIDINUM","       30X"]
["D10AX03","SKINOREN 200 MG/G KRÉM","ACIDUM AZELAICUM","       30G"]
["N02AJ14","SKUDEXA 75 MG/25 MG FILMTABLETTA","TRAMADOLUM,DEXKETOPROFEN","   15X BUB"]
["A07BC05","SMECTA 3 G POR SZUSZPENZIÓHOZ","DIOSMECTITUM","  30 TASAK"]
["H02AB09","SOLU-CORTEF 50 MG/ML POR ÉS OLDÓSZER OLDATOS INJEKCIÓHOZ","HYDROCORTISONUM","1X2 ML"]
["H02AB04","SOLU-MEDROL   40 MG POR ÉS OLDÓSZER OLDATOS INJEKCIÓHOZ","METHYLPREDNISOLONUM","        1X"]
["H02AB04","SOLU-MEDROL  125 MG POR ÉS OLDÓSZER OLDATOS INJEKCIÓHOZ","METHYLPREDNISOLONUM","        1X"]
["H02AB04","SOLU-MEDROL  500 MG POR ÉS OLDÓSZER OLDATOS INJEKCIÓHOZ","METHYLPREDNISOLONUM","        1X"]
["H02AB04","SOLU-MEDROL 1000 MG POR ÉS OLDÓSZER OLDATOS INJEKCIÓHOZ","METHYLPREDNISOLONUM"," PA+15.6ML"]
["B05XC19","SOLUVIT POR OLDATOS INFÚZIÓHOZ VALÓ KONCENTRÁTUMHOZ","MULTIVITAMIN"," 10 PORAMP"]
["N05CF01","SOMNOL 7,5 MG FILMTABLETTA","ZOPICLONUM","       30X"]
["V08DA05","SONOVUE 8UG/ML  POR+OSZ D INJ","SULFUR HEXAFLUORID","        1X"]
["C05BA04","SP 54 BEVONT TABLETTA","NATRIUM PENTOSANPOLYSULFURICUM","      100X"]
["R03BB04","SPIRIVA 18 MIKROGRAMM INHALÁCIÓS POR KEMÉNY KAPSZULÁBAN + HANDI HALER","TIOTROPIUM"," 30X+ HHAL"]
["R03BB04","SPIRIVA RESPIMAT 2,5 MIKROGRAMM INHALÁCIÓS OLDAT","TIOTROPIUM","   30 ADAG"]
["C03DA01","SPIRON  50 MG TABLETTA","SPIRONOLACTONUM","       50X"]
["C03DA01","SPIRON 100 MG TABLETTA","SPIRONOLACTONUM","       50X"]
["N05BE01","SPITOMIN  5 MG TABLETTA","BUSPIRONIUM","       60X"]
["A06AB02","STADALAX 5 MG BEVONT TABLETTA","BISACODYLUM","       50X"]
["N04BA03","STALEVO  50 MG/12,5 MG/200 MG FILMTABLETTA","LEVODOPUM,CARBIDOPA,ENTACAPON","      100X"]
["N04BA03","STALEVO 100 MG/25 MG/200 MG FILMTABLETTA","LEVODOPUM,CARBIDOPA,ENTACAPON","      100X"]
["N04BA03","STALEVO 125 MG/31,25 MG/200 MG FILMTABLETTA","LEVODOPUM,CARBIDOPA,ENTACAPON","      100X"]
["N04BA03","STALEVO 150 MG/37,5 MG/200 MG FILMTABLETTA","LEVODOPUM,CARBIDOPA,ENTACAPON","      100X"]
["N04BA03","STALEVO 200 MG/50 MG/200 MG FILMTABLETTA","LEVODOPUM,CARBIDOPA,ENTACAPON","      100X"]
["J01CA01","STANDACILLIN  200 MG/ML POR OLDATOS INJEKCIÓHOZ","AMPICILLINUM","      100X"]
["C02KX01","STAYVEER 62,5 MG FILMTABLETTA","BOSENTANUM","????"]
["N07AA01","STIGMOSAN 0,5 MG/ML ILDATOS INJEKCIÓ","NEOSTIGMINIUM","     5X1ML"]
["N05CF02","STILNOX 10 MG FILMTABLETTA","ZOLPIDEMUM","       20X"]
["N06BA09","STRATTERA 25 MG KEMÉNY KAPSZULA","ATOMOXETINUM","       28X"]
["N06BA09","STRATTERA 4 MG/ML BELSŐLEGES OLDAT","ATOMOXETINUM","   1X100ML"]
["N06BA09","STRATTERA 40 MG KEMÉNY KAPSZULA","ATOMOXETINUM","       28X"]
["N07CA02","STUGERON 25 MG TABLETTA","CINNARIZINUM","       50X"]
["N07BC51","SUBOXONE 2 MG/0,5 MG NYELVALATTI TABLETTA","BUPRENORPHINUM","        7X"]
["N07BC51","SUBOXONE 8MG/2MG NYELVALATTI TABLETTA","BUPRENORPHINUM","        7X"]
["N01AH03","SUFENTANIL TORREX 5 MIKROGRAMM/ML OLDATOS INJEKCIÓ","SUFENTANILUM","    5X10ML"]
["J01GA01","SULFATO DE ESTREPTOMICINA REIG JOFRÉ 1G","STREPTOMYCIN","        1X"]
["A10AE54","SULIQUA 100 EGYSÉG/ML + 33 MIKROGRAMM/ML  OLDATOS INJEKCIÓ ELŐRETÖLTÖTT INJEKCIÓS TOLLBAN","INSULIN GLARGINE,LIXISENATIDE","     5X3ML"]
["A10AE54","SULIQUA 100 EGYSÉG/ML + 50 MIKROGRAMM/ML  OLDATOS INJEKCIÓ ELŐRETÖLTÖTT INJEKCIÓS TOLLBAN","INSULIN GLARGINE,LIXISENATIDE","     5X3ML"]
["J01FA10","SUMAMED 100 MG/5 ML POR SZIRUPHOZ","AZITHROMYCINUM","      20ML"]
["J01FA10","SUMAMED FORTE 200 MG/5 ML POR SZIRUPHOZ","AZITHROMYCINUM","      30ML"]
["J01EE01","SUMETROLIM 25 MG/5 MG/ML SZIRUP","SULFAMETHOXAZOLUM","     100ML"]
["J01EE01","SUMETROLIM 400 MG/80 MG TABLETTA","SULFAMETHOXAZOLUM","       20X"]
["P01AB01","SUPPLIN 500 MG FILMTABLETTA","METRONIDAZOLUM","       20X"]
["R06AC03","SUPRASTIN INJEKCIÓ","CHLOROPYRAMINIUM","     5X1ML"]
["R06AC03","SUPRASTIN TABLETTA","CHLOROPYRAMINIUM","       20X"]
["J01DD08","SUPRAX 100 MG/5 ML POR BELSŐLEGES SZUSZPENZIÓHOZ","CEFIXIMUM","  50ML-HEZ"]
["J01DD08","SUPRAX 200 MG FILMTABLETTA","CEFIXIMUM","       10X"]
["R03AK07","SYMBICORT MITE TURBUHALER 4,5 MIKROGRAMM/80 MIKROGRAMM INHALÁCIÓS POR","FORMOTEROLIUM,BUDESONIDUM"," 1X60 ADAG"]
["R03AK07","SYMBICORT TURBUHALER 4,5 MIKROGRAMM/160 MIKROGRAMM INHALÁCIÓS POR","FORMOTEROLIUM,BUDESONIDUM"," 1X60 ADAG"]
["H01AA02","SYNACHTEN 250MCG INJ","TETRACOSACTIDUM","   10X1 ML"]
["H01AA02","SYNACTEN DEPOT 1 MG INJ.","TETRACOSACTIDUM","        1X"]
["H01AA02","SYNACTHEN DEPOT 1 MG 1 ML INJ.","TETRACOSACTIDUM","      10 X"]
["B01AA07","SYNCUMAR MITE 1 MG TABLETTA","ACENOCUMAROLUM","       30X"]
["A10BD20","SYNJARDY  5 MG/1000 MG FILMTABLETTA","EMPAGLIFLOSINUM,METFORMIN","   60X BUB"]
["A10BD20","SYNJARDY 12,5 MG/1000 MG FILMTABLETTA","EMPAGLIFLOSINUM,METFORMIN","  60X1 BUB"]
["L01AA09","TABINAZ 2,5 MG/ML POR OLDATOS INFÚZIÓHOZ VALÓ KONCENTRÁTUMHOZ","BENDAMUSTINUM","    5X25MG"]
["L01AA09","TABINAZ 2,5MG/ML POR OLDATOS INFÚZIÓHOZ VALÓ KONCENTRÁTUMHOZ","BENDAMUSTINUM","   5X100MG"]
["S01EE05","TAFLOTAN 15 MIKROGRAMM/ML OLDATOS SZEMCSEPP","TAFLUPROSTUM","  30X0,3ML"]
["C07AG02","TALLITON  6,25 MG TABLetta","CARVEDILOLUM","       60X"]
["C07AG02","TALLITON 12,5 MG TABLETTA","CARVEDILOLUM","       60X"]
["C07AG02","TALLITON 25 MG TABLETTA","CARVEDILOLUM","       60X"]
["J05AH02","TAMIFLU 30 MG KEMÉNY KAPSZULA","OSELTAMIVIRUM","10X(BLISZT"]
["J05AH02","TAMIFLU 45 MG KEMÉNY KAPSZULA","OSELTAMIVIRUM","10X(BLISZT"]
["J05AH02","TAMIFLU 75 MG KEMÉNY KAPSZULA","OSELTAMIVIRUM","       10X"]
["G04CA02","TAMSULOSIN PHARMACENTER 0,4 MG RETARD KEMÉNY KAPSZULA","TAMSULOSINUM","       30X"]
["A01AD02","TANTUM VERDE MENTA 3 MG SZOPOGATÓ TABLETTA","BENZYDAMINUM","       20X"]
["C09CA07","TANYDON 40 MG FILMTABLETTA","TELMISARTANUM","   30X BUB"]
["C09CA07","TANYDON 80 MG FILMTABLETTA","TELMISARTANUM","   30X BUB"]
["C09DA07","TANYDON HCT 40 MG/12,5 MG TABLETTA","TELMISARTANUM,HCT","   30X BUB"]
["C09DA07","TANYDON HCT 80 MG/12,5 MG TABLETTA","TELMISARTANUM,HCT","   30X BUB"]
["C09DA07","TANYDON HCT 80 MG/25 MG TABLETTA","TELMISARTANUM,HCT","   30X BUB"]
["J01XA02","TARGOCID 400 MG POR ÉS OLDÓSZER OLDATOS INJEKCIÓHOZ/INFÚZIÓHOZ VAGY BELSŐLEGES OLDATHOZ","TEICOPLANINUM"," 1X1PU+OSZ"]
["N03AF01","TEGRETOL 100 MG/5 ML BELSŐLEGES SZUSZPENZIÓ","CARBAMAZEPINUM","     100ML"]
["N03AF01","TEGRETOL 200 MG TABLETTA","CARBAMAZEPINUM","       50X"]
["N03AF01","TEGRETOL 250 MG KUP","CARBAMAZEPINUM","        5X"]
["N03AF01","TEGRETOL CR 200 MG MÓDOSÍTOTT HATÓANYAGLEADÁSÚ TABLETTA","CARBAMAZEPINUM","       50X"]
["N03AF01","TEGRETOL CR 400 MG MÓDOSÍTOTT HATÓANYAGLEADÁSÚ TABLETTA","CARBAMAZEPINUM","       30X"]
["J05AB01","TELVIRAN 200 MG TABLETTA","ACYCLOVIRUM","       25X"]
["J05AB01","TELVIRAN 400 MG TABLETTA","ACYCLOVIRUM","       35X"]
["D06BB03","TELVIRAN 50MG/G KRÉM","ACYCLOVIRUM","        2G"]
["J05AB01","TELVIRAN 800 MG TABLETTA","ACYCLOVIRUM","       35X"]
["C02AC06","TENAXUM 1 MG TABLETTA","RILMENIDINUM","       30X"]
["C09AA01","TENSIOMIN   12,5 MG TABLETTA","CAPTOPRILUM","       90X"]
["C09AA01","TENSIOMIN   25 MG TABLETTA","CAPTOPRILUM","       90X"]
["C09AA01","TENSIOMIN   50 MG TABLETTA","CAPTOPRILUM","       90X"]
["N06AA09","TEPERINEP 25 MG FILMTABLETTA","AMITRIPTYLINIUM","   30X BUB"]
["N06AA09","TEPERINEP 50 MG FILMTABLETTA","AMITRIPTYLINIUM","   30X BUB"]
["J06BB02","TETANUS GAMMA 250 NE/1 ML OLD INJ.","TETANUS IMMUNGLOBULIN","        1X"]
["D06AA03","TETRAN 10 MG/G KENŐCS","OXYTETRACYCLINUM","       10G"]
["D06AA03","TETRAN KÜLSŐLEGES POR","OXYTETRACYCLINUM","       10G"]
["A07DA03","TEVA-ENTEROBENE 2 MG FILMTABLETTA","LOPERAMIDUM","       50X"]
["N02BE01","TEVA-MEXALEN  500 MG TABLETTA","PARACETAMOLUM","       20X"]
["R03DA04","THEOSPIREX 150 MG RETARD FILMTABLETTA","THEOPHYLLINUM","       50X"]
["R03DA04","THEOSPIREX 200 MG/10 ML OLDATOS INJEKCIÓ","THEOPHYLLINUM","    5X10ML"]
["R03DA04","THEOSPIREX 300 MG RETARD FILMTABLETTA","THEOPHYLLINUM","       50X"]
["A16AX01","THIOGAMMA ORAL 600 MG FILMTABLETTA","ACIDUM THIOCTICUM","       60X"]
["A16AX01","THIOGAMMA TURBO-SET OLDATOS INFÚZIÓ ","ACIDUM THIOCTICUM","       10X"]
["J06BB","THYMOGLOBULIN 25 MG POR OLDATOS INFÚZIÓHOZ","THYMOGLOBULIN"," 1 PORAMP."]
["N05AL03","TIAGER 100 MG TABLETTA","TIAPRIDUM","       50X"]
["N05AL03","TIAPRIDAL 100 MG TABLETTA","TIAPRIDUM","       50X"]
["N05AL03","TIAPRIDAL OLDATOS INJEKCIÓ","TIAPRIDUM","    12X2ML"]
["B01AC05","TICLID 250 MG FILMTABLETTA","TICLOPIDINUM","       20X"]
["N01AF03","TIOBARBITAL BRAUN 0,5G INJ 10 ML","TIOBARBITAL","       50X"]
["A06AB06","TISASEN TABLETTA","SENNOSIDUM","       30X"]
["S01CA01","TOBRADEX SZEMKENŐCS","DEXAMETHASONUM,TOBRAMYCIN","      3,5G"]
["S01CA01","TOBRADEX SZUSZPENZIÓS SZEMCSEPP","DEXAMETHASONUM,TOBRAMYCIN","       5ML"]
["S01AA12","TOBREX 3 MG/H SZEMKENŐCS","TOBRAMYCINUM","    1X3,5G"]
["S01AA12","TOBREX 3 MG/ML OLDATOS SZEMCSEPP","TOBRAMYCINUM","       5ML"]
["S01CA01","TODEP SZUSZPENZIÓS SZEMCSEPP","DEXAMETHASONUM","     1X5ML"]
["C01CA24","TONOGEN 1 MG/ML OLDATOS INJEKCIÓ","EPINEPHRINUM","     5X1ML"]
["N03AX11","TOPAMAX  25 MG FILMTABLETTA","TOPIRAMATUM","       60X"]
["A10AE04","TOUJEO 300 EGYSÉG/ML OLDATOS INJEKCIÓ ELŐRETÖLTÖTT INJEKCIÓS TOLLBAN","INSULIN GLARGINE","5X1,5ML ET"]
["M03AC04","TRACRIUM 10 MG/ML OLDATOS INJEKCIÓ","ATRACURIUM BESYLICUM","     5X5ML"]
["A10BH05","TRAJENTA 5 MG FILMTABLETTA","LINAGLIPTINUM","   30X BUB"]
["N02AX02","TRAMADOL ACTAVIS  50 MG/ML OLDATOS INJEKCIÓ","TRAMADOLUM","     5X1ML"]
["N02AX02","TRAMADOL ACTAVIS  50 MG/ML OLDATOS INJEKCIÓ","TRAMADOLUM","     5X2ML"]
["N02AX02","TRAMADOL ACTAVIS 100 MG/ML BELSŐLEGES OLDATOS CSEPPEK","TRAMADOLUM","    1X10ML"]
["N02AX02","TRAMALGIC 50 MG KEMÉNY KAPSZULA","TRAMADOLUM","       30X"]
["C07AG01","TRANDATE INJ. 20 ML","LABETOLOL","       5 X"]
["S01EE04","TRAVATAN 40 MIKROGRAMM/ML OLDATOS SZEMCSEPP","TRAVOPROSTUM","   3X2,5ML"]
["C04AD03","TRENTAL 20 MG/ML OLDATOS INJEKCIÓ","PENTOXIFYLLINUM","    25X5ML"]
["C04AD03","TRENTAL 400 MG FILMTABLETTA","PENTOXIFYLLINUM","100X BLISZ"]
["A10AE06","TRESIBA 100 EGYSÉG/ML OLDATOS INJEKCIÓ ELŐRETÖLTÖTT INJEKCIÓS TOLLBAN","INSULIN DEGLUDEC"]
["V04CJ02 ","TRH FERRING 0,2MG/ML INJ. 5X1ML","PROTIRELINUM","     5X1ML"]
["C09BB05","TRIASYN 2,5 MG/2,5 MG RETARD FILMTABLETTA","RAMIPRILUM,FELODIPIN","       28X"]
["C09BB05","TRIASYN 5 MG/5 MG RETARD FILMTABLETTA","RAMIPRILUM,FELODIPIN","       28X"]
["N03AF02","TRILEPTAL 300 MG FILMTABLETTA","OXACARBAZEPINUM","       50X"]
["N03AF02","TRILEPTAL 600 MG FILMTABLETTA","OXACARBAZEPINUM","       50X"]
["C09AA05","TRITACE  2,5 MG TABLETTA","RAMIPRILUM","       28X"]
["C09AA05","TRITACE  5 MG TABLETTA","RAMIPRILUM","       28X"]
["C09AA05","TRITACE 10 MG TABLETTA","RAMIPRILUM","       28X"]
["C09BA05","TRITACE HCT 10 MG/12,5 MG TABLETTA","RAMIPRILUM,HCT","   30X BUB"]
["C09BA05","TRITACE HCT 10 MG/25 MG TABLETTA","RAMIPRILUM,HCT","   30X BUB"]
["C09BA05","TRITACE HCT 2,5 MG/12,5 MG TABLETTA","RAMIPRILUM,HCT","       28X"]
["C09BA05","TRITACE HCT 5 MG/25 MG TABLETTA","RAMIPRILUM,HCT","       28X"]
["N06AX05","TRITTICO AC 150MG RET TABL","TRAZODONIUM","       20X"]
["B01AC04","TROMBEX 75 MG FILMTABLETTA","CLOPIDOGRELUM","       30X"]
["N05AF03","TRUXAL 15 MG FILMTBLETTA","CHLORPROTHIXENUM","       50X"]
["N05AF03","TRUXAL 50 MG FILMTABLETTA","CHLORPROTHIXENUM","       50X"]
["J01AA12","TYGACIL 50 MG POR OLDATOS INFÚZIÓHOZ","TYGECICLINUM","10XINJ.ÜVE"]
["N01BB58","ULTRACAIN DS FORTE OLDATOS INJEKCÓ","ARTIKAIN","       12X"]
["J01CR01","UNASYN 1 G/0,5 G POR OLDATOS INJEKCIÓHOZ VAGY INFÚZIÓHOZ","AMPICILLINUM,SULBACTAM"," 1 PORAMP."]
["J01CR01","UNASYN 2 G/1 G POR OLDATOS INJEKCIÓHOZ VAGY INFÚZIÓHOZ","AMPICILLINUM,SULBACTAM","  1 PORAMP"]
["S01FA06","UNITROPIC 10 MG/ML OLDATOS SZEMCSEPP","TROPICAMIDUM","    1X10ML"]
["C03CC01","UREGYT 50 MG TABLETTA","ACIDUM ETACRYNICUM","       20X"]
["V03AF01","UROMITEXAN 100 MG/ML OLDATOS INJEKCIÓ","MESNUM","    15X4ML"]
["A05AA02","URSOFALK 250 MG KEMÉNY KAPSZULA","ACIDUM URSODEOXYCHOLICUM","      100X"]
["J05AB14","VALCYTE 450 MG FILMTABLETTA","VALGANCICLOVIRUM","       60X"]
["N06AX22","VALDOXAN 25 MG FILMTABLETTA","AGOMELATINUM","       28X"]
["C10BX","VALONGIX 20 MG/10 MG/5 MG FILMTABLETTA","ATORVASTATINUM,AMLODIPIN,PERINDOPRIL","       30X"]
["C10BX","VALONGIX 20 MG/5 MG/5 MG FILMTABLETTA","ATORVASTATINUM,AMLODIPIN,PERINDOPRIL","       30X"]
["J01XA01","VANCOMYCIN CNP 500 MG POR OLDATOS INFÚZIÓHOZ","VANCOMYCINUM","   1X500MG"]
["J01XA01","VANCOMYCIN KABI  1000 MG POR OLDATOS INFÚZIÓHOZ VALÓ KONCENTRÁTUMHOZ","VANCOMYCINUM","        1X"]
["J01XA01","VANCOMYCIN KABI  500 MG POR OLDATOS INFÚZIÓHOZ VALÓ KONCENTRÁTUMHOZ","VANCOMYCINUM","        1X"]
["N06AX16","VELAXIN  75 MG RETARD KEMÉNY KAPSZULA","VENLAFAXINUM","       28X"]
["N06AX16","VELAXIN 150 MG RETARD KEMÉNY KAPSZULA","VENLAFAXINUM","       28X"]
["A10BD07","VELMETIA 50 MG/1000 MG FILMTABLETTA","METFORMINUM,SITAGLIPTIN","      56 X"]
["A02BX02","VENTER 1000 MG GRANULATUM","SUCRALFATUM","       50X"]
["A02BX02","VENTER 1000 MG TABLETTA","SUCRALFATUM","       50X"]
["R03AC02","VENTOLIN EVOHALER TÚLNYOMÁSOS INHALÁCIÓS SZUSZPENZIÜ","SALBUTAMOLUM","   200ADAG"]
["R03AC02","VENTOLIN NEBULES 5 MG/2,5 ML","SALBUTAMOLUM","      20 X"]
["C08DA01","VERAPAMIL 40 MG FILMTABLETTA","VERAPAMILUM","       50X"]
["C08DA01","VERAPAMIL OLDATOS INJEKCIÓ","VERAPAMILUM","     5X2ML"]
["P02CA01","VERMOX 100 MG TABLETTA","MEBENDAZOLUM","        6X"]
["C03DA01","VEROSPIRON  25 MG TABLETTA","SPIRONOLACTONUM","       20X"]
["L01XX14","VESANOID 10MG KAPSZULA     ","TRETINOINUM","      100X"]
["B01AB11","VESSEL DUE F LáGY KAPSZULA","SULODEXIDUM","       50X"]
["B01AB11","VESSEL DUE OLDATOS INJEKCIÓ","SULODEXIDUM","    10X2ML"]
["J02AC03","VFEND 200 MG FILMTABLETTA","VORICONASOLUM","       30X"]
["J02AC03","VFEND 200 MG POR OLDATOS INFÚZIÓHOZ","VORICONASOLUM","        1X"]
["G04BE03","VIAGRA 100 MG FILMTABLETTA","SILDENAFILIUM","       12X"]
["A10BX07","Victoza 6 MG/ML OLDATOS INKECIÓ ELŐRETÖLTÖTT INJEKCIÓS TOLLBAN","LIRAGLUTIDUM","    2X3 ML"]
["S01AE07","VIGAMOX 5 MG/ML OLDATOS SZEMCSEPP","MOXIFLOXACINUM","     1X5ML"]
["A11CC05","VIGANTOL 20000 NE/ML BELSŐLEGES OLDATOS CSEPP","CHOLECALCIFEROLUM","      10ML"]
["N03AX18","VIMPAT  50 MG FILMTABLETTA","LACOSAMIDUM","       14X"]
["N03AX18","VIMPAT 10 MG/ML OLDATOS INFÚZIÓ","LACOSAMIDUM","    5X20ML"]
["N03AX18","VIMPAT 100 MG FILMTABLETTA","LACOSAMIDUM","       56X"]
["S01AD09","VIRGAN 1,5 MG/G SZEMGÉL","GANCYCLOVIRUM","      1X5G"]
["S01ED03","VISTAGAN LIQUIFILM 5 MG/ML OLDATOS SZEMCSEPP","LEVOBUNOLOLUM","     3X5ML"]
["B05XC20","VITALIPID ADULT EMULZIÓS INFÚZIÓ","MULTIVITAMIN","   10X10ML"]
["B05XC20","VITALIPID INFANT EMULZIÓS INFÚZIÓ","MULTIVITAMIN","   10X10ML"]
["A11CA01","VITAMIN A EGIS OLAJ","RETINOLUM","      10ML"]
["B03BA01","VITAMIN B12 RHP PHARMACEUTICALS 1 MG/ML OLDATOS INJEKCIÓ","CYANOCOBALAMINUM","        5X"]
["B03BA01","VITAMIN B12 RICHTER 300 MIKROGRAMM/ML OLDATOS INJEKCIÓ","CYANOCOBALAMINUM","     3X1ML"]
["A11DA01","VITAMIN B1-ZENTIVA 10 MG TABLETTA","THIAMINIUM","       20X"]
["A11DA01","VITAMIN B1-ZENTIVA 50 MG OLDATOS INJEKCIÓ","THIAMINIUM","     5X1ML"]
["A11HA02","VITAMIN B6 EGIS 20 MG TABLETTA","PYRIDOXINUM","       20X"]
["A11HA02","VITAMIN B6 EGIS 25 MG/ML OLDATOS INJEKCIÓ","PYRIDOXINUM","     5X2ML"]
["A11GA01","VITAMIN C EGIS 100 MG/ML OLDATOS INJEKCIÓ","ACIDUM ASCORBICUM","   100X2ML"]
["A11GA01","VITAMIN C EGIS 100 MG/ML OLDATOS INJEKCIÓ","ACIDUM ASCORBICUM","    50X5ML"]
["A11CC05","VITAMIN D3 3000 NE BIOEXTRA LÁGY KAPSZULA","CHOLECALCIFEROLUM","      100X"]
["A11CC05","VITAMIN D3 FRESENIUS 1000 NE TABLETTA","CHOLECALCIFEROLUM","       90X"]
["A11HA03","VITAMIN E BIOEXTRA 100 MG LÁGY KAPSZULA","TOCOPHEROLUM","      100X"]
["M01AB05","VOLTAREN 75 MG/3 ML OLDATOS INJEKCIÓ","DICLOFENACUM","     5X3ML"]
["B01AF01","XARELTO 10 MG FILMTABLETTA","RIVAROXABANUM"," 10X(PP/AL"]
["B01AF01","XARELTO 15 MG FILMTABLETTA","RIVAROXABANUM","       14X"]
["B01AF01","XARELTO 20 MG FILMTABLETTA","RIVAROXABANUM","       14X"]
["M01AC05","XEFO 8 MG FILMTABLETTA","LORNOXICAMUM","       30X"]
["M01AC05","XEFO RAPID 8 MG FILMTABLETTA","LORNOXICAMUM","       20X"]
["N05AX13","XEPLION 150 MG ÉS XEPLION 100 MG RETARD SZUSZPENZIÓS INJEKCIÓ","PALIPERIDONUM","   1ET+2TU"]
["C10AA07","XETER 10 MG FILMTABLETTA","ROSUVASTATINUM","       30X"]
["C10AA07","XETER 20 MG FILMTABLETTA","ROSUVASTATINUM","       30X"]
["C10AA07","XETER 40 MG FILMTABLETTA","ROSUVASTATINUM","       30X"]
["M01AX17","XILOX 50 MG/G GRANULÁTUM BELSŐLEGES SZUSZPENZIÓHOZ","NIMESULID","       30X"]
["N05AD08","XOMOLIX 2,5 MG/ML OLDATOS INJEKCIÓ","DROPERIDOLUM","       10X"]
["A06AB06","X-PREP-75 BELSŐLEGES OLDAT","SENNOSIDUM","    1X75ML"]
["A10AE56","Xultophy 100 egység/ml + 3,6 mg/ml oldatos injekció","INSULINUM DEGLUDEK","  3X3ML ET"]
["N06AX11","YAROCEN 15 MG SZÁJBAN DISZPERGÁLÓDÓ TABLETTA","MIRTAZAPINUM","   30X BUB"]
["N06AX11","YAROCEN 30 MG SZÁJBAN DISZPERGÁLÓDÓ TABLETTA","MIRTAZAPINUM","   30X BUB"]
["N06AX11","YAROCEN 45 MG SZÁJBAN DISZPERGÁLÓDÓ TABLETTA","MIRTAZAPINUM","   30X BUB"]
["S01BC11","YELLOX 0,9 MG/ML OLDATOS SZEMCSEPP","BROMFENACUM","     1X5ML"]
["N05AE04","YPSILA 40 MG KEMÉNY KAPSZULA","ZIPRASIDONUM","       60X"]
["N02AX52","ZALDIAR 37,5 MG/325 MG FILMTABLETTA","TRAMADOLUM,PARACETAMOL","       20X"]
["A02BA02","ZANTAC 25 MG/ML OLDATOS INJEKCIÓ","RANITIDINUM","     5X2ML"]
["L03AA02","ZARZIO 30 MILLIÓ E/0,5 ML OLDATOS INJEKCIÓ VAGY INFÚZIÓ ELŐRETÖLTÖTT FECSKENDŐBEN","FILGRASTIMUM","   5X0,5ML"]
["L03AA02","ZARZIO 48 MILLIÓ E/0,5 ML OLDATOS INJEKCIÓ VAGY INFÚZIÓ ELŐRETÖLTÖTT FECSKENDŐBEN","FILGRASTIMUM","   5X0,5ML"]
["J01DI54","ZERBAXA 1 G/0,5 G POR OLDATOS INFÚZIÓHOZ VALÓ KONCENTRÁTUMHOZ","CEFTOLOZAN","       10X"]
["J01DC02","ZINACEF 750 MG POR OLDATOS INJEKCIÓHOZ VAGY INFÚZIÓHOZ","CEFUROXINUM","       10X"]
["J01DC02","ZINNAT 125 MG FILMTABLETTA","CEFUROXINUM","       10X"]
["J01DC02","ZINNAT 125 MG/5 ML GRANULÁTUM BELSŐLEGES SZUSZPENZIÓHOZ","CEFUROXINUM","      50ML"]
["J01DC02","ZINNAT 250 MG FILMTABLETTA","CEFUROXINUM","       10X"]
["J01DC02","ZINNAT 500 MG FILMTABLETTA","CEFUROXINUM","       10X"]
["M05BA08","ZOLEDRONSAV TEVA 4MG/5ML KONCENTRÁTUM OLDATOS INFÚZIÓHOZ","ACIDUM ZOLEDRONICUM","     1X5ML"]
["J05AB01","ZOVIRAX 40 MG/ML BELSŐLEGES SZUSZPENZIÓ","ACYCLOVIRUM","     125ML"]
["N05AH03","ZYPADHERA 210 MG POR ÉS OLDÓSZER RETARD SZUSZPENZIÓS INJEKCIÓHOZ","OLANZAPINUM","   1X210MG"]
["N05AH03","ZYPADHERA 300 MG POR ÉS OLDÓSZER RETARD SZUSZPENZIÓS INJEKCIÓHOZ","OLANZAPINUM","   1X300MG"]
["N05AH03","ZYPADHERA 405 MG POR ÉS OLDÓSZER RETARD SZUSZPENZIÓS INJEKCIÓHOZ","OLANZAPINUM","   1X405MG"]
["N05AH03","ZYPREXA 10 MG POR OLDATOS INJEKCIÓHOZ","OLANZAPINUM","   1PORAMP"]
[]
[]
[]
[null,"Human albimunok"]
[null,"HUMAN ALBUMIN BIOTEST 5%-os izotóniás oldatos infúzió","human albumin","250 ml"]
[null,"HUMAN ALBUMIN BIOTEST 20%-os elektrolitszegény oldatos infúzió","human albumin","50 ml"]
[null,"HUMAN ALBUMIN BIOTEST 20%-os elektrolitszegény oldatos infúzió","human albumin","100 ml"]
[null,"HUMAN ALBUMIN HUMAN  50 g/l oldatos infúzió","human albumin","500 ml"]
[null,"HUMAN ALBUMIN HUMAN 200 g/l oldatos infúzió","human albumin","100 ml"]
[null,"HUMAN ALBUMIN CSL BEHRING 200 g/l oldatos infúzió","human albumin","100 ml"]
[null,"OCTAPLAS fagyasztott oldatos infúzió","human albumin","200ml"]
[]
[null,"Immunglobulinok"]
[null,"HUMAGLOBIN LIQUID 50 g/l oldatos infúzió","immunglobulin","1 g/20 ml"]
[null,"HUMAGLOBIN LIQUID 50 g/l oldatos infúzió","immunglobulin","5 g/100 ml"]
[null,"HUMAGLOBIN LIQUID 50 g/l oldatos infúzió","immunglobulin","10 g/200 ml"]
[null,"INTRATECT  50 g/l oldatos infúzió","immunglobulin","5 g/100 ml"]
[null,"INTRATECT 100 g/l oldatos infúzió","immunglobulin","20 g/200 ml"]
[null,"PENTAGLOBIN 50 mg/ml oldatos infúzió","immunglobulin","5000 mg/100 ml"]
[null,"PENTAGLOBIN 50 mg/ml oldatos infúzió","immunglobulin","2500 mg/50 ml"]
[null,"PENTAGLOBIN 50 mg/ml oldatos infúzió","immunglobulin","500 mg/10 ml"]
[null,"BISEKO oldatos infúzió","immunglobulin","250 ml"]

{"sheet":"Kontrasztanyagok","index":1,"n_rows":15,"n_cols":5,"rows_kept":15,"cut":false,"hidden":false,"merged":[]}
[null,"ATC","Cikknév","Hatóanyag","Kiszerelés"]
["V","V08AB11","XENETIX 300 MG I/ML OLDATOS INJEKCIÓ","IOBITRIDOLUM","   1X100ML"]
["V","V08AB11","XENETIX 350 MG I/ML OLDATOS INJEKCIÓ","IOBITRIDOLUM","    1X50ML"]
["V","V08AB11","XENETIX 350 MG I/ML OLDATOS INJEKCIÓ","IOBITRIDOLUM","        1X500 ML"]
["V","V08AB09","VISIPAQUE 320 MG I/ML OLDATOS INJEKCIÓ","IODIXANOLUM","   6X500ML"]
["V","V08AB02","OMNIPAQUE 300 MG I/ML OLDATOS INJEKCIÓ","IOHEXOLUM","  10X100ML"]
["V","V08AB02","OMNIPAQUE 350 MG I/ML OLDATOS INJEKCIÓ","IOHEXOLUM","    6X20ML ?"]
["V","V08AB02","OMNIPAQUE 350 MG I/ML OLDATOS INJEKCIÓ","IOHEXOLUM","   10X50ML"]
["V","V08AB02","OMNIPAQUE 350 MG I/ML OLDATOS INJEKCIÓ","IOHEXOLUM","  10X100ML"]
["V","V08AB10","IOMERON 350 MG I/ML OLDATOS INJEKCIÓ","IOMEPROLUM","   1X500ML"]
["V","V08AB10","IOMERON 300 MG I/ML OLDATOS INJEKCIÓ","IOMEPROLUM","   1X100ML"]
["V","V08AB10","IOMERON 300 MG I/ML OLDATOS INJEKCIÓ","IOMEPROLUM","    1X50ML"]
["V","V08AB05","ULTRAVIST 370 MG I/ML OLDATOS INJEKCIÓ","IOPROMIDUM","   8X500ML"]
["V","V08DA05","SONOVUE 8 MIKROLITER/ML POR ÉS OLDÓSZER DISZPERZIÓS INJEKCIÓHOZ","SULFUR HEXAFLUORID","        1X"]
["V","V08AA01","GASTROGRAFIN BELSŐLEGES OLDAT VAGY VÉGBÉLOLDAT","MEGLUMINIUM","  10X100ML"]

{"sheet":"onkológia","index":2,"n_rows":60,"n_cols":4,"rows_kept":60,"cut":false,"hidden":false,"merged":[]}
["ATC","Cikknév","Hatóanyag név","Kiszerelés"]
["L01BC01","ALEXAN  20 MG/ML OLDATOS INJEKCIÓ VAGY INFÚZIÓ","CYTARABINUM","    10X5 ML"]
["L01BC01","ALEXAN  50 MG/ML OLDATOS INJEKCIÓ VAGY INFÚZIÓ","CYTARABINUM","    1X20 ML"]
["L01DC01","BLEOMEDAC POR INJ","BLEOMYCINIUM","        1X"]
["L01DB01","CAELYX 2 MG/ML KONCENTRÁTUM INFÚZIÓHOZ","DOXORUBICINUM","    1X10 ML"]
["L01AD01","CARMUBRIS PULVER UND LÖSUNG. INF","CARMUSTINE","        1X"]
["L01XA01","CISPLATIN ACCORD 1 MG/ML KONCENTRÁTUM OLDATOS INFÚZIÓHOZ ","CISPLATINUM","        1X100 ML"]
["L01XA01","CISPLATIN ACCORD 1 MG/ML KONCENTRÁTUM OLDATOS INFÚZIÓHOZ ","CISPLATINUM","        1X50 ML"]
["L01DA01","COSMEGEN LYOVAC 500 MCG INJ","DACTINOMYCIN","        1X"]
["L01AA01","CYCLOPHOSPHAMID SANDOZ  500 MG POR OLDATOS INJEKCIÓHOZ VAGY INFÚZIÓHOZ","CYCLOPHOSPHAMIDUM","        1X"]
["L01AA01","CYCLOPHOSPHAMID SANDOZ 1000 MG POR OLDATOS INJEKCIÓHOZ VAGY INFÚZIÓHOZ","CYCLOPHOSPHAMIDUM","        1X"]
["L01BC01","CYTARABINE ACCORD 100 MG/ML OLDATOS INJEKCIÓ VAG INFÚZIÓ","CYTARABINUM","     1X1 ML"]
["L01AX04","DACARBAZIN LIPOMED 200 MG INJ.","DACARBAZIN","       10X"]
["L01DB02","DAUNOBLASTINA 20 MG POR ÉS OLDÓSZER OLDATOS INJEKCIÓHOZ","DAUNORUBICINUM","        1X"]
["L01CD02","DOCETAXEL ACCORD  20 MG/1 ML KONCENTRÁTUM ÉS OLDÓSZER OLDATOS INFÚZIÓHOZ","DOCETAXELUM","     1X1ML"]
["L01CD02","DOCETAXEL ACCORD  80 MG/4 ML KONCENTRÁTUM ÉS OLDÓSZER OLDATOS INFÚZIÓHOZ","DOCETAXELUM","     1X4ML"]
["L01DB01","DOXORUBICIN-TEVA 2 MG/ML OLDATOS INJEKCIÓ","DOXORUBICINUM","     1X10 MG/5 ML"]
["L01DB01","DOXORUBICIN-TEVA 2 MG/ML OLDATOS INJEKCIÓ","DOXORUBICINUM","    1X50 MG/25 ML"]
["L01AA01","ENDOXAN 1 G POR OLDATOS INJEKCIÓHOZ","CYCLOPHOSPHAMIDUM","        1X"]
["L01AA01","ENDOXAN 500 MG POR OLDATOS INJEKCIÓHOZ","CYCLOPHOSPHAMIDUM","        1X"]
["L01DB03","EPIRUBICIN-TEVA 2 MG/ML OLDATOS INJEKCIÓ VAGY INFÚZIÓ","EPIRUBICINUM","      25ML"]
["L01DB03","EPIRUBICIN-TEVA 2 MG/ML OLDATOS INJEKCIÓ VAGY INFÚZIÓ","EPIRUBICINUM","       5ML"]
["L01XC06","ERBITUX 5 MG/ML OLDATOS INFÚZIÓ","CETUXIMAB","        1X100 ML"]
["L01XC06","ERBITUX 5 MG/ML OLDATOS INFÚZIÓ","CETUXIMAB","        1X20 ML"]
["L01CB01","ETOPOSIDE ACCORD 20 MG/ML KONCENTRÁTUM OLDATOS INFÚZIÓHOZ","ETOPOSIDUM","    1X10 ML"]
["L01CB01","ETOPOSIDE-TEVA 20 MG/ML KONCENTRÁTUM OLDATOS INFÚZIÓHOZ","ETOPOSIDUM","     1X5ML"]
["L01CB01","ETOPOSIDE-TEVA 20 MG/ML KONCENTRÁTUM OLDATOS INFÚZIÓHOZ","ETOPOSIDUM","    1X10ML"]
["L01BC02","FLUOROURACIL ACCORD 50 MG/ML OLDATOS INJEKCIÓ VAGY INFÚZIÓ","FLUOROURACIL","   1X100 ML"]
["L01BC02","FLUOROURACIL ACCORD 50 MG/ML OLDATOS INJEKCIÓ VAGY INFÚZIÓ","FLUOROURACIL","    1X10 ML"]
["L01BC05","GEMCITABIN KABI 38 MG/ML POR OLDATOS INFÚZIÓHOZ","GEMCITABINUM","    1X10 ML (200 MG)"]
["L01BC05","GEMCITABIN KABI 38 MG/ML POR OLDATOS INFÚZIÓHOZ","GEMCITABINUM","    1X50 ML (1000 MG)"]
["L01BC05","GEMCITABIN KABI 38 MG/ML POR OLDATOS INFÚZIÓHOZ","GEMCITABINUM","   1X100 ML (2000 MG)"]
["L01AA06","HOLOXAN 1000 MG POR OLDATOS INJEKCIÓHOZ","IFOSFAMIDUM","        1X30 ML"]
["L01AA06","HOLOXAN 2000 MG POR OLDATOS INJEKCIÓHOZ","IFOSFAMIDUM","        1X50 ML"]
["L01AA06","HOLOXAN 500 MG POR OLDATOS INJEKCIÓHOZ","IFOSFAMIDUM","        1X20 ML"]
["L01XX19","IRINOTECAN KABI 20 MG/ML KONCENTRÁTUM OLDATOS INFÚZIÓHOZ","IRINOTHECANUM","   1X25 ML"]
["L01XX19","IRINOTECAN KABI 20 MG/ML KONCENTRÁTUM OLDATOS INFÚZIÓHOZ","IRINOTHECANUM","     1X5 ML"]
["L01XX19","IRINOTECAN KABI 20 MG/ML KONCENTRÁTUM OLDATOS INFÚZIÓHOZ","IRINOTHECANUM","    1X15 ML"]
["L01CD04","JEVTANA 60 MG KONCENTRÁTUM ÉS OLDÓSZER OLDATOS INFÚZIÓHOZ","CABASITAXELUM","        1X"]
["L01XC18","KEYTRUDA 50 MG POR OLDATOS INFÚZIÓHOZ VALÓ KONCENTRÁTUMHOZ","PEMBROZILUMAB","1X"]
["V03AF03","LEUCOVORIN PHARMACENTER 10 MG/ML OLDATOS INJEKCIÓ","ACIDUM FOLINICUM","100 MG/10 ML"]
["V03AF03","LEUCOVORIN PHARMACENTER 10 MG/ML OLDATOS INJEKCIÓ","ACIDUM FOLINICUM","500 MG/50 ML"]
["L01BA01","METHOTREXAT EBEWE 10 MG/ML OLDATOS INJEKCIÓ ","METHOTREXATUM","     5X5 ML"]
["L01BA01","METHOTREXAT EBEWE 100 MG/ML KONCENTRÁTUM OLDATOS INFÚZIÓHOZ ","METHOTREXATUM","    1X50ML"]
["L01DC03","MITOMYCIN-C KYOWA 10 MG POR OLDATOS INJEKCIÓHOZ","MITOMYCINUM C","        1X"]
["L01AD05","MUSTOPHORAN 200 MG/4 ML POR ÉS OLDÓSZER OLDATOS INFÚZIÓHOZ","FOTEMUSTINUM","     1X4ML"]
["L01DB01","MYOCET 50 MG POR, DISZPERZIÓ ÉS OLDÓSZER DISZPERZIÓS INFÚZIÓ KÉSZÍTÉSÉRE SZÁNT KONCENTRÁTUMHOZ","DOXORUBICINUM"," 2X3 ÜVEGBEN"]
["L01DB07","ONKOTRONE 2 MG/ML OLDATOS INJEKCIÓ ","MITOXANTRONUM","     1X5 ML"]
["L01DB07","ONKOTRONE 2 MG/ML OLDATOS INJEKCIÓ ","MITOXANTRONUM","    1X10 ML"]
["L01XC17","OPDIVO 10 MG/ML KONCENTRÁTUM OLDATOS INFÚZIÓHOZ ","NIVOLUMAB","        1X4 ML"]
["L01XC17","OPDIVO 10 MG/ML KONCENTRÁTUM OLDATOS INFÚZIÓHOZ ","NIVOLUMAB","        1X10 ML"]
["L01XA03","OXALIPLATINO ACCORD 5 MG/ML KONCENTRÁTUM OLDATOS INFÚZIÓHOZ","OXALIPLATINUM","        1X10 ML"]
["L01XA03","OXALIPLATINO ACCORD 5 MG/ML KONCENTRÁTUM OLDATOS INFÚZIÓHOZ","OXALIPLATINUM","        1X20 ML"]
["L01CD01","PACLITAXEL KABI 6 MG/ML KONCENTRÁTUM OLDATOS INFÚZIÓHOZ","PACLITAXELUM","  1X16,7 ML"]
["L01CD01","PACLITAXEL KABI 6 MG/ML KONCENTRÁTUM OLDATOS INFÚZIÓHOZ","PACLITAXELUM","    1X50 ML"]
["L01XX17","POTACTASOL 4 MG POR OLDATOS INFÚZIÓHOZ VALÓ KONCENTRÁTUMHOZ","TOPOTHECANUM","        1X"]
["L01XC08","VECTIBIX 20 MG/ML KONCENTRÁTUM OLDATOS INFÚZIÓHOZ","PANITUMUMABUM","     1X5 ML"]
["L01CA01","VINBLASTIN RICHTER 1 MG/ML POR ÉS OLDÓSZER OLDATOS INJEKCIÓHOZ (vagy 2 MG/ML ????)","VINBLASTINIUM"," 10 PORAMP"]
["L01CA02","VINCRISTIN LIQUID RICHTER 1 MG/ML KONCENTRÁTUM OLDATOS INJEKCIÓHOZ","VINCRISTINUM","      5X"]
["L01DB06","ZAVEDOS 10 MG POR OLDATOS INFÚZIÓHOZ ","IDARUBICINUM","1X"]

{"sheet":"EGYÉB","index":3,"n_rows":64,"n_cols":4,"rows_kept":64,"cut":false,"hidden":false,"merged":[]}
[]
["Orvostechnikai eszköz","Kiszerelés"]
["CURIOSA  SEBKEZELŐ GÉL  15 G","       1 X"]
["ENDOSTAR LAVAGE BÉLMOSÓ FOLYADÉK","        1X"]
["RINOPANTEINA ORRKENŐCS 10G","       10G"]
["VITAGYN C HÜVELYKRÉM","30G"]
["HALSET TOROKSPRAY 30 ML","        1X"]
["TEVA-ANAFLAT GYÖNGY LÁGYZSELATIN KAPSZULA","       50X"]
["GENTEAL SZEMCSEPP 10 ML","        1X"]
["OCUTEARS SZEMCSEPP","10ML"]
["SYSTANE ULTRA UD (30X0,7 ML)","       1 X"]
["STRATADERM HEGKEZELŐ GÉL","5 G"]
["CAPHOSOL SZÁJÖBLÍTŐ OLDAT 15 ML","       60X"]
["SERAFOL ABO+D VÉRCSOPORT MEGHATÁROZÓ IKERKÁRTYA","50X"]
["SERAFOL FOILS","100X"]
["SPONGOSTAN STANDARD (7CMX5CMX1CM)","20x","",""]
["SPONGOSTAN SPECIAL (7CMX5CMX0,1CM)","20x"]
["SPONGOSTAN DENTAL (1CMX1CMX1CM)","24x"]
["SURGICEL FIBRILLAR","10X"]
["PLASTUBOL-PP SPRAY (CFC MENTES)","    1X125G"]
["URO-TAINER SUBY G 100ML KATÉTER ÖBLÍTŐ FOLYADÉK","        1X"]
["ULTRAHANG GÉL 250 ML","       1 X"]
["SILICONE SPRAY SILKOSPRAY RUSCH 500 ML"]
["CUSTODIOL OLDAT 1000 ML","       6 X"]
["CATHEJELL C LIDOKAIN STERIL GÉL  5X12,5 G","        5X"]
[]
["Kozmetikum"]
["SUDOCREM 125 G","       1 X"]
["SUDOCREM 250 G","       1 X"]
["SUDOCREM 400 G","       1 X"]
["MEDIFELUR FELFEKVÉST MEGELŐZŐ, REGENERÁLÓ GÉL 200 ML","       1 X"]
[]
["Speciális gyógyászati célra szánt tápszer"]
["PROTEXIN NATURAL CARE KAPSZULA","60X"]
["SODIORAL GRANULÁTUM INULINNAL","8X8G"]
["PROTEXIN BALANCE KEMÉNY KAPSZULA","500X"]
["PROTEXIN BALANCE KEMÉNY KAPSZULA","6X"]
["PROTEXIN RESTORE BELSŐLEGES POR ","6X"]
["PROTEXIN RESTORE BELSŐLEGES POR ","100X"]
["PROGASTRO 825 ","100G"]
["LACTIV PLUS GRANULÁTUM","10X"]
["KABI GLUTAMINE 30X20G"]
[]
["Gyógyászati segédeszköz"]
["DCONT IDEAL TESZTCSÍK","50X"]
["ONE TOUCH SELECT PLUS TESZTCSÍK","50X"]
["ACCU-CHECK ACTIVE TESZTCSÍK","50X"]
["ONE TOUCH SELECT TESZTCSÍK","50X"]
[]
[]
["Étrend kiegészítő"]
["POLYBÉ TABLETTA","       20X"]
["FERROFOL-C MAMA TABLETTA","100X"]
["MAGNÉZIUM B6 BEVONT TABLETTA GOODWILL","60X"]
["VALERIANA TEVA 100 MG BEVONT TABLETTA","30X"]
["Magnesium+B6 Pharmavit filmtabletta","60X"]
[]
["Gyógyszernek nem minősülő gyógyhatású készítmény"]
["DIAPULMON INHALÁCIÓS CSEPPEK","       1 X"]
["NEUROSAN ENTERO BELSŐLEGES POR 250 G","       1 X"]
["DERMIN KENŐCS 30 G","       1 X"]
[]
["Szabadforgalmú írtószer"]
["PEDEX TETŰÍRTÓ HAJSZESZ 50 ML","1X"]

{"sheet":"INFÚZIÓ","index":4,"n_rows":46,"n_cols":3,"rows_kept":46,"cut":false,"hidden":false,"merged":[]}
["Hatóanyag","Cikknév","Kiszerelés"]
["AQUA DESTILLATA","acqua per preparazioni iniettabili monico 20X500 ML","20X500 ML"]
["NATRIUM HYDROGENOCARBONAS","ALKALIGEN oldatos infúzió","     400ML"]
[{"$f":"[1]cikktörzs!G2413","v":"AQUA DESTILLATA"},"Ecolav Aqua B.Braun irrigáló oldat 1000 ml","10X1000 ML"]
[{"$f":"[1]cikktörzs!G2414","v":"AQUA DESTILLATA"},"Ecolav Aqua B.Braun irrigáló oldat 500 ml","10X500 ML"]
[{"$f":"[1]cikktörzs!G2416","v":"NATRIUM CHLORATUM"},"Ecolav NaCl 0,9% steril öblítő folyadék 100 ml","20X100 ML"]
[{"$f":"[1]cikktörzs!G2415","v":"NATRIUM CHLORATUM"},"Ecolav NaCl 0,9% steril öblítő folyadék 1000 ml","10X1000 ML"]
["NATRIUM CHLORATUM","Ecotainer NaCl 0,9% 1000 ml steril öblítő folyadék","6X1000 ML"]
["NATRIUM CHLORATUM","Ecotainer NaCl 0,9% 500 ml steril öblítő folyadék ","10X500 ML"]
["OXYPOLYGELATINA","GELASPAN 4% oldatos infúzió","10X500 ML"]
[{"$f":"[1]cikktörzs!G845","v":"OXYPOLYGELATINA"},"GELOFUSINE oldatos infúzió","10X500 ML"]
[{"$f":"[1]cikktörzs!G893","v":"GLUCOSUM"},"GLUCOSE B. BRAUN 50 mg/ml oldatos infúzió","10X500 ML"]
[{"$f":"[1]cikktörzs!G892","v":"GLUCOSUM"},"GLUCOSE B. BRAUN 50 mg/ml oldatos infúzió","10X500 ML"]
[{"$f":"[1]cikktörzs!G995","v":"GLYCERILUM"},"GLYCEROL TEVA 10% oldatos infúzió izotóniás NaCl oldatban","500 ML"]
[{"$f":"[1]cikktörzs!G996","v":"GLYCERILUM"},"GLYCEROL TEVA 10% oldatos infúzió izotóniás NaCl oldatban","100 ML"]
["AQUA DESTILLATA","INJEKCIÓHOZ VALÓ VÍZ B.BRAUN oldószer parenterális alkalmazásra 10X500 ML","10X500 ML"]
["AQUA DESTILLATA","INJEKCIÓHOZ VALÓ VÍZ B.BRAUN oldószer parenterális alkalmazásra 20X10 ML","20X10 ML"]
["IRRIGACIOS OLDAT NACL","Irrigáló oldat natrium chloratum oldat 0,9% 4X3000 ML","4X3000 ML"]
[{"$f":"[1]cikktörzs!G945","v":"ELEKTROLIT"},"ISOLYTE oldatos infúzió","10X500 ML"]
[{"$f":"[1]cikktörzs!G946","v":"ELEKTROLIT"},"ISOLYTE oldatos infúzió","10X1000 ML"]
["KALIUM CHLORATUM","KÁLIUM-KLORID B. BRAUN 7,45% koncentrátum oldatos infúzióhoz","   20X20ML"]
[{"$f":"[1]cikktörzs!G992","v":"MANNITUM"},"MANNISOL A TEVA oldatos infúzió","500 ML"]
[{"$f":"[1]cikktörzs!G993","v":"MANNITUM"},"MANNISOL B TEVA oldatos infúzió","100 ML"]
[{"$f":"[1]cikktörzs!G1021","v":"NATRIUM CHLORATUM"},"NATRIUM CHLORATUM 10% TEVA-\"PM\" oldatos injekció","10X10 ML"]
["NATRIUM HYDROGENOCARBONAS","NÁTRIUM-HIDROGÉNKARBONÁT B. BRAUN 8,4% koncentrátum oldatos infúzióhoz","   5X20 ML"]
["NATRIUM CHLORATUM","NÁTRIUM-KLORID 0,9% \"Baxter\" oldatos infúzió","20X500 ML"]
["NATRIUM CHLORATUM","NÁTRIUM-KLORID 0,9% \"Baxter\" oldatos infúzió","10X1000 ML"]
["NATRIUM CHLORATUM","NÁTRIUM-KLORID 0,9% Fresenius oldatos infúzió","12X500 ML"]
[{"$f":"[1]cikktörzs!G940","v":"NATRIUM CHLORATUM"},"NÁTRIUM-KLORID 0,9% Fresenius oldatos infúzió","20X250 ML"]
[{"$f":"[1]cikktörzs!G1019","v":"NATRIUM CHLORATUM"},"NÁTRIUM-KLORID 0,9% Fresenius oldatos infúzió","10X1000 ML"]
[{"$f":"[1]cikktörzs!G937","v":"NATRIUM CHLORATUM"},"NÁTRIUM-KLORID 0,9% Fresenius oldatos infúzió","40X100 ML"]
[{"$f":"[1]cikktörzs!G947","v":"NATRIUM CHLORATUM"},"NÁTRIUM-KLORID 0,9% Fresenius oldatos infúzió","20X500 ML"]
["NATRIUM CHLORATUM","NÁTRIUM-KLORID B. BRAUN 0,9% oldatos infúzió","20X100 ML"]
["NATRIUM CHLORATUM","NÁTRIUM-KLORID B. BRAUN 0,9% oldatos infúzió","10X500 ML"]
["NATRIUM CHLORATUM","NÁTRIUM-KLORID B. BRAUN 0,9% oldatos infúzió","10X1000 ML"]
["NATRIUM CHLORATUM","NÁTRIUM-KLORID B. BRAUN 0,9% oldatos injekció","20X10 ML"]
[{"$f":"[1]cikktörzs!G972","v":"ELEKTROLIT"},"RINGER B. BRAUN oldatos infúzió","10X500 ML"]
[{"$f":"[1]cikktörzs!G942","v":"ELEKTROLIT"},"RINGER-LAKTÁT Fresenius oldatos infúzió","20X500 ML"]
[{"$f":"[1]cikktörzs!G977","v":"ELEKTROLIT"},"RINGER-LAKTÁT N B. BRAUN Hartmann oldatos infúzió","10X500 ML"]
[{"$f":"[1]cikktörzs!G978","v":"ELEKTROLIT"},"RINGER-LAKTÁT N B. BRAUN Hartmann oldatos infúzió","10X1000 ML"]
[{"$f":"[1]cikktörzs!G985","v":"ELEKTROLIT"},"STEROFUNDIN B oldatos infúzió","10X500 ML"]
[{"$f":"[1]cikktörzs!G986","v":"ELEKTROLIT"},"STEROFUNDIN B oldatos infúzió","10X1000 ML"]
[{"$f":"[1]cikktörzs!G987","v":"ELEKTROLIT"},"STEROFUNDIN G oldatos infúzió","10X500 ML"]
[{"$f":"[1]cikktörzs!G988","v":"ELEKTROLIT"},"STEROFUNDIN G oldatos infúzió","10X1000 ML"]
["HAES","VOLULYTE 6% oldatos infúzió","20X500 ML"]
["HAES","VOLUVEN 6% oldatos infúzió","10X500 ML"]

{"sheet":"Parenterális tápláló infúziók","index":5,"n_rows":29,"n_cols":3,"rows_kept":29,"cut":false,"hidden":false,"merged":[]}
["Hatóanyag","Cikknév","Kiszerelés"]
["AMINOSAV","AMINOVEN  5% OLDATOS INFÚZIÓ","  10X500 ML"]
["AMINOSAV","AMINOVEN 10% OLDATOA INFÚZIÓ","  10X500 ML"]
["AMINOSAV","AMINOVEN INFANT 10% OLDATOS INFÚZIÓ","  10X100 ML"]
[{"$f":"[1]cikktörzs!G885","v":"FRUCTOSUM"},"FRUCTOSOL 100 MG/ML OLDATOS INFÚZIÓ","500 ML"]
[{"$f":"[1]cikktörzs!G883","v":"FRUCTOSUM"},"FRUCTOSOL 50 MG/ML OLDATOS INFÚZIÓ","500 ML"]
[{"$f":"[1]cikktörzs!G882","v":"GLUCOSUM"},"GLUCOSUM Pannonpharma 40% OLDATOS INJEKCIÓ","10X 10 ML"]
[{"$f":"[1]cikktörzs!G894","v":"GLUCOSUM"},"GLUKÓZ Teva 10% OLDATOS INFÚZIÓ ","1X100 ML"]
[{"$f":"[1]cikktörzs!G895","v":"GLUCOSUM"},"GLUKÓZ Teva 10% OLDATOS INFÚZIÓ ","1X500 ML"]
[{"$f":"[1]cikktörzs!G881","v":"GLUCOSUM"},"GLUKÓZ Teva 40% OLDATOS INFÚZIÓ ","500 ML"]
[{"$f":"[1]cikktörzs!G889","v":"GLUCOSUM"},"GLUKÓZ Teva 40% OLDATOS INFÚZIÓ ","100 ML"]
["AMINOSAV,ELEKTROLIT","INFUSAMIN S5 OLDATOS INFÚZÓ","500 ML"]
["AMINOSAV,ELEKTROLIT","INFUSAMIN S5 OLDATOS INFÚZÓ","100 ML"]
["TPN","KABIVEN EMULZIÓS INFÚZIÓ","4X1540 ML"]
["TPN","KABIVEN EMULZIÓS INFÚZIÓ","2X2566 ML"]
["TPN","KABIVEN EMULZIÓS INFÚZIÓ","4X2053 ML"]
["TPN","KABIVEN PERIPHERAL EMULZIÓS INFÚZIÓ","4X1920 ML"]
["TPN","KABIVEN PERIPHERAL EMULZIÓS INFÚZIÓ","4X1440 ML"]
["TPN","NUTRIFLEX PERI OLDATOS INFÚZIÓ","5X1000 ML"]
["TPN","OLIMEL 9 G/L NITROGÉN ELEKTROLITOKKAL EMULZIÓS INFÚZIÓ","4X2000 ML"]
["TPN","OLIMEL 9 G/L NITROGÉN ELEKTROLITOKKAL EMULZIÓS INFÚZIÓ","6X1000 ML"]
["TPN","PERIOLIMEL 4 G/L NITROGÉN ELEKTROLITOKKAL EMULZIÓS INFÚZIÓ","4X2000 ML"]
["TPN","PERIOLIMEL 4 G/L NITROGÉN ELEKTROLITOKKAL EMULZIÓS INFÚZIÓ","6X1000 ML"]
["TPN","SMOFKABIVEN EMULZIÓS INFÚZIÓ","6X493 ML"]
["TPN","SMOFKABIVEN EMULZIÓS INFÚZIÓ","4X1477 ML"]
["TPN","SMOFKABIVEN EMULZIÓS INFÚZIÓ","4X1970 ML"]
["TPN","SMOFKABIVEN EMULZIÓS INFÚZIÓ","4X986 ML"]
["TPN","SMOFKABIVEN PERIPHERAL EMULZIÓS INFÚZIÓ","4X1448 ML"]
["LIPID EMULSIO","SMOFLIPID 200 MG/ML EMULZIÓS INFÚZIÓ","10X100 ML"]

{"sheet":"PER OS,NG TÁPSZER","index":6,"n_rows":138,"n_cols":2,"rows_kept":138,"cut":false,"hidden":false,"merged":[]}
["NÉV"]
["BEBA H.A. 1 PRO","600 G (2x300 G)"]
[{"$f":"[1]cikktörzs!H5875","v":"BEBA H.A. 2 PRO"},"600 G (2x300 G)"]
["BEBA H.A. SENSITIVE","600 G (2x300 G)"]
["BEBA H.A. START PRO","600 G (2x300 G)"]
["BEBA KORASZÜLÖTTEKNEK",{"$f":"[1]cikktörzs!I5888","v":"      400G"}]
["BREAST MILK FORTIFIER","105 G (50X2,1 G)"]
[{"$f":"[1]cikktörzs!H5951","v":"CALOGEN NEUTRAL"},{"$f":"[1]cikktörzs!I5951","v":"     200ML"}]
["CALOGEN EPER ÍZŰ",{"$f":"[1]cikktörzs!I6354","v":"    200 ML"}]
["CUBITAN CSOKOLÁDÉ ÍZŰ","4X200 ML"]
["CUBITAN EPER ÍZŰ","4X200 ML"]
["CUBITAN VANÍLIA ÍZŰ","4X200 ML"]
["DIASIP CAPPUCINO","24X200 ML"]
[{"$f":"[1]cikktörzs!H5924","v":"DIASIP EPER"},{"$f":"[1]cikktörzs!I5924","v":"     200ML"}]
["DIASIP VANÍLIA",{"$f":"[1]cikktörzs!I5925","v":"     200ML"}]
["DIBEN ÍZESÍTÉS: SEMLEGES","500 ML"]
["DIBEN DRINK ÍZESÍTÉS: CAPPUCCINO",{"$f":"[1]cikktörzs!I5949","v":"   4X200ML"}]
["DIBEN DRINK ÍZESÍTÉS: ERDEI GYÜMÖLCS",{"$f":"[1]cikktörzs!I5950","v":"   4X200ML"}]
["DIBEN DRINK ÍZESÍTÉS: VANÍLIA","4X200 ML"]
["ELEMENTAL 028 EXTRA LIQUID GRAPEFRUIT ÍZŰ","18X250ML"]
["ELEMENTAL 028 EXTRA LIQUID NARANCS ÉS ANANÁSZ ÍZŰ","18X250ML"]
["ELEMENTAL 028 EXTRA LIQUID NYÁRI GYÜMÖLCS ÍZŰ","18X250ML"]
[{"$f":"[1]cikktörzs!H6027","v":"FANTOMALT"},{"$f":"[1]cikktörzs!I6027","v":"      400G"}]
["FORTIFIT EPER ÍZŰ/VANÍLIA ÍZŰ","280 G"]
[{"$f":"[1]cikktörzs!H6011","v":"FORTIMEL DIACARE EPER ÍZŰ"},{"$f":"[1]cikktörzs!I6011","v":"  24X200ML"}]
[{"$f":"[1]cikktörzs!H6012","v":"FORTIMEL DIACARE VANÍLIA ÍZŰ"},{"$f":"[1]cikktörzs!I6012","v":"  24X200ML"}]
["FRESUBIN 2 KCAL DRINK KARAMELL",{"$f":"[1]cikktörzs!I5952","v":"   4X200ML"}]
["FRESUBIN 2 KCAL FIBRE DRINK CAPPUCCINO",{"$f":"[1]cikktörzs!I5953","v":"   4X200ML"}]
["FRESUBIN 2 KCAL FIBRE DRINK CSOKOLÁDÉ",{"$f":"[1]cikktörzs!I5954","v":"   4X200ML"}]
["FRESUBIN 2 KCAL FIBRE DRINK VANÍLIA",{"$f":"[1]cikktörzs!I5955","v":"   4X200ML"}]
["FRESUBIN 2 KCAL HP",{"$f":"[1]cikktörzs!I5985","v":"     500ML"}]
["FRESUBIN 2 KCAL HP FIBRE",{"$f":"[1]cikktörzs!I5986","v":"     500ML"}]
["FRESUBIN 5 KCAL SHOT ÍZESÍTÉS: CITROM",{"$f":"[1]cikktörzs!I5987","v":"  4X120 ML"}]
["FRESUBIN 5 KCAL SHOT ÍZESÍTÉS: SEMLEGES",{"$f":"[1]cikktörzs!I5988","v":"  4X120 ML"}]
[{"$f":"[1]cikktörzs!H5989","v":"FRESUBIN DB CRÉME CAPPUCCINO ÍZŰ KRÉM"},{"$f":"[1]cikktörzs!I5989","v":"   4X125 G"}]
["FRESUBIN DB CREME ÍZESÍTÉS: ERDEI SZAMÓCA",{"$f":"[1]cikktörzs!I5990","v":"   4X125 G"}]
["FRESUBIN DB CREME ÍZESÍTÉS: VANÍLIA",{"$f":"[1]cikktörzs!I5992","v":"   4X125 G"}]
[{"$f":"[1]cikktörzs!H5956","v":"FRESUBIN ENERGY DRINK ÍZESÍTÉS: SEMLEGES"},"4X200 ML"]
["FRESUBIN ENERGY DRINK ÍZESÍTÉS: EPER","4X200 ML"]
["FRESUBIN ENERGY DRINK ÍZESÍTÉS: VANÍLIA","4X200 ML"]
["FRESUBIN ENERGY FIBRE DRINK ÍZESÍTÉS: CSOKOLÁDÉ","4X200 ML"]
["FRESUBIN ENERGY FIBRE DRINK ÍZESÍTÉS: EPER","4X200 ML"]
["FRESUBIN ENERGY FIBRE DRINK ÍZESÍTÉS: VANÍLIA","4X200 ML"]
["FRESUBIN HEPA DRINK ÍZESÍTÉS: CAPPUCCINO",{"$f":"[1]cikktörzs!I6595","v":"  4X200 ML"}]
["FRESUBIN HEPA ÍZESÍTÉS: SEMLEGES",{"$f":"[1]cikktörzs!I5934","v":"     500ML"}]
["FRESUBIN JUCY DRINK ÍZESÍTÉS: ALMA","4X200 ML"]
["FRESUBIN JUCY DRINK ÍZESÍTÉS: CSERESZNYE","4X200 ML"]
["FRESUBIN JUCY DRINK ÍZESÍTÉS: FEKETE RIBIZLI","4X200 ML"]
["FRESUBIN JUCY DRINK ÍZESÍTÉS: NARANCS","4X200 ML"]
["FRESUBIN PROTEIN ENERGY DRINK ÍZESÍTÉS: CSOKOLÁDÉ","4X200 ML"]
["FRESUBIN PROTEIN ENERGY DRINK ÍZESÍTÉS: DIÓ","4X200 ML"]
["FRESUBIN PROTEIN ENERGY DRINK ÍZESÍTÉS: SZAMÓCA","4X200 ML"]
["FRESUBIN PROTEIN ENERGY DRINK ÍZESÍTÉS: VANÍLIA","4X200 ML"]
["FRESUBIN YOCRÉME ÍZESÍTÉS: CITROM","4X125 G"]
["FRESUBIN YOCRÉME ÍZESÍTÉS: KEKSZ","4X125 G"]
["FRESUBIN YOCRÉME ÍZESÍTÉS: MÁLNA","4X125 G"]
["FRESUBIN YOCRÉME ÍZESÍTÉS: SÁRGABARACK-ŐSZIBARACK","4X125 G"]
["HIPP ORS 200 SÁRGARÉPA-RIZS ITAL",{"$f":"[1]cikktörzs!I6041","v":"     200ML"}]
["HUMANA HN-MCT BANÁNNAL","300 G"]
[{"$f":"[1]cikktörzs!H5960","v":"INFATRINI"},"24X200 ML"]
[{"$f":"[1]cikktörzs!H5994","v":"INFATRINI PEPTISORB"},"24X200 ML"]
["KABI GLUTAMINE NEUTRÁLIS ÍZŰ","30X20 G"]
[{"$f":"[1]cikktörzs!H5972","v":"LACTASE COMFORT CSEPP"},{"$f":"[1]cikktörzs!I5972","v":"  10ML/200"}]
["LACTIV PLUS GRANULÁTUM","10X2 G"]
[{"$f":"[1]cikktörzs!H6015","v":"MEDIDRINK PLUS CSOKOLÁDÉ ÍZŰ"},{"$f":"[1]cikktörzs!I6015","v":"  30X200ML"}]
[{"$f":"[1]cikktörzs!H5963","v":"MEDIDRINK PLUS EPER ÍZŰ"},"30X200 ML"]
[{"$f":"[1]cikktörzs!H6017","v":"MEDIDRINK PLUS ERDEI GYÜMÖLCS ÍZŰ"},"30X200 ML"]
[{"$f":"[1]cikktörzs!H5964","v":"MEDIDRINK PLUS ÍZESÍTÉS NÉLKÜLI"},"30X200 ML"]
[{"$f":"[1]cikktörzs!H5995","v":"MEDIDRINK PLUS KÁVÉ ÍZŰ"},"30X200 ML"]
["SINEMIL","600 G (2x300 G)"]
["MILUMIL 1 OPTIMA","900 G"]
["MILUMIL HA START OPTIMA","600 G (2x300 G)"]
["MILUMIL HA 1 OPTIMA","600 G (2x300 G)"]
["MILUMIL HA 2 OPTIMA","600 G (2x300 G)"]
["MILUMIL PEPTI PLUS 2 PRONUTRA","450 G"]
["MILUMIL PREGOMIN","450 G"]
["MONOGEN","400 G"]
["NEOCATE LCP","400 G"]
["BEBA LAKTÓZMENTES","400 G"]
["MODULEN IBD","12X400 G"]
["NUTILIS","300 G"]
["NUTRICIA NUTRIDRINK BANÁN ÍZŰ","24X200 ML"]
["NUTRICIA NUTRIDRINK CSOKOLÁDÉ ÍZŰ","24X200 ML"]
["NUTRICIA NUTRIDRINK EPER ÍZŰ","24X200 ML"]
["NUTRICIA NUTRIDRINK VANÍLIA ÍZŰ","24X200 ML"]
["NUTRICIA NUTRIDRINK YOGHURT MÁLNA","24X200 ML"]
["NUTRICIA NUTRIDRINK VANÍLIA ÉS CITROM","24X200 ML"]
["NUTRICIA NUTRIDRINK MAX CSOKOLÁDÉ ÍZŰ","24X300 ML"]
["NUTRICIA NUTRIDRINK MAX EPER ÍZŰ","24X300 ML"]
["NUTRICIA NUTRIDRINK MAX MOKKA ÍZŰ","24X300 ML"]
["NUTRICIA NUTRIDRINK MAX VANÍLIA ÍZŰ","24X300 ML"]
["NUTRINI","500 ML"]
[{"$f":"[1]cikktörzs!H6109","v":"NUTRINI ENERGY"},"500 ML"]
[{"$f":"[1]cikktörzs!H5998","v":"NUTRINI MULTI FIBRE"},"500 ML"]
["NUTRINI PEPTISORB","500 ML"]
["NUTRINIDRINK MULTI FIBRE BANÁN ÍZŰ","8X200 ML"]
["NUTRINIDRINK MULTI FIBRE CSOKOLÁDÉ ÍZŰ","8X200 ML"]
["NUTRINIDRINK MULTI FIBRE EPER ÍZŰ","8X200 ML"]
["NUTRINIDRINK MULTI FIBRE ÍZESÍTÉS NÉLKÜLI","8X200 ML"]
["NUTRINIDRINK MULTI FIBRE VANÍLIA ÍZŰ","8X200 ML"]
[{"$f":"[1]cikktörzs!H5958","v":"NUTRISON ADVANCED CUBISON"},"1000 ML"]
[{"$f":"[1]cikktörzs!H6125","v":"NUTRISON ADVANCED DIASON"},"1000 ML"]
[{"$f":"[1]cikktörzs!H5993","v":"NUTRISON ADVANCED PEPTISORB"},"1000 ML"]
["NUTRISON ADVANCED PROTISON","500 ML"]
[{"$f":"[1]cikktörzs!H6093","v":"NUTRISON ENERGY"},"1000 ML"]
[{"$f":"[1]cikktörzs!H6121","v":"NUTRISON ENERGY MULTI FIBRE"},{"$f":"[1]cikktörzs!I6121","v":"   1000 ML"}]
["NUTRISON MULTI FIBRE","1000 ML"]
[{"$f":"[1]cikktörzs!H6084","v":"NUTRISON POWDER"},"430 G"]
["NUTRISON PROTEIN PLUS MULTI FIBRE","1000 ML"]
["NUTRISON ","1000 ML"]
["NUTRILON NUTRITON","135 G"]
["PKU ANAMIX JUNIOR LQ ERDEI GYÜMÖLCS","36X125 ML"]
["PKU ANAMIX JUNIOR LQ NARANCS","36X125 ML"]
[{"$f":"[1]cikktörzs!H6004","v":"PKU ANAMIX JUNIOR POR CSOKOLÁDÉ ÍZŰ"},"30X36 G"]
[{"$f":"[1]cikktörzs!H6005","v":"PKU ANAMIX JUNIOR POR ÍZESÍTETLEN"},"30X36 G"]
[{"$f":"[1]cikktörzs!H5868","v":"PKU LOPHLEX LQ JUICY BOGYÓS GYÜMÖLCSÖK"},"30X125 ML"]
[{"$f":"[1]cikktörzs!H5867","v":"PKU LOPHLEX LQ JUICY CITRUS"},"30X125 ML"]
[{"$f":"[1]cikktörzs!H5869","v":"PKU LOPHLEX LQ JUICY NARANCS"},"30X125 ML"]
[{"$f":"[1]cikktörzs!H6007","v":"PKU LOPHLEX LQ JUICY TRÓPUSI"},"30X125 ML"]
["PKU LOPHLEX SENSATION GYÜMÖLCS","36X (12X3)"]
["PROTIFAR","225 G"]
[{"$f":"[1]cikktörzs!H6025","v":"SINLAC"},"650G (2X325 G)"]
["STIMULANCE","400 G"]
[{"$f":"[1]cikktörzs!H6086","v":"SURVIMED OPD"},"500 ML"]
["SURVIMED OPD DRINK ÍZESÍTÉS: VANÍLIA","4X200 ML"]
[]
[]
[]
[]
[]
["SOLUTIX BOULARDII  SACCHAROMYCES KAPSZULA","       20X"]
["PROGASTRO 825","100 G"]
["PROTEXIN BALANCE KEMÉNY KAPSZULA","6X"]
["PROTEXIN BALANCE KEMÉNY KAPSZULA","500X"]
["PROTEXIN CANDID-PLUS KAPSZULA","60X"]
["PROTEXIN NATURAL CARE KAPSZULA","60X"]
["PROTEXIN RESTORE BELSŐLEGES POR ","100X"]
["PROTEXIN RESTORE BELSŐLEGES POR ","6X"]

{"sheet":"FERTŐTLENÍTŐ","index":7,"n_rows":96,"n_cols":5,"rows_kept":96,"cut":false,"hidden":false,"merged":[]}
["ATC","INAKTÍV","HATÓANYAG","NÉV"]
["FER",{"$f":"[1]cikktörzs!F6349","v":"NEM"},"FERTŐTLENÍTŐ",{"$f":"[1]cikktörzs!H6349","v":"ANIOSGEL 85 NPC 500 ML"},{"$f":"[1]cikktörzs!I6349","v":"        1X"}]
["FER",{"$f":"[1]cikktörzs!F6817","v":"NEM"},"FERTŐTLENÍTŐ",{"$f":"[1]cikktörzs!H6817","v":"ASPIRMATIC SZÍVÓKÉSZ. FETR. 2 L"},{"$f":"[1]cikktörzs!I6817","v":"        1X"}]
["FER",{"$f":"[1]cikktörzs!F6700","v":"NEM"},"FERTŐTLENÍTŐ",{"$f":"[1]cikktörzs!H6700","v":"BACILLOL TISSUES"},{"$f":"[1]cikktörzs!I6700","v":"      100X"}]
["FER",{"$f":"[1]cikktörzs!F6755","v":"NEM"},"FERTŐTLENÍTŐ",{"$f":"[1]cikktörzs!H6755","v":"BAKTOLIN 1L"},{"$f":"[1]cikktörzs!I6755","v":"        1X"}]
["FER",{"$f":"[1]cikktörzs!F6821","v":"NEM"},"FERTŐTLENÍTŐ",{"$f":"[1]cikktörzs!H6821","v":"BAKTOLIN BASIC WASCHLOT. 500 ML"},{"$f":"[1]cikktörzs!I6821","v":"        1X"}]
["FER",{"$f":"[1]cikktörzs!F6824","v":"NEM"},"FERTŐTLENÍTŐ",{"$f":"[1]cikktörzs!H6824","v":"BETADINE OLDAT 1000 ML"},{"$f":"[1]cikktörzs!I6824","v":"        1X"}]
["FER",{"$f":"[1]cikktörzs!F6825","v":"NEM"},"FERTŐTLENÍTŐ",{"$f":"[1]cikktörzs!H6825","v":"BETADINE OLDAT 120 ML"},{"$f":"[1]cikktörzs!I6825","v":"        1X"}]
["FER",{"$f":"[1]cikktörzs!F6826","v":"NEM"},"FERTŐTLENÍTŐ",{"$f":"[1]cikktörzs!H6826","v":"BETADINE OLDAT 30 ML"},{"$f":"[1]cikktörzs!I6826","v":"        1X"}]
["FER",{"$f":"[1]cikktörzs!F6828","v":"NEM"},"FERTŐTLENÍTŐ",{"$f":"[1]cikktörzs!H6828","v":"BETADINE SZAPPAN 1000 ML"},{"$f":"[1]cikktörzs!I6828","v":"        1X"}]
["FER",{"$f":"[1]cikktörzs!F6829","v":"NEM"},"FERTŐTLENÍTŐ",{"$f":"[1]cikktörzs!H6829","v":"BETADINE SZAPPAN 120 ML"},{"$f":"[1]cikktörzs!I6829","v":"        1X"}]
["FER",{"$f":"[1]cikktörzs!F6635","v":"NEM"},"FERTŐTLENÍTŐ",{"$f":"[1]cikktörzs!H6635","v":"BRADO CLUB WC OLAJ 200ML"},{"$f":"[1]cikktörzs!I6635","v":"        1X"}]
["FER",{"$f":"[1]cikktörzs!F6682","v":"NEM"},"FERTŐTLENÍTŐ",{"$f":"[1]cikktörzs!H6682","v":"BRADOCARE KÉZÁPOLÓ KRÉM 500ML"},{"$f":"[1]cikktörzs!I6682","v":"        1X"}]
["FER",{"$f":"[1]cikktörzs!F6351","v":"NEM"},"FERTŐTLENÍTŐ",{"$f":"[1]cikktörzs!H6351","v":"BRADOCLEAR 5 L"},{"$f":"[1]cikktörzs!I6351","v":"        1X"}]
["FER",{"$f":"[1]cikktörzs!F6356","v":"NEM"},"FERTŐTLENÍTŐ",{"$f":"[1]cikktörzs!H6356","v":"BRADODERM SOFT 1000 ML"},{"$f":"[1]cikktörzs!I6356","v":"       1 X"}]
["FER",{"$f":"[1]cikktörzs!F6341","v":"NEM"},"FERTŐTLENÍTŐ",{"$f":"[1]cikktörzs!H6341","v":"BRADODERM SOFT 500 ML"},{"$f":"[1]cikktörzs!I6341","v":"       1 X"}]
["FER",{"$f":"[1]cikktörzs!F6282","v":"NEM"},"FERTŐTLENÍTŐ",{"$f":"[1]cikktörzs!H6282","v":"BRADOGEL 500 ML"},{"$f":"[1]cikktörzs!I6282","v":"        1X"}]
["FER",{"$f":"[1]cikktörzs!F6342","v":"NEM"},"FERTŐTLENÍTŐ",{"$f":"[1]cikktörzs!H6342","v":"BRADONETT 500 ML"},{"$f":"[1]cikktörzs!I6342","v":"       1 X"}]
["FER",{"$f":"[1]cikktörzs!F6281","v":"NEM"},"FERTŐTLENÍTŐ",{"$f":"[1]cikktörzs!H6281","v":"BRADOPLUS 1000 ML"},{"$f":"[1]cikktörzs!I6281","v":"        1X"}]
["FER",{"$f":"[1]cikktörzs!F6280","v":"NEM"},"FERTŐTLENÍTŐ",{"$f":"[1]cikktörzs!H6280","v":"BRADOPLUS 500 ML"},{"$f":"[1]cikktörzs!I6280","v":"        1X"}]
["FER",{"$f":"[1]cikktörzs!F6676","v":"NEM"},"FERTŐTLENÍTŐ",{"$f":"[1]cikktörzs!H6676","v":"BRADOPLUS COLOR 1L"},{"$f":"[1]cikktörzs!I6676","v":"        1X"}]
["FER",{"$f":"[1]cikktörzs!F6683","v":"NEM"},"FERTŐTLENÍTŐ",{"$f":"[1]cikktörzs!H6683","v":"BRADOSEPT 1L"},{"$f":"[1]cikktörzs!I6683","v":"        1X"}]
["FER",{"$f":"[1]cikktörzs!F6840","v":"NEM"},"FERTŐTLENÍTŐ",{"$f":"[1]cikktörzs!H6840","v":"BRAUNOL BŐRFERT. 1000 ML"},{"$f":"[1]cikktörzs!I6840","v":"        1X"}]
["FER",{"$f":"[1]cikktörzs!F6757","v":"NEM"},"FERTŐTLENÍTŐ",{"$f":"[1]cikktörzs!H6757","v":"BUTANOL-N 1000 ML"},{"$f":"[1]cikktörzs!I6757","v":"       1 X"}]
["FER",{"$f":"[1]cikktörzs!F6852","v":"NEM"},"FERTŐTLENÍTŐ",{"$f":"[1]cikktörzs!H6852","v":"CIDEX OPA 3,5L"},{"$f":"[1]cikktörzs!I6852","v":"        1X"}]
["FER",{"$f":"[1]cikktörzs!F6856","v":"NEM"},"FERTŐTLENÍTŐ",{"$f":"[1]cikktörzs!H6856","v":"CIDEZYME 5 L"},{"$f":"[1]cikktörzs!I6856","v":"        1X"}]
["FER",{"$f":"[1]cikktörzs!F6866","v":"NEM"},"FERTŐTLENÍTŐ",{"$f":"[1]cikktörzs!H6866","v":"CUTASEPT F 1OOO ML"},{"$f":"[1]cikktörzs!I6866","v":"       1 X"}]
["FER",{"$f":"[1]cikktörzs!F6867","v":"NEM"},"FERTŐTLENÍTŐ",{"$f":"[1]cikktörzs!H6867","v":"CUTASEPT F SZINTELEN 250 ML"},{"$f":"[1]cikktörzs!I6867","v":"       1 X"}]
["FER",{"$f":"[1]cikktörzs!F6355","v":"NEM"},"FERTŐTLENÍTŐ",{"$f":"[1]cikktörzs!H6355","v":"CUTASEPT SZÍNEZETT 1 L"},{"$f":"[1]cikktörzs!I6355","v":"        1X"}]
["FER",{"$f":"[1]cikktörzs!F6724","v":"NEM"},"FERTŐTLENÍTŐ",{"$f":"[1]cikktörzs!H6724","v":"DECONEX 4 L STS"},{"$f":"[1]cikktörzs!I6724","v":"        1X"}]
["FER",{"$f":"[1]cikktörzs!F6723","v":"NEM"},"FERTŐTLENÍTŐ",{"$f":"[1]cikktörzs!H6723","v":"DECONEX 4 L STS ALKA"},{"$f":"[1]cikktörzs!I6723","v":"        1X"}]
["FER",{"$f":"[1]cikktörzs!F6612","v":"NEM"},"FERTŐTLENÍTŐ",{"$f":"[1]cikktörzs!H6612","v":"DEKOMED LC 5 L"},{"$f":"[1]cikktörzs!I6612","v":"        1X"}]
["FER",{"$f":"[1]cikktörzs!F6611","v":"NEM"},"FERTŐTLENÍTŐ",{"$f":"[1]cikktörzs!H6611","v":"DEKOMED T 5 L"},{"$f":"[1]cikktörzs!I6611","v":"        1X"}]
["FER",{"$f":"[1]cikktörzs!F6408","v":"NEM"},"FERTŐTLENÍTŐ",{"$f":"[1]cikktörzs!H6408","v":"DEPPE SPRAY IN DELTA 1 L"},{"$f":"[1]cikktörzs!I6408","v":"        1X"}]
["FER",{"$f":"[1]cikktörzs!F6313","v":"NEM"},"FERTŐTLENÍTŐ",{"$f":"[1]cikktörzs!H6313","v":"DEPPE SPRAY IN FELÜLETFERTŐTLENÍTŐ 1L"},{"$f":"[1]cikktörzs!I6313","v":"        1X"}]
["FER",{"$f":"[1]cikktörzs!F6325","v":"NEM"},"FERTŐTLENÍTŐ",{"$f":"[1]cikktörzs!H6325","v":"DEPPE SPRAYPUMPA 1 L KEREK FLAKONHOZ"},{"$f":"[1]cikktörzs!I6325","v":"        1X"}]
["FER",{"$f":"[1]cikktörzs!F6421","v":"NEM"},"FERTŐTLENÍTŐ",{"$f":"[1]cikktörzs!H6421","v":"DEPPE TOPP OFF-TEVA FELÜLETFERTŐTLENÍTŐ"},{"$f":"[1]cikktörzs!I6421","v":"      150X"}]
["FER",{"$f":"[1]cikktörzs!F6374","v":"NEM"},"FERTŐTLENÍTŐ",{"$f":"[1]cikktörzs!H6374","v":"FORMALDEHID 4 % PUFFEROLT 20 LITER"},{"$f":"[1]cikktörzs!I6374","v":"       1 X"}]
["FER",{"$f":"[1]cikktörzs!F6387","v":"NEM"},"FERTŐTLENÍTŐ",{"$f":"[1]cikktörzs!H6387","v":"FORMALDEHID 4 %-OS PUFFEROLT 5 LITER"},{"$f":"[1]cikktörzs!I6387","v":"       1 X"}]
["FER","NEM","FERTŐTLENÍTŐ","FORMALDEHID 4%-OS PUFFEROLT 1000 ML","       1 X"]
["FER","NEM","FERTŐTLENÍTŐ","FORMALDEHID 8%-OS PUFFEROLT 1000 ML","       1 X"]
["FER","NEM","FERTŐTLENÍTŐ","FORMALDEHYDUM SOLUTUM 120 ML GYÁRI","       1 X"]
["FER",{"$f":"[1]cikktörzs!F6709","v":"NEM"},"FERTŐTLENÍTŐ",{"$f":"[1]cikktörzs!H6709","v":"GETINGE CLEAN ENZYMATIC 5L"},{"$f":"[1]cikktörzs!I6709","v":"        1X"}]
["FER",{"$f":"[1]cikktörzs!F6621","v":"NEM"},"FERTŐTLENÍTŐ",{"$f":"[1]cikktörzs!H6621","v":"GETINGE CLEAN FLUCHER RINSE 5 L"},{"$f":"[1]cikktörzs!I6621","v":"        1X"}]
["FER",{"$f":"[1]cikktörzs!F6620","v":"NEM"},"FERTŐTLENÍTŐ",{"$f":"[1]cikktörzs!H6620","v":"GETINGE CLEAN FLUSHER DETERGENT 5L"},{"$f":"[1]cikktörzs!I6620","v":"        1X"}]
["FER",{"$f":"[1]cikktörzs!F6710","v":"NEM"},"FERTŐTLENÍTŐ",{"$f":"[1]cikktörzs!H6710","v":"GETINGE CLEAN RINSE AID 5L"},{"$f":"[1]cikktörzs!I6710","v":"        1X"}]
["FER",{"$f":"[1]cikktörzs!F7040","v":"NEM"},"FERTŐTLENÍTŐ",{"$f":"[1]cikktörzs!H7040","v":"GIGASEPT INSTRU AF 5 L"},{"$f":"[1]cikktörzs!I7040","v":"       1 X"}]
["FER",{"$f":"[1]cikktörzs!F7142","v":"NEM"},"FERTŐTLENÍTŐ",{"$f":"[1]cikktörzs!H7142","v":"INCIDIN FOAM 750 ML"},{"$f":"[1]cikktörzs!I7142","v":"      16 X"}]
["FER",{"$f":"[1]cikktörzs!F6504","v":"NEM"},"FERTŐTLENÍTŐ",{"$f":"[1]cikktörzs!H6504","v":"INCIDIN PREMIUM WIPESS"},{"$f":"[1]cikktörzs!I6504","v":"        1X"}]
["FER",{"$f":"[1]cikktörzs!F6728","v":"NEM"},"FERTŐTLENÍTŐ",{"$f":"[1]cikktörzs!H6728","v":"JODOSEPT  40ML"},{"$f":"[1]cikktörzs!I6728","v":"        1X"}]
["FER",{"$f":"[1]cikktörzs!F7174","v":"NEM"},"FERTŐTLENÍTŐ",{"$f":"[1]cikktörzs!H7174","v":"KORSOLEX AF 5L"},{"$f":"[1]cikktörzs!I7174","v":"       1 X"}]
["FER",{"$f":"[1]cikktörzs!F6357","v":"NEM"},"FERTŐTLENÍTŐ",{"$f":"[1]cikktörzs!H6357","v":"KORSOLEX MED AF 5 L"},{"$f":"[1]cikktörzs!I6357","v":"        1X"}]
["FER",{"$f":"[1]cikktörzs!F7176","v":"NEM"},"FERTŐTLENÍTŐ",{"$f":"[1]cikktörzs!H7176","v":"KORSOLEX PLUS 5 L"},{"$f":"[1]cikktörzs!I7176","v":"       1 X"}]
["FER",{"$f":"[1]cikktörzs!F7183","v":"NEM"},"FERTŐTLENÍTŐ",{"$f":"[1]cikktörzs!H7183","v":"LIFOSAN SOFT FOLY. SZAPPAN 1 L"},{"$f":"[1]cikktörzs!I7183","v":"       1 X"}]
["FER",{"$f":"[1]cikktörzs!F6677","v":"NEM"},"FERTŐTLENÍTŐ",{"$f":"[1]cikktörzs!H6677","v":"LIFOSAN SOFT. FOLY SZAPPAN 500 ML"},{"$f":"[1]cikktörzs!I6677","v":"        1X"}]
["FER",{"$f":"[1]cikktörzs!F2098","v":"NEM"},"FERTŐTLENÍTŐ",{"$f":"[1]cikktörzs!H2098","v":"MANUSEPT BASIC 1000 ML"},{"$f":"[1]cikktörzs!I2098","v":"       1 X"}]
["FER",{"$f":"[1]cikktörzs!F2467","v":"NEM"},"FERTŐTLENÍTŐ",{"$f":"[1]cikktörzs!H2467","v":"MANUSEPT BASIC 500 ML"},{"$f":"[1]cikktörzs!I2467","v":"        1X"}]
["FER",{"$f":"[1]cikktörzs!F7196","v":"NEM"},"FERTŐTLENÍTŐ",{"$f":"[1]cikktörzs!H7196","v":"MEDICARINE TABL"},{"$f":"[1]cikktörzs!I7196","v":"     300 X"}]
["FER",{"$f":"[1]cikktörzs!F6625","v":"NEM"},"FERTŐTLENÍTŐ",{"$f":"[1]cikktörzs!H6625","v":"MELISEPTOL HAB-PURE SPRAY 750ML"},{"$f":"[1]cikktörzs!I6625","v":"       12X"}]
["FER",{"$f":"[1]cikktörzs!F6626","v":"NEM"},"FERTŐTLENÍTŐ",{"$f":"[1]cikktörzs!H6626","v":"MELISEPTOL WIPES SENSITIVE"},{"$f":"[1]cikktörzs!I6626","v":"       12X"}]
["FER",{"$f":"[1]cikktörzs!F6781","v":"NEM"},"FERTŐTLENÍTŐ",{"$f":"[1]cikktörzs!H6781","v":"MIKROBAC TISSUES FELÜLETFERT KENDŐ 80"},{"$f":"[1]cikktörzs!I6781","v":0}]
["FER",{"$f":"[1]cikktörzs!F2140","v":"NEM"},"FERTŐTLENÍTŐ",{"$f":"[1]cikktörzs!H2140","v":"MIKROZID AF LIQUID 250 ML SZÓRÓFEJJEL"},{"$f":"[1]cikktörzs!I2140","v":"        1X"}]
["FER",{"$f":"[1]cikktörzs!F6373","v":"NEM"},"FERTŐTLENÍTŐ",{"$f":"[1]cikktörzs!H6373","v":"MIKROZID SENSITIV KENDŐ UTÁNTÖLTŐ"},{"$f":"[1]cikktörzs!I6373","v":"      200X"}]
["FER",{"$f":"[1]cikktörzs!F6372","v":"NEM"},"FERTŐTLENÍTŐ",{"$f":"[1]cikktörzs!H6372","v":"MIKROZID SENSITIVE KENDŐ DOBOZ"},{"$f":"[1]cikktörzs!I6372","v":"      200X"}]
["FER",{"$f":"[1]cikktörzs!F7204","v":"NEM"},"FERTŐTLENÍTŐ",{"$f":"[1]cikktörzs!H7204","v":"MIKROZIDE LIQUID 1 L GYORS HAT. FERT."},{"$f":"[1]cikktörzs!I7204","v":"       1 X"}]
["FER",{"$f":"[1]cikktörzs!F7238","v":"NEM"},"FERTŐTLENÍTŐ",{"$f":"[1]cikktörzs!H7238","v":"OCTENISEPT 1000 ML NYÁLKAHÁRTYA FERT."},{"$f":"[1]cikktörzs!I7238","v":"       1 X"}]
["FER",{"$f":"[1]cikktörzs!F7287","v":"NEM"},"FERTŐTLENÍTŐ",{"$f":"[1]cikktörzs!H7287","v":"PERFORM 40 G"},{"$f":"[1]cikktörzs!I7287","v":"       1 X"}]
["FER",{"$f":"[1]cikktörzs!F6699","v":"NEM"},"FERTŐTLENÍTŐ",{"$f":"[1]cikktörzs!H6699","v":"PERFORM 900 MG"},{"$f":"[1]cikktörzs!I6699","v":"        1X"}]
["FER",{"$f":"[1]cikktörzs!F7296","v":"NEM"},"FERTŐTLENÍTŐ",{"$f":"[1]cikktörzs!H7296","v":"PRONTODERM FÜRD. FOLY. 500 ML 400 123"},{"$f":"[1]cikktörzs!I7296","v":"       1 X"}]
["FER",{"$f":"[1]cikktörzs!F7576","v":"NEM"},"FERTŐTLENÍTŐ",{"$f":"[1]cikktörzs!H7576","v":"PRONTORAL GARGARIZ. CENT. 250 ML"},{"$f":"[1]cikktörzs!I7576","v":"        1X"}]
["FER",{"$f":"[1]cikktörzs!F6305","v":"NEM"},"FERTŐTLENÍTŐ",{"$f":"[1]cikktörzs!H6305","v":"PRONTOSAN SEBKEZELŐ GÉL 30 ML"},{"$f":"[1]cikktörzs!I6305","v":"        1X"}]
["FER",{"$f":"[1]cikktörzs!F6629","v":"NEM"},"FERTŐTLENÍTŐ",{"$f":"[1]cikktörzs!H6629","v":"PRONTOSAN SEBÖBLÍTŐ OLDAT 1000 ML"},{"$f":"[1]cikktörzs!I6629","v":"        1X"}]
["FER",{"$f":"[1]cikktörzs!F6604","v":"NEM"},"FERTŐTLENÍTŐ",{"$f":"[1]cikktörzs!H6604","v":"RAPICID OPA 15 L"},{"$f":"[1]cikktörzs!I6604","v":"        1X"}]
["FER",{"$f":"[1]cikktörzs!F6541","v":"NEM"},"FERTŐTLENÍTŐ",{"$f":"[1]cikktörzs!H6541","v":"RAPICIDE"},{"$f":"[1]cikktörzs!I6541","v":"        1X"}]
["FER",{"$f":"[1]cikktörzs!F7305","v":"NEM"},"FERTŐTLENÍTŐ",{"$f":"[1]cikktörzs!H7305","v":"SEKUMATIC FD 5L"},{"$f":"[1]cikktörzs!I7305","v":"       3 X"}]
["FER",{"$f":"[1]cikktörzs!F7306","v":"NEM"},"FERTŐTLENÍTŐ",{"$f":"[1]cikktörzs!H7306","v":"SEKUMATIC FDR 5 L"},{"$f":"[1]cikktörzs!I7306","v":"       3 X"}]
["FER",{"$f":"[1]cikktörzs!F7308","v":"NEM"},"FERTŐTLENÍTŐ",{"$f":"[1]cikktörzs!H7308","v":"SEKUMATIC FNZ 5L"},{"$f":"[1]cikktörzs!I7308","v":"       3 X"}]
["FER",{"$f":"[1]cikktörzs!F6450","v":"NEM"},"FERTŐTLENÍTŐ",{"$f":"[1]cikktörzs!H6450","v":"SEKUSEPT AKTIV 1,5 KG"},{"$f":"[1]cikktörzs!I6450","v":"        4X"}]
["FER",{"$f":"[1]cikktörzs!F7312","v":"NEM"},"FERTŐTLENÍTŐ",{"$f":"[1]cikktörzs!H7312","v":"SEKUSEPT PUL. CL. 2 L AKTIV. +ADAGOLÓ P."},{"$f":"[1]cikktörzs!I7312","v":"      1X2L"}]
["FER",{"$f":"[1]cikktörzs!F7311","v":"NEM"},"FERTŐTLENÍTŐ",{"$f":"[1]cikktörzs!H7311","v":"SEKUSEPT PULV CLASSIC 2 KG"},{"$f":"[1]cikktörzs!I7311","v":"       4 X"}]
["FER",{"$f":"[1]cikktörzs!F7320","v":"NEM"},"FERTŐTLENÍTŐ",{"$f":"[1]cikktörzs!H7320","v":"SKINMAN SCRUB 500 ML"},{"$f":"[1]cikktörzs!I7320","v":"      24 X"}]
["FER",{"$f":"[1]cikktörzs!F6561","v":"NEM"},"FERTŐTLENÍTŐ",{"$f":"[1]cikktörzs!H6561","v":"SKINMAN SOFT PROTECT 1000 ML"},{"$f":"[1]cikktörzs!I6561","v":"       12X"}]
["FER",{"$f":"[1]cikktörzs!F6560","v":"NEM"},"FERTŐTLENÍTŐ",{"$f":"[1]cikktörzs!H6560","v":"SKINMAN SOFT PROTECT 500 ML"},{"$f":"[1]cikktörzs!I6560","v":"       24X"}]
["FER",{"$f":"[1]cikktörzs!F7325","v":"NEM"},"FERTŐTLENÍTŐ",{"$f":"[1]cikktörzs!H7325","v":"SKINSEPT MUCOSA 500 ML"},{"$f":"[1]cikktörzs!I7325","v":"      12 X"}]
["FER",{"$f":"[1]cikktörzs!F6703","v":"NEM"},"FERTŐTLENÍTŐ",{"$f":"[1]cikktörzs!H6703","v":"SOFTA CLOTH CHX 2% FELÜLETFERT. KENDŐ"},{"$f":"[1]cikktörzs!I6703","v":"      100X"}]
["FER",{"$f":"[1]cikktörzs!F6702","v":"NEM"},"FERTŐTLENÍTŐ",{"$f":"[1]cikktörzs!H6702","v":"SOFTA SWABS CLEANSING BŐRFERTŐTLENÍTŐ"},{"$f":"[1]cikktörzs!I6702","v":"      100X"}]
["FER",{"$f":"[1]cikktörzs!F7326","v":"NEM"},"FERTŐTLENÍTŐ",{"$f":"[1]cikktörzs!H7326","v":"SOFTA-MAN 1000 ML"},{"$f":"[1]cikktörzs!I7326","v":"       1 X"}]
["FER",{"$f":"[1]cikktörzs!F7327","v":"NEM"},"FERTŐTLENÍTŐ",{"$f":"[1]cikktörzs!H7327","v":"SOFTA-MAN 500 ML"},{"$f":"[1]cikktörzs!I7327","v":"       1 X"}]
["FER",{"$f":"[1]cikktörzs!F6627","v":"NEM"},"FERTŐTLENÍTŐ",{"$f":"[1]cikktörzs!H6627","v":"SOFTA-MAN VISCORUB 500ML"},{"$f":"[1]cikktörzs!I6627","v":"        1X"}]
["FER",{"$f":"[1]cikktörzs!F6726","v":"NEM"},"FERTŐTLENÍTŐ",{"$f":"[1]cikktörzs!H6726","v":"SOFTASEPT N SZINTELEN 1L"},{"$f":"[1]cikktörzs!I6726","v":"        1X"}]
["FER",{"$f":"[1]cikktörzs!F6725","v":"NEM"},"FERTŐTLENÍTŐ",{"$f":"[1]cikktörzs!H6725","v":"SOFTASEPT N SZINTELEN 250ML"},{"$f":"[1]cikktörzs!I6725","v":"        1X"}]
["FER",{"$f":"[1]cikktörzs!F7407","v":"NEM"},"FERTŐTLENÍTŐ",{"$f":"[1]cikktörzs!H7407","v":"STERILLIUM CLASSIC PURE 1000 ML"},{"$f":"[1]cikktörzs!I7407","v":"       1 X"}]
["FER",{"$f":"[1]cikktörzs!F7408","v":"NEM"},"FERTŐTLENÍTŐ",{"$f":"[1]cikktörzs!H7408","v":"STERILLIUM CLASSIC PURE 500 ML"},{"$f":"[1]cikktörzs!I7408","v":"       1 X"}]
["FER",{"$f":"[1]cikktörzs!F7476","v":"NEM"},"FERTŐTLENÍTŐ",{"$f":"[1]cikktörzs!H7476","v":"TERRALIN PROTECT 5 L"},{"$f":"[1]cikktörzs!I7476","v":"       1 X"}]
["FER",{"$f":"[1]cikktörzs!F6752","v":"NEM"},"FERTŐTLENÍTŐ",{"$f":"[1]cikktörzs!H6752","v":"TRIACID N 1 L"},{"$f":"[1]cikktörzs!I6752","v":"        1X"}]
["FER",{"$f":"[1]cikktörzs!F6255","v":"NEM"},"FERTŐTLENÍTŐ",{"$f":"[1]cikktörzs!H6255","v":"TRIXO 500 ML"},{"$f":"[1]cikktörzs!I6255","v":"        1X"}]

{"sheet":"OLTÁS","index":8,"n_rows":22,"n_cols":7,"rows_kept":22,"cut":false,"hidden":false,"merged":[]}
[{"$nulls":5},"NÉV"]
["J","J07","J07AG","J07AG","VACC","ACT-HIB VAKCINA","        1X"]
["J","J07","J07AH","J07AH","VACC","BEXSERO SZUSZP INJ","1X0,5ML ET"]
["J","J07","J07CA","J07CA05","VACC","DULTAVAX VAKCINA FECSKENDOBEN","        1X"]
["J","J07","J07BC","J07BC01","VACC","ENGERIX-B VAKCINA FELNOTT","      100X"]
["J","J07","J07BC","J07BC","VACC","HAVRIX 1440 VAKCINA FECSK","        1X"]
["J","J07","J07AH","J07AH","VACC","MENJUGATE VAKC 0NT","   1X0,5ML"]
["J","J07","J07AH","J07AH08","VACC","MENVEO POR ÉS OLDAT OLDATOS INJEKCIÓHOZ","        1X"]
["L","L03","L03A","L03A","VACC","PNEUMOVAX 23 INJ","   1X1ADAG"]
["J","J07","J07AL","J07AL02","VACC","PREVENAR 13 SZUSZPENZIÓS INJEKCIÓ KÜLÖN","   1X0,5ML"]
["J","J07","J07BD","J07BD52","VACC","PRIORIX POR ÉS OLDÓSZER OLDA INJEKCIÓHOZ","G +10X OLD"]
["J","J07","J07BD","J07BD52","VACC","PRIORIX VAKCINA","        1X"]
["J","J07","J07BM","J07BM01","VACC","SILGARD SZUSZP INJ ET FECSKBEN","   1X0,5ML"]
["J","J07","J07AM","J07AM01","VACC","TETANOL PUR SZUSZP INJ ET FECSK TŰ NÉLKÜ","  10X0,5ML"]
["J","J07","J07AM","J07AM01","VACC","TETANOL-PUR VAKC TUVEL","        1X"]
["J","","",null,"VACC","TETANUS- IMPFSTOPP MERIEUX","       10X"]
["J","J07","J07AM","J07AM01","VACC","TETANUS VACCIN1X0,5ML 40IE /MW","        1X"]
["J","","",null,"VACC","TETANUS VAKCINA ADS 0,5 ML SZUSZP INJ.","        3X"]
["J",null,null,null,"VACC","TETANUS-IMPFSTOFF MÉRIEUX    1X","        1X"]
["J","J07","J07AP","J07AP03","VACC","TYPHIM VI OLD INJ ET FECSK","   1X0,5ML"]
["J",null,null,null,"VACC","VARILRIX VAKCINA FECSK+TU","   1PA+1OD"]
["J","J07","J07BK","J07BK01","VACC","VARIVAX POR+OLDÓSZER SZUSZP INJEKCIÓHOZ","        1X"]